Workbook

Sheet Orçamento
O3: UNIDADE ESCOLAR | V3: CÓDIGO INEP
O4: CENTRO DE ENSINO EM PERÍODO INTEGRAL PROFESSOR SÉRGIO FAYAD GENEROSO | V4: 52046176
A6: Nmax | O6: OBRA | S6: DATA | V6: CIDADE
A7: =MAX($C$18:$C$839) -> 4 | O7: REFORMA E AMPLIAÇÃO | S7: 2020-07-07 | V7: FORMOSA
O9: CRE | R9: ENDEREÇO | S9: REFERÊNCIA AGETOP | V9: REFERÊNCIA SINAPI
O10: FORMOSA | R10: AV.MAESTRO JOAO L. DO ESPIRITO SANTO S/N, FORMOSINHA, CEP:73813-120 | S10: ABR/19 | T10: DESONERADA | V10: DEZ/19 | W10: DESONERADA
O12: ÁREA EXISTENTE (M²) | R12: ÁREA A CONSTRUIR (M²) | S12: ÁREA A DEMOLIR (M²) | V12: ÁREA TOTAL CONSTRUÍDA (M²)
O13: 3222.5 | R13: 91.08 | S13: 0 | V13: 3313.58
L15: FILTRO | O15: PLANILHA ORÇAMENTÁRIA
A16: Nível E | B16: Save Nivel | C16: Nível C | D16: Altura | E16: n1 | F16: n2 | G16: n3 | H16: n4 | I16: n5 | J16: Czero | K16: Cnível | L16: ↓ | M16: Nível | N16: Nível Corrigido | O16: ITEM | P16: TABELA | Q16: CODIGO | R16: DESCRIÇÃO DOS SERVIÇOS | S16: UNID | T16: QUANT | U16: MAT | V16: MO | W16: T.SERVIÇO | X16: OBSERVAÇÕES¹
A17: =CHOOSE(1+LOG(1+2*(ORÇAMENTO.Nivel="Nível 1")+4*(ORÇAMENTO.Nivel="Nível 2")+8*(ORÇAMENTO.Nivel="Nível 3")+16*(ORÇAMENTO.Nivel="Nível 4")+32*(ORÇAMENTO.Nivel="Serviço"),2),0,1,2,3,4,"S") -> S | B17: =IF(OR(C17="s",C17=0),OFFSET(B17,-1,0),C17) -> Save Nivel | C17: =IF(OFFSET(C17,-1,0)="L",1,IF(OFFSET(C17,-1,0)=1,2,IF(OR(A17="s",A17=0),"S",IF(AND(OFFSET(C17,-1,0)=2,A17=4),3,IF(AND(OR(OFFSET(C17,-1,0)="s",OFFSET(C17,-1,0)=0),A17<>"s",A17>OFFSET(B17,-1,0)),OFFSET(B17,-1,0),A17))))) -> S | D17: =IF(OR(C17="S",C17=0),0,IF(ISERROR(K17),J17,SMALL(J17:K17,1))) -> 0 | E17: =IF($C17=1,OFFSET(E17,-1,0)+1,OFFSET(E17,-1,0)) -> n1 | F17: =IF($C17=1,0,IF($C17=2,OFFSET(F17,-1,0)+1,OFFSET(F17,-1,0))) -> n2 | G17: =IF(AND($C17<=2,$C17<>0),0,IF($C17=3,OFFSET(G17,-1,0)+1,OFFSET(G17,-1,0))) -> n3 | H17: =IF(AND($C17<=3,$C17<>0),0,IF($C17=4,OFFSET(H17,-1,0)+1,OFFSET(H17,-1,0))) -> n4 | I17: =IF(AND($C17<=4,$C17<>0),0,IF(AND($C17="S",$W17>0),OFFSET(I17,-1,0)+1,OFFSET(I17,-1,0))) -> n5 | J17: =IF(OR($C17="S",$C17=0),0,MATCH(0,OFFSET($D17,1,$C17,ROW($C$839)-ROW($C17)),0)) -> 0 | K17: =IF(OR($C17="S",$C17=0),0,MATCH(OFFSET($D17,0,$C17)+1,OFFSET($D17,1,$C17,ROW($C$839)-ROW($C17)),0)) -> 0 | M17: Serviço | N17: Serviço | O17: - | P17: SINAPI | R17: (sem código) | S17: - | U17: 0 | V17: 0 | W17: 0
A18: 0 | C18: L | D18: =COUNTA(OFFSET(D18,1,0):D$839) -> 820 | E18: =LEFT(O19,1)-1 -> 0 | L18: F | M18: LOTE | N18: LOTE | O18: REFORMA E AMPLIAÇÃO - CENTRO DE ENSINO EM PERÍODO INTEGRAL PROFESSOR SÉRGIO FAYAD GENEROSO | W18: 797673.45
A19: =CHOOSE(1+LOG(1+2*(ORÇAMENTO.Nivel="Nível 1")+4*(ORÇAMENTO.Nivel="Nível 2")+8*(ORÇAMENTO.Nivel="Nível 3")+16*(ORÇAMENTO.Nivel="Nível 4")+32*(ORÇAMENTO.Nivel="Serviço"),2),0,1,2,3,4,"S") -> 1 | B19: =IF(OR(C19="s",C19=0),OFFSET(B19,-1,0),C19) -> 1 | C19: =IF(OFFSET(C19,-1,0)="L",1,IF(OFFSET(C19,-1,0)=1,2,IF(OR(A19="s",A19=0),"S",IF(AND(OFFSET(C19,-1,0)=2,A19=4),3,IF(AND(OR(OFFSET(C19,-1,0)="s",OFFSET(C19,-1,0)=0),A19<>"s",A19>OFFSET(B19,-1,0)),OFFSET(B19,-1,0),A19))))) -> 1 | D19: =IF(OR(C19="S",C19=0),0,IF(ISERROR(K19),J19,SMALL(J19:K19,1))) -> 820 | E19: =IF($C19=1,OFFSET(E19,-1,0)+1,OFFSET(E19,-1,0)) -> 1 | F19: =IF($C19=1,0,IF($C19=2,OFFSET(F19,-1,0)+1,OFFSET(F19,-1,0))) -> 0 | G19: =IF(AND($C19<=2,$C19<>0),0,IF($C19=3,OFFSET(G19,-1,0)+1,OFFSET(G19,-1,0))) -> 0 | H19: =IF(AND($C19<=3,$C19<>0),0,IF($C19=4,OFFSET(H19,-1,0)+1,OFFSET(H19,-1,0))) -> 0 | I19: =IF(AND($C19<=4,$C19<>0),0,IF(AND($C19="S",$W19>0),OFFSET(I19,-1,0)+1,OFFSET(I19,-1,0))) -> 0 | J19: =IF(OR($C19="S",$C19=0),0,MATCH(0,OFFSET($D19,1,$C19,ROW($C$839)-ROW($C19)),0)) -> 820 | K19: =IF(OR($C19="S",$C19=0),0,MATCH(OFFSET($D19,0,$C19)+1,OFFSET($D19,1,$C19,ROW($C$839)-ROW($C19)),0)) ->  | L19: F | M19: Nível 1 | N19: Nível 1 | O19: 1. | P19: AGETOP | R19: REFORMA
A20: 2 | B20: =IF(OR(C20="s",C20=0),OFFSET(B20,-1,0),C20) -> 2 | C20: =IF(OFFSET(C20,-1,0)="L",1,IF(OFFSET(C20,-1,0)=1,2,IF(OR(A20="s",A20=0),"S",IF(AND(OFFSET(C20,-1,0)=2,A20=4),3,IF(AND(OR(OFFSET(C20,-1,0)="s",OFFSET(C20,-1,0)=0),A20<>"s",A20>OFFSET(B20,-1,0)),OFFSET(B20,-1,0),A20))))) -> 2 | D20: =IF(OR(C20="S",C20=0),0,IF(ISERROR(K20),J20,SMALL(J20:K20,1))) -> 79 | E20: =IF($C20=1,OFFSET(E20,-1,0)+1,OFFSET(E20,-1,0)) -> 1 | F20: =IF($C20=1,0,IF($C20=2,OFFSET(F20,-1,0)+1,OFFSET(F20,-1,0))) -> 1 | G20: =IF(AND($C20<=2,$C20<>0),0,IF($C20=3,OFFSET(G20,-1,0)+1,OFFSET(G20,-1,0))) -> 0 | H20: =IF(AND($C20<=3,$C20<>0),0,IF($C20=4,OFFSET(H20,-1,0)+1,OFFSET(H20,-1,0))) -> 0 | I20: =IF(AND($C20<=4,$C20<>0),0,IF(AND($C20="S",$W20>0),OFFSET(I20,-1,0)+1,OFFSET(I20,-1,0))) -> 0 | J20: 819 | K20: 79 | L20: F | M20: Nível 2 | N20: Nível 2 | O20: 1.1. | P20: AGETOP | R20: SERVIÇOS PRELIMINARES
A21: 3 | B21: =IF(OR(C21="s",C21=0),OFFSET(B21,-1,0),C21) -> 3 | C21: =IF(OFFSET(C21,-1,0)="L",1,IF(OFFSET(C21,-1,0)=1,2,IF(OR(A21="s",A21=0),"S",IF(AND(OFFSET(C21,-1,0)=2,A21=4),3,IF(AND(OR(OFFSET(C21,-1,0)="s",OFFSET(C21,-1,0)=0),A21<>"s",A21>OFFSET(B21,-1,0)),OFFSET(B21,-1,0),A21))))) -> 3 | D21: =IF(OR(C21="S",C21=0),0,IF(ISERROR(K21),J21,SMALL(J21:K21,1))) -> 2 | E21: =IF($C21=1,OFFSET(E21,-1,0)+1,OFFSET(E21,-1,0)) -> 1 | F21: =IF($C21=1,0,IF($C21=2,OFFSET(F21,-1,0)+1,OFFSET(F21,-1,0))) -> 1 | G21: =IF(AND($C21<=2,$C21<>0),0,IF($C21=3,OFFSET(G21,-1,0)+1,OFFSET(G21,-1,0))) -> 1 | H21: =IF(AND($C21<=3,$C21<>0),0,IF($C21=4,OFFSET(H21,-1,0)+1,OFFSET(H21,-1,0))) -> 0 | I21: =IF(AND($C21<=4,$C21<>0),0,IF(AND($C21="S",$W21>0),OFFSET(I21,-1,0)+1,OFFSET(I21,-1,0))) -> 0 | J21: 78 | K21: 2 | L21: F | M21: Nível 3 | N21: Nível 3 | O21: 1.1.1. | P21: SINAPI | R21: REFORMA CAIXA D'ÁGUA | S21: -
A22: S | B22: =IF(OR(C22="s",C22=0),OFFSET(B22,-1,0),C22) -> 3 | C22: =IF(OFFSET(C22,-1,0)="L",1,IF(OFFSET(C22,-1,0)=1,2,IF(OR(A22="s",A22=0),"S",IF(AND(OFFSET(C22,-1,0)=2,A22=4),3,IF(AND(OR(OFFSET(C22,-1,0)="s",OFFSET(C22,-1,0)=0),A22<>"s",A22>OFFSET(B22,-1,0)),OFFSET(B22,-1,0),A22))))) -> S | D22: =IF(OR(C22="S",C22=0),0,IF(ISERROR(K22),J22,SMALL(J22:K22,1))) -> 0 | E22: =IF($C22=1,OFFSET(E22,-1,0)+1,OFFSET(E22,-1,0)) -> 1 | F22: =IF($C22=1,0,IF($C22=2,OFFSET(F22,-1,0)+1,OFFSET(F22,-1,0))) -> 1 | G22: =IF(AND($C22<=2,$C22<>0),0,IF($C22=3,OFFSET(G22,-1,0)+1,OFFSET(G22,-1,0))) -> 1 | H22: =IF(AND($C22<=3,$C22<>0),0,IF($C22=4,OFFSET(H22,-1,0)+1,OFFSET(H22,-1,0))) -> 0 | I22: =IF(AND($C22<=4,$C22<>0),0,IF(AND($C22="S",$W22>0),OFFSET(I22,-1,0)+1,OFFSET(I22,-1,0))) -> 0 | J22: 0 | K22: 0 | L22: F | M22: Serviço | N22: Serviço | O22: 1.1.1.0.1. | P22: SINAPI | Q22: 88316 | R22: SERVENTE COM ENCARGOS COMPLEMENTARES | S22: H | T22: 8
A23: 3 | B23: =IF(OR(C23="s",C23=0),OFFSET(B23,-1,0),C23) -> 3 | C23: =IF(OFFSET(C23,-1,0)="L",1,IF(OFFSET(C23,-1,0)=1,2,IF(OR(A23="s",A23=0),"S",IF(AND(OFFSET(C23,-1,0)=2,A23=4),3,IF(AND(OR(OFFSET(C23,-1,0)="s",OFFSET(C23,-1,0)=0),A23<>"s",A23>OFFSET(B23,-1,0)),OFFSET(B23,-1,0),A23))))) -> 3 | D23: =IF(OR(C23="S",C23=0),0,IF(ISERROR(K23),J23,SMALL(J23:K23,1))) -> 4 | E23: =IF($C23=1,OFFSET(E23,-1,0)+1,OFFSET(E23,-1,0)) -> 1 | F23: =IF($C23=1,0,IF($C23=2,OFFSET(F23,-1,0)+1,OFFSET(F23,-1,0))) -> 1 | G23: =IF(AND($C23<=2,$C23<>0),0,IF($C23=3,OFFSET(G23,-1,0)+1,OFFSET(G23,-1,0))) -> 2 | H23: =IF(AND($C23<=3,$C23<>0),0,IF($C23=4,OFFSET(H23,-1,0)+1,OFFSET(H23,-1,0))) -> 0 | I23: =IF(AND($C23<=4,$C23<>0),0,IF(AND($C23="S",$W23>0),OFFSET(I23,-1,0)+1,OFFSET(I23,-1,0))) -> 0 | J23: 76 | K23: 4 | L23: F | M23: Nível 3 | N23: Nível 3 | O23: 1.1.2. | P23: SINAPI | R23: REFORMA DA COBERTURA | S23: -
A24: S | B24: 3 | C24: S | D24: 0 | E24: 1 | F24: 1 | G24: 2 | H24: 0 | I24: 0 | J24: 0 | K24: 0 | L24: F | M24: Serviço | N24: Serviço | O24: 1.1.2.0.1. | P24: AGETOP | Q24: 20103 | R24: DEMOLIÇÃO ESTRUTURA EM MADEIRA TELHADO C/ TRANSP. ATÉ CB. E CARGA | S24: m2 | T24: 20
A25: S | B25: 3 | C25: S | D25: 0 | E25: 1 | F25: 1 | G25: 2 | H25: 0 | I25: 0 | J25: 0 | K25: 0 | L25: F | M25: Serviço | N25: Serviço | O25: 1.1.2.0.2. | P25: AGETOP | Q25: 20102 | R25: DEMOLICAO-COBERTURA TELHA FIBROCIMENTO/FIBRA DE VIDRO/SIMILARES C/ TRANSP. ATÉ CB. E CARGA | S25: m2 | T25: 78
A26: S | B26: 3 | C26: S | D26: 0 | E26: 1 | F26: 1 | G26: 2 | H26: 0 | I26: 0 | J26: 0 | K26: 0 | L26: F | M26: Serviço | N26: Serviço | O26: 1.1.2.0.3. | P26: AGETOP | Q26: 20157 | R26: DEMOLIÇÃO CALHAS/ RUFOS EM CHAPA C/TR.AT.C.B.E CARGA | S26: m2 | T26: 41
A27: 3 | B27: 3 | C27: 3 | D27: 12 | E27: 1 | F27: 1 | G27: 3 | H27: 0 | I27: 0 | J27: 72 | K27: 12 | L27: F | M27: Nível 3 | N27: Nível 3 | O27: 1.1.3. | P27: SINAPI | R27: REFORMA GERAL WC FEM | S27: -
A28: =CHOOSE(1+LOG(1+2*(ORÇAMENTO.Nivel="Nível 1")+4*(ORÇAMENTO.Nivel="Nível 2")+8*(ORÇAMENTO.Nivel="Nível 3")+16*(ORÇAMENTO.Nivel="Nível 4")+32*(ORÇAMENTO.Nivel="Serviço"),2),0,1,2,3,4,"S") -> S | B28: =IF(OR(C28="s",C28=0),OFFSET(B28,-1,0),C28) -> 3 | C28: =IF(OFFSET(C28,-1,0)="L",1,IF(OFFSET(C28,-1,0)=1,2,IF(OR(A28="s",A28=0),"S",IF(AND(OFFSET(C28,-1,0)=2,A28=4),3,IF(AND(OR(OFFSET(C28,-1,0)="s",OFFSET(C28,-1,0)=0),A28<>"s",A28>OFFSET(B28,-1,0)),OFFSET(B28,-1,0),A28))))) -> S | D28: =IF(OR(C28="S",C28=0),0,IF(ISERROR(K28),J28,SMALL(J28:K28,1))) -> 0 | E28: =IF($C28=1,OFFSET(E28,-1,0)+1,OFFSET(E28,-1,0)) -> 1 | F28: =IF($C28=1,0,IF($C28=2,OFFSET(F28,-1,0)+1,OFFSET(F28,-1,0))) -> 1 | G28: =IF(AND($C28<=2,$C28<>0),0,IF($C28=3,OFFSET(G28,-1,0)+1,OFFSET(G28,-1,0))) -> 3 | H28: =IF(AND($C28<=3,$C28<>0),0,IF($C28=4,OFFSET(H28,-1,0)+1,OFFSET(H28,-1,0))) -> 0 | I28: =IF(AND($C28<=4,$C28<>0),0,IF(AND($C28="S",$W28>0),OFFSET(I28,-1,0)+1,OFFSET(I28,-1,0))) -> 0 | J28: 0 | K28: 0 | L28: F | M28: Serviço | N28: Serviço | O28: 1.1.3.0.1. | P28: SINAPI | Q28: 97644 | R28: REMOÇÃO DE PORTAS, DE FORMA MANUAL, SEM REAPROVEITAMENTO. AF_12/2017 | S28: M2 | T28: 14 | X28: Referência: AGETOP - 20106
A29: S | B29: 3 | C29: S | D29: 0 | E29: 1 | F29: 1 | G29: 3 | H29: 0 | I29: 0 | J29: 0 | K29: 0 | L29: F | M29: Serviço | N29: Serviço | O29: 1.1.3.0.2. | P29: SINAPI | Q29: 97645 | R29: REMOÇÃO DE JANELAS, DE FORMA MANUAL, SEM REAPROVEITAMENTO. AF_12/2017 | S29: M2 | T29: 1.5 | X29: Referência: AGETOP - 20106
A30: S | B30: 3 | C30: S | D30: 0 | E30: 1 | F30: 1 | G30: 3 | H30: 0 | I30: 0 | J30: 0 | K30: 0 | L30: F | M30: Serviço | N30: Serviço | O30: 1.1.3.0.3. | P30: SINAPI | Q30: 97622 | R30: DEMOLIÇÃO DE ALVENARIA DE BLOCO FURADO, DE FORMA MANUAL, SEM REAPROVEITAMENTO. AF_12/2017 | S30: M3 | T30: 0.22 | X30: Referência: AGETOP - 20118
A31: S | B31: 3 | C31: S | D31: 0 | E31: 1 | F31: 1 | G31: 3 | H31: 0 | I31: 0 | J31: 0 | K31: 0 | L31: F | M31: Serviço | N31: Serviço | O31: 1.1.3.0.4. | P31: AGETOP | Q31: 20134 | R31: DEM.DE FORRO GESSO C/TRANSP.ATE CB.E CARGA | S31: m2 | T31: 15.04
A32: =CHOOSE(1+LOG(1+2*(ORÇAMENTO.Nivel="Nível 1")+4*(ORÇAMENTO.Nivel="Nível 2")+8*(ORÇAMENTO.Nivel="Nível 3")+16*(ORÇAMENTO.Nivel="Nível 4")+32*(ORÇAMENTO.Nivel="Serviço"),2),0,1,2,3,4,"S") -> S | B32: =IF(OR(C32="s",C32=0),OFFSET(B32,-1,0),C32) -> 3 | C32: =IF(OFFSET(C32,-1,0)="L",1,IF(OFFSET(C32,-1,0)=1,2,IF(OR(A32="s",A32=0),"S",IF(AND(OFFSET(C32,-1,0)=2,A32=4),3,IF(AND(OR(OFFSET(C32,-1,0)="s",OFFSET(C32,-1,0)=0),A32<>"s",A32>OFFSET(B32,-1,0)),OFFSET(B32,-1,0),A32))))) -> S | D32: =IF(OR(C32="S",C32=0),0,IF(ISERROR(K32),J32,SMALL(J32:K32,1))) -> 0 | E32: =IF($C32=1,OFFSET(E32,-1,0)+1,OFFSET(E32,-1,0)) -> 1 | F32: =IF($C32=1,0,IF($C32=2,OFFSET(F32,-1,0)+1,OFFSET(F32,-1,0))) -> 1 | G32: =IF(AND($C32<=2,$C32<>0),0,IF($C32=3,OFFSET(G32,-1,0)+1,OFFSET(G32,-1,0))) -> 3 | H32: =IF(AND($C32<=3,$C32<>0),0,IF($C32=4,OFFSET(H32,-1,0)+1,OFFSET(H32,-1,0))) -> 0 | I32: =IF(AND($C32<=4,$C32<>0),0,IF(AND($C32="S",$W32>0),OFFSET(I32,-1,0)+1,OFFSET(I32,-1,0))) -> 0 | J32: 0 | K32: 0 | L32: F | M32: Serviço | N32: Serviço | O32: 1.1.3.0.5. | P32: SINAPI | Q32: 97633 | R32: DEMOLIÇÃO DE REVESTIMENTO CERÂMICO, DE FORMA MANUAL, SEM REAPROVEITAMENTO. AF_12/2017 | S32: M2 | T32: 69 | X32: Referência: AGETOP - 20115
A33: S | B33: =IF(OR(C33="s",C33=0),OFFSET(B33,-1,0),C33) -> 3 | C33: =IF(OFFSET(C33,-1,0)="L",1,IF(OFFSET(C33,-1,0)=1,2,IF(OR(A33="s",A33=0),"S",IF(AND(OFFSET(C33,-1,0)=2,A33=4),3,IF(AND(OR(OFFSET(C33,-1,0)="s",OFFSET(C33,-1,0)=0),A33<>"s",A33>OFFSET(B33,-1,0)),OFFSET(B33,-1,0),A33))))) -> S | D33: =IF(OR(C33="S",C33=0),0,IF(ISERROR(K33),J33,SMALL(J33:K33,1))) -> 0 | E33: =IF($C33=1,OFFSET(E33,-1,0)+1,OFFSET(E33,-1,0)) -> 1 | F33: =IF($C33=1,0,IF($C33=2,OFFSET(F33,-1,0)+1,OFFSET(F33,-1,0))) -> 1 | G33: =IF(AND($C33<=2,$C33<>0),0,IF($C33=3,OFFSET(G33,-1,0)+1,OFFSET(G33,-1,0))) -> 3 | H33: =IF(AND($C33<=3,$C33<>0),0,IF($C33=4,OFFSET(H33,-1,0)+1,OFFSET(H33,-1,0))) -> 0 | I33: =IF(AND($C33<=4,$C33<>0),0,IF(AND($C33="S",$W33>0),OFFSET(I33,-1,0)+1,OFFSET(I33,-1,0))) -> 0 | J33: 0 | K33: 0 | L33: F | M33: Serviço | N33: Serviço | O33: 1.1.3.0.6. | P33: AGETOP | Q33: 20139 | R33: DEMOLIÇAO DE BANCADAS C/ TRANSP. ATÉ CB. E CARGA | S33: m2 | T33: 1.46
A34: S | B34: 3 | C34: S | D34: 0 | E34: 1 | F34: 1 | G34: 3 | H34: 0 | I34: 0 | J34: 0 | K34: 0 | L34: F | M34: Serviço | N34: Serviço | O34: 1.1.3.0.7. | P34: AGETOP | Q34: 20151 | R34: DEMOL.DIVISÓRIA EM PEDRA/CONC.C/TRANSP.ATE C.B.CARGA | S34: m2 | T34: 14.25
A35: S | B35: 3 | C35: S | D35: 0 | E35: 1 | F35: 1 | G35: 3 | H35: 0 | I35: 0 | J35: 0 | K35: 0 | L35: F | M35: Serviço | N35: Serviço | O35: 1.1.3.0.8. | P35: AGETOP | Q35: 20109 | R35: DEM.PISO CIMENT.SOBRE LASTRO CONC.C/TR.ATE CB. E CARGA | S35: m2 | T35: 14.65
A36: S | B36: 3 | C36: S | D36: 0 | E36: 1 | F36: 1 | G36: 3 | H36: 0 | I36: 0 | J36: 0 | K36: 0 | L36: F | M36: Serviço | N36: Serviço | O36: 1.1.3.0.9. | P36: AGETOP | Q36: 20163 | R36: DEMOLIÇÃO DAS INSTALAÇÕES HIDROSANITÁRIAS E AFINS C/ TRANSP. ATÉ CB. E CARGA | S36: H | T36: 4
A37: S | B37: 3 | C37: S | D37: 0 | E37: 1 | F37: 1 | G37: 3 | H37: 0 | I37: 0 | J37: 0 | K37: 0 | L37: F | M37: Serviço | N37: Serviço | O37: 1.1.3.0.10. | P37: AGETOP | Q37: 20137 | R37: DEMOLIÇAO BACIA SANITARIA C/ TRANSP. ATÉ CB. E CARGA | S37: Un | T37: 8
A38: S | B38: 3 | C38: S | D38: 0 | E38: 1 | F38: 1 | G38: 3 | H38: 0 | I38: 0 | J38: 0 | K38: 0 | L38: F | M38: Serviço | N38: Serviço | O38: 1.1.3.0.11. | P38: AGETOP | Q38: 20140 | R38: DEMOLIÇAO DE VÁLVULA DE DESCARGA C/ TRANSP. ATÉ CB. E CARGA | S38: Un | T38: 8
A39: 3 | B39: 3 | C39: 3 | D39: 13 | E39: 1 | F39: 1 | G39: 4 | H39: 0 | I39: 0 | J39: 60 | K39: 13 | L39: F | M39: Nível 3 | N39: Nível 3 | O39: 1.1.4. | P39: SINAPI | R39: REFORMA GERAL WC MASC | S39: -
A40: =CHOOSE(1+LOG(1+2*(ORÇAMENTO.Nivel="Nível 1")+4*(ORÇAMENTO.Nivel="Nível 2")+8*(ORÇAMENTO.Nivel="Nível 3")+16*(ORÇAMENTO.Nivel="Nível 4")+32*(ORÇAMENTO.Nivel="Serviço"),2),0,1,2,3,4,"S") -> S | B40: =IF(OR(C40="s",C40=0),OFFSET(B40,-1,0),C40) -> 3 | C40: =IF(OFFSET(C40,-1,0)="L",1,IF(OFFSET(C40,-1,0)=1,2,IF(OR(A40="s",A40=0),"S",IF(AND(OFFSET(C40,-1,0)=2,A40=4),3,IF(AND(OR(OFFSET(C40,-1,0)="s",OFFSET(C40,-1,0)=0),A40<>"s",A40>OFFSET(B40,-1,0)),OFFSET(B40,-1,0),A40))))) -> S | D40: =IF(OR(C40="S",C40=0),0,IF(ISERROR(K40),J40,SMALL(J40:K40,1))) -> 0 | E40: =IF($C40=1,OFFSET(E40,-1,0)+1,OFFSET(E40,-1,0)) -> 1 | F40: =IF($C40=1,0,IF($C40=2,OFFSET(F40,-1,0)+1,OFFSET(F40,-1,0))) -> 1 | G40: =IF(AND($C40<=2,$C40<>0),0,IF($C40=3,OFFSET(G40,-1,0)+1,OFFSET(G40,-1,0))) -> 4 | H40: =IF(AND($C40<=3,$C40<>0),0,IF($C40=4,OFFSET(H40,-1,0)+1,OFFSET(H40,-1,0))) -> 0 | I40: =IF(AND($C40<=4,$C40<>0),0,IF(AND($C40="S",$W40>0),OFFSET(I40,-1,0)+1,OFFSET(I40,-1,0))) -> 0 | J40: 0 | K40: 0 | L40: F | M40: Serviço | N40: Serviço | O40: 1.1.4.0.1. | P40: SINAPI | Q40: 97644 | R40: REMOÇÃO DE PORTAS, DE FORMA MANUAL, SEM REAPROVEITAMENTO. AF_12/2017 | S40: M2 | T40: 14 | X40: Referência: AGETOP - 20106
A41: S | B41: 3 | C41: S | D41: 0 | E41: 1 | F41: 1 | G41: 4 | H41: 0 | I41: 0 | J41: 0 | K41: 0 | L41: F | M41: Serviço | N41: Serviço | O41: 1.1.4.0.2. | P41: SINAPI | Q41: 97645 | R41: REMOÇÃO DE JANELAS, DE FORMA MANUAL, SEM REAPROVEITAMENTO. AF_12/2017 | S41: M2 | T41: 1.5 | X41: Referência: AGETOP - 20106
A42: S | B42: 3 | C42: S | D42: 0 | E42: 1 | F42: 1 | G42: 4 | H42: 0 | I42: 0 | J42: 0 | K42: 0 | L42: F | M42: Serviço | N42: Serviço | O42: 1.1.4.0.3. | P42: SINAPI | Q42: 97622 | R42: DEMOLIÇÃO DE ALVENARIA DE BLOCO FURADO, DE FORMA MANUAL, SEM REAPROVEITAMENTO. AF_12/2017 | S42: M3 | T42: 0.22 | X42: Referência: AGETOP - 20118
A43: S | B43: 3 | C43: S | D43: 0 | E43: 1 | F43: 1 | G43: 4 | H43: 0 | I43: 0 | J43: 0 | K43: 0 | L43: F | M43: Serviço | N43: Serviço | O43: 1.1.4.0.4. | P43: AGETOP | Q43: 20134 | R43: DEM.DE FORRO GESSO C/TRANSP.ATE CB.E CARGA | S43: m2 | T43: 15.04
A44: S | B44: 3 | C44: S | D44: 0 | E44: 1 | F44: 1 | G44: 4 | H44: 0 | I44: 0 | J44: 0 | K44: 0 | L44: F | M44: Serviço | N44: Serviço | O44: 1.1.4.0.5. | P44: SINAPI | Q44: 97633 | R44: DEMOLIÇÃO DE REVESTIMENTO CERÂMICO, DE FORMA MANUAL, SEM REAPROVEITAMENTO. AF_12/2017 | S44: M2 | T44: 69 | X44: Referência: AGETOP - 20115
A45: S | B45: 3 | C45: S | D45: 0 | E45: 1 | F45: 1 | G45: 4 | H45: 0 | I45: 0 | J45: 0 | K45: 0 | L45: F | M45: Serviço | N45: Serviço | O45: 1.1.4.0.6. | P45: AGETOP | Q45: 20139 | R45: DEMOLIÇAO DE BANCADAS C/ TRANSP. ATÉ CB. E CARGA | S45: m2 | T45: 1.46
A46: S | B46: 3 | C46: S | D46: 0 | E46: 1 | F46: 1 | G46: 4 | H46: 0 | I46: 0 | J46: 0 | K46: 0 | L46: F | M46: Serviço | N46: Serviço | O46: 1.1.4.0.7. | P46: AGETOP | Q46: 20151 | R46: DEMOL.DIVISÓRIA EM PEDRA/CONC.C/TRANSP.ATE C.B.CARGA | S46: m2 | T46: 14.25
A47: S | B47: 3 | C47: S | D47: 0 | E47: 1 | F47: 1 | G47: 4 | H47: 0 | I47: 0 | J47: 0 | K47: 0 | L47: F | M47: Serviço | N47: Serviço | O47: 1.1.4.0.8. | P47: AGETOP | Q47: 20109 | R47: DEM.PISO CIMENT.SOBRE LASTRO CONC.C/TR.ATE CB. E CARGA | S47: m2 | T47: 14.65
A48: S | B48: 3 | C48: S | D48: 0 | E48: 1 | F48: 1 | G48: 4 | H48: 0 | I48: 0 | J48: 0 | K48: 0 | L48: F | M48: Serviço | N48: Serviço | O48: 1.1.4.0.9. | P48: AGETOP | Q48: 20163 | R48: DEMOLIÇÃO DAS INSTALAÇÕES HIDROSANITÁRIAS E AFINS C/ TRANSP. ATÉ CB. E CARGA | S48: H | T48: 4
A49: S | B49: =IF(OR(C49="s",C49=0),OFFSET(B49,-1,0),C49) -> 3 | C49: =IF(OFFSET(C49,-1,0)="L",1,IF(OFFSET(C49,-1,0)=1,2,IF(OR(A49="s",A49=0),"S",IF(AND(OFFSET(C49,-1,0)=2,A49=4),3,IF(AND(OR(OFFSET(C49,-1,0)="s",OFFSET(C49,-1,0)=0),A49<>"s",A49>OFFSET(B49,-1,0)),OFFSET(B49,-1,0),A49))))) -> S | D49: =IF(OR(C49="S",C49=0),0,IF(ISERROR(K49),J49,SMALL(J49:K49,1))) -> 0 | E49: =IF($C49=1,OFFSET(E49,-1,0)+1,OFFSET(E49,-1,0)) -> 1 | F49: =IF($C49=1,0,IF($C49=2,OFFSET(F49,-1,0)+1,OFFSET(F49,-1,0))) -> 1 | G49: =IF(AND($C49<=2,$C49<>0),0,IF($C49=3,OFFSET(G49,-1,0)+1,OFFSET(G49,-1,0))) -> 4 | H49: =IF(AND($C49<=3,$C49<>0),0,IF($C49=4,OFFSET(H49,-1,0)+1,OFFSET(H49,-1,0))) -> 0 | I49: =IF(AND($C49<=4,$C49<>0),0,IF(AND($C49="S",$W49>0),OFFSET(I49,-1,0)+1,OFFSET(I49,-1,0))) -> 0 | J49: 0 | K49: 0 | L49: F | M49: Serviço | N49: Serviço | O49: 1.1.4.0.10. | P49: AGETOP | Q49: 20137 | R49: DEMOLIÇAO BACIA SANITARIA C/ TRANSP. ATÉ CB. E CARGA | S49: Un | T49: 8
A50: S | B50: =IF(OR(C50="s",C50=0),OFFSET(B50,-1,0),C50) -> 3 | C50: =IF(OFFSET(C50,-1,0)="L",1,IF(OFFSET(C50,-1,0)=1,2,IF(OR(A50="s",A50=0),"S",IF(AND(OFFSET(C50,-1,0)=2,A50=4),3,IF(AND(OR(OFFSET(C50,-1,0)="s",OFFSET(C50,-1,0)=0),A50<>"s",A50>OFFSET(B50,-1,0)),OFFSET(B50,-1,0),A50))))) -> S | D50: =IF(OR(C50="S",C50=0),0,IF(ISERROR(K50),J50,SMALL(J50:K50,1))) -> 0 | E50: =IF($C50=1,OFFSET(E50,-1,0)+1,OFFSET(E50,-1,0)) -> 1 | F50: =IF($C50=1,0,IF($C50=2,OFFSET(F50,-1,0)+1,OFFSET(F50,-1,0))) -> 1 | G50: =IF(AND($C50<=2,$C50<>0),0,IF($C50=3,OFFSET(G50,-1,0)+1,OFFSET(G50,-1,0))) -> 4 | H50: =IF(AND($C50<=3,$C50<>0),0,IF($C50=4,OFFSET(H50,-1,0)+1,OFFSET(H50,-1,0))) -> 0 | I50: =IF(AND($C50<=4,$C50<>0),0,IF(AND($C50="S",$W50>0),OFFSET(I50,-1,0)+1,OFFSET(I50,-1,0))) -> 0 | J50: 0 | K50: 0 | L50: F | M50: Serviço | N50: Serviço | O50: 1.1.4.0.11. | P50: AGETOP | Q50: 20140 | R50: DEMOLIÇAO DE VÁLVULA DE DESCARGA C/ TRANSP. ATÉ CB. E CARGA | S50: Un | T50: 8
A51: S | B51: =IF(OR(C51="s",C51=0),OFFSET(B51,-1,0),C51) -> 3 | C51: =IF(OFFSET(C51,-1,0)="L",1,IF(OFFSET(C51,-1,0)=1,2,IF(OR(A51="s",A51=0),"S",IF(AND(OFFSET(C51,-1,0)=2,A51=4),3,IF(AND(OR(OFFSET(C51,-1,0)="s",OFFSET(C51,-1,0)=0),A51<>"s",A51>OFFSET(B51,-1,0)),OFFSET(B51,-1,0),A51))))) -> S | D51: =IF(OR(C51="S",C51=0),0,IF(ISERROR(K51),J51,SMALL(J51:K51,1))) -> 0 | E51: =IF($C51=1,OFFSET(E51,-1,0)+1,OFFSET(E51,-1,0)) -> 1 | F51: =IF($C51=1,0,IF($C51=2,OFFSET(F51,-1,0)+1,OFFSET(F51,-1,0))) -> 1 | G51: =IF(AND($C51<=2,$C51<>0),0,IF($C51=3,OFFSET(G51,-1,0)+1,OFFSET(G51,-1,0))) -> 4 | H51: =IF(AND($C51<=3,$C51<>0),0,IF($C51=4,OFFSET(H51,-1,0)+1,OFFSET(H51,-1,0))) -> 0 | I51: =IF(AND($C51<=4,$C51<>0),0,IF(AND($C51="S",$W51>0),OFFSET(I51,-1,0)+1,OFFSET(I51,-1,0))) -> 0 | J51: 0 | K51: 0 | L51: F | M51: Serviço | N51: Serviço | O51: 1.1.4.0.12. | P51: AGETOP | Q51: 20146 | R51: DEMOLIÇÃO DE MICTÓRIO C/ TRANSP. ATÉ CB. E CARGA | S51: Un | T51: 3
A52: 3 | B52: =IF(OR(C52="s",C52=0),OFFSET(B52,-1,0),C52) -> 3 | C52: =IF(OFFSET(C52,-1,0)="L",1,IF(OFFSET(C52,-1,0)=1,2,IF(OR(A52="s",A52=0),"S",IF(AND(OFFSET(C52,-1,0)=2,A52=4),3,IF(AND(OR(OFFSET(C52,-1,0)="s",OFFSET(C52,-1,0)=0),A52<>"s",A52>OFFSET(B52,-1,0)),OFFSET(B52,-1,0),A52))))) -> 3 | D52: =IF(OR(C52="S",C52=0),0,IF(ISERROR(K52),J52,SMALL(J52:K52,1))) -> 7 | E52: =IF($C52=1,OFFSET(E52,-1,0)+1,OFFSET(E52,-1,0)) -> 1 | F52: =IF($C52=1,0,IF($C52=2,OFFSET(F52,-1,0)+1,OFFSET(F52,-1,0))) -> 1 | G52: =IF(AND($C52<=2,$C52<>0),0,IF($C52=3,OFFSET(G52,-1,0)+1,OFFSET(G52,-1,0))) -> 5 | H52: =IF(AND($C52<=3,$C52<>0),0,IF($C52=4,OFFSET(H52,-1,0)+1,OFFSET(H52,-1,0))) -> 0 | I52: =IF(AND($C52<=4,$C52<>0),0,IF(AND($C52="S",$W52>0),OFFSET(I52,-1,0)+1,OFFSET(I52,-1,0))) -> 0 | J52: 47 | K52: 7 | L52: F | M52: Nível 3 | N52: Nível 3 | O52: 1.1.5. | P52: SINAPI | R52: REFORMA WC FUNCIONÁRIOS | S52: -
A53: S | B53: 3 | C53: S | D53: 0 | E53: 1 | F53: 1 | G53: 5 | H53: 0 | I53: 0 | J53: 0 | K53: 0 | L53: F | M53: Serviço | N53: Serviço | O53: 1.1.5.0.1. | P53: AGETOP | Q53: 20109 | R53: DEM.PISO CIMENT.SOBRE LASTRO CONC.C/TR.ATE CB. E CARGA | S53: m2 | T53: 4.12
A54: S | B54: 3 | C54: S | D54: 0 | E54: 1 | F54: 1 | G54: 5 | H54: 0 | I54: 0 | J54: 0 | K54: 0 | L54: F | M54: Serviço | N54: Serviço | O54: 1.1.5.0.2. | P54: SINAPI | Q54: 97633 | R54: DEMOLIÇÃO DE REVESTIMENTO CERÂMICO, DE FORMA MANUAL, SEM REAPROVEITAMENTO. AF_12/2017 | S54: M2 | T54: 21.42 | X54: Referência: AGETOP - 20115
A55: S | B55: 3 | C55: S | D55: 0 | E55: 1 | F55: 1 | G55: 5 | H55: 0 | I55: 0 | J55: 0 | K55: 0 | L55: F | M55: Serviço | N55: Serviço | O55: 1.1.5.0.3. | P55: SINAPI | Q55: 97644 | R55: REMOÇÃO DE PORTAS, DE FORMA MANUAL, SEM REAPROVEITAMENTO. AF_12/2017 | S55: M2 | T55: 2.94 | X55: Referência: AGETOP - 20106
A56: S | B56: 3 | C56: S | D56: 0 | E56: 1 | F56: 1 | G56: 5 | H56: 0 | I56: 0 | J56: 0 | K56: 0 | L56: F | M56: Serviço | N56: Serviço | O56: 1.1.5.0.4. | P56: AGETOP | Q56: 20137 | R56: DEMOLIÇAO BACIA SANITARIA C/ TRANSP. ATÉ CB. E CARGA | S56: Un | T56: 2
A57: S | B57: 3 | C57: S | D57: 0 | E57: 1 | F57: 1 | G57: 5 | H57: 0 | I57: 0 | J57: 0 | K57: 0 | L57: F | M57: Serviço | N57: Serviço | O57: 1.1.5.0.5. | P57: AGETOP | Q57: 20141 | R57: DEMOLIÇAO DE CAIXA DESCARGA EXTERNA C/ TRANSP. ATÉ CB. E CARGA | S57: Un | T57: 2
A58: S | B58: 3 | C58: S | D58: 0 | E58: 1 | F58: 1 | G58: 5 | H58: 0 | I58: 0 | J58: 0 | K58: 0 | L58: F | M58: Serviço | N58: Serviço | O58: 1.1.5.0.6. | P58: AGETOP | Q58: 20138 | R58: DEMOLIÇAO DE LAVATÓRIO C/ TRANSP. ATÉ CB. E CARGA | S58: Un | T58: 2
A59: 3 | B59: 3 | C59: 3 | D59: 2 | E59: 1 | F59: 1 | G59: 6 | H59: 0 | I59: 0 | J59: 40 | K59: 2 | L59: F | M59: Nível 3 | N59: Nível 3 | O59: 1.1.6. | P59: SINAPI | R59: LOCAL DE SAÍDA DOS ALUNOS | S59: -
A60: S | B60: 3 | C60: S | D60: 0 | E60: 1 | F60: 1 | G60: 6 | H60: 0 | I60: 0 | J60: 0 | K60: 0 | L60: F | M60: Serviço | N60: Serviço | O60: 1.1.6.0.1. | P60: AGETOP | Q60: 20109 | R60: DEM.PISO CIMENT.SOBRE LASTRO CONC.C/TR.ATE CB. E CARGA | S60: m2 | T60: 80.21
A61: =CHOOSE(1+LOG(1+2*(ORÇAMENTO.Nivel="Nível 1")+4*(ORÇAMENTO.Nivel="Nível 2")+8*(ORÇAMENTO.Nivel="Nível 3")+16*(ORÇAMENTO.Nivel="Nível 4")+32*(ORÇAMENTO.Nivel="Serviço"),2),0,1,2,3,4,"S") -> 3 | B61: 3 | C61: 3 | D61: 2 | E61: 1 | F61: 1 | G61: 7 | H61: 0 | I61: 0 | J61: 38 | K61: 2 | L61: F | M61: Nível 3 | N61: Nível 3 | O61: 1.1.7. | P61: SINAPI | R61: SALAS DE AULA / LAB. / BIBLIO. / AUDIT. | S61: -
A62: S | B62: 3 | C62: S | D62: 0 | E62: 1 | F62: 1 | G62: 7 | H62: 0 | I62: 0 | J62: 0 | K62: 0 | L62: F | M62: Serviço | N62: Serviço | O62: 1.1.7.0.1. | P62: SINAPI | Q62: 97645 | R62: REMOÇÃO DE JANELAS, DE FORMA MANUAL, SEM REAPROVEITAMENTO. AF_12/2017 | S62: M2 | T62: 168.13 | X62: Referência: AGETOP - 20106
A63: 3 | B63: 3 | C63: 3 | D63: 2 | E63: 1 | F63: 1 | G63: 8 | H63: 0 | I63: 0 | J63: 36 | K63: 2 | L63: F | M63: Nível 3 | N63: Nível 3 | O63: 1.1.8. | P63: SINAPI | R63: REFORMA QUADRA COBERTA | S63: -
A64: S | B64: 3 | C64: S | D64: 0 | E64: 1 | F64: 1 | G64: 8 | H64: 0 | I64: 0 | J64: 0 | K64: 0 | L64: F | M64: Serviço | N64: Serviço | O64: 1.1.8.0.1. | P64: AGETOP | Q64: 20100 | R64: DEMOLIÇÃO - COBERTURA TELHA METÁLICA C/ TRANSP. ATÉ CB. E CARGA | S64: m2 | T64: 406.97
A65: 3 | B65: 3 | C65: 3 | D65: 2 | E65: 1 | F65: 1 | G65: 9 | H65: 0 | I65: 0 | J65: 34 | K65: 2 | L65: F | M65: Nível 3 | N65: Nível 3 | O65: 1.1.9. | P65: SINAPI | R65: SALA DO CAF | S65: -
A66: S | B66: 3 | C66: S | D66: 0 | E66: 1 | F66: 1 | G66: 9 | H66: 0 | I66: 0 | J66: 0 | K66: 0 | L66: F | M66: Serviço | N66: Serviço | O66: 1.1.9.0.1. | P66: SINAPI | Q66: 97622 | R66: DEMOLIÇÃO DE ALVENARIA DE BLOCO FURADO, DE FORMA MANUAL, SEM REAPROVEITAMENTO. AF_12/2017 | S66: M3 | T66: 1.62 | X66: Referência: AGETOP - 20118
A67: 3 | B67: 3 | C67: 3 | D67: 2 | E67: 1 | F67: 1 | G67: 10 | H67: 0 | I67: 0 | J67: 32 | K67: 2 | L67: F | M67: Nível 3 | N67: Nível 3 | O67: 1.1.10. | P67: SINAPI | R67: PINTURA GERAL | S67: -
A68: S | B68: 3 | C68: S | D68: 0 | E68: 1 | F68: 1 | G68: 10 | H68: 0 | I68: 0 | J68: 0 | K68: 0 | L68: F | M68: Serviço | N68: Serviço | O68: 1.1.10.0.1. | P68: AGETOP | Q68: 20117 | R68: DEMOL.REVEST.C/ARGAMASSA C/TR.ATE CB.E CARGA | S68: m2 | T68: 100.8
A69: 3 | B69: 3 | C69: 3 | D69: 2 | E69: 1 | F69: 1 | G69: 11 | H69: 0 | I69: 0 | J69: 30 | K69: 2 | L69: F | M69: Nível 3 | N69: Nível 3 | O69: 1.1.11. | P69: SINAPI | R69: CONSTRUÇÃO WC ACESSÍVEL | S69: -
A70: S | B70: 3 | C70: S | D70: 0 | E70: 1 | F70: 1 | G70: 11 | H70: 0 | I70: 0 | J70: 0 | K70: 0 | L70: F | M70: Serviço | N70: Serviço | O70: 1.1.11.0.1. | P70: AGETOP | Q70: 20109 | R70: DEM.PISO CIMENT.SOBRE LASTRO CONC.C/TR.ATE CB. E CARGA | S70: m2 | T70: 11.6
A71: 3 | B71: =IF(OR(C71="s",C71=0),OFFSET(B71,-1,0),C71) -> 3 | C71: =IF(OFFSET(C71,-1,0)="L",1,IF(OFFSET(C71,-1,0)=1,2,IF(OR(A71="s",A71=0),"S",IF(AND(OFFSET(C71,-1,0)=2,A71=4),3,IF(AND(OR(OFFSET(C71,-1,0)="s",OFFSET(C71,-1,0)=0),A71<>"s",A71>OFFSET(B71,-1,0)),OFFSET(B71,-1,0),A71))))) -> 3 | D71: =IF(OR(C71="S",C71=0),0,IF(ISERROR(K71),J71,SMALL(J71:K71,1))) -> 10 | E71: =IF($C71=1,OFFSET(E71,-1,0)+1,OFFSET(E71,-1,0)) -> 1 | F71: =IF($C71=1,0,IF($C71=2,OFFSET(F71,-1,0)+1,OFFSET(F71,-1,0))) -> 1 | G71: =IF(AND($C71<=2,$C71<>0),0,IF($C71=3,OFFSET(G71,-1,0)+1,OFFSET(G71,-1,0))) -> 12 | H71: =IF(AND($C71<=3,$C71<>0),0,IF($C71=4,OFFSET(H71,-1,0)+1,OFFSET(H71,-1,0))) -> 0 | I71: =IF(AND($C71<=4,$C71<>0),0,IF(AND($C71="S",$W71>0),OFFSET(I71,-1,0)+1,OFFSET(I71,-1,0))) -> 0 | J71: 28 | K71: 10 | L71: F | M71: Nível 3 | N71: Nível 3 | O71: 1.1.12. | P71: SINAPI | R71: REFORMA E AMPLIAÇÃO DA COZINHA | S71: -
A72: S | B72: =IF(OR(C72="s",C72=0),OFFSET(B72,-1,0),C72) -> 3 | C72: =IF(OFFSET(C72,-1,0)="L",1,IF(OFFSET(C72,-1,0)=1,2,IF(OR(A72="s",A72=0),"S",IF(AND(OFFSET(C72,-1,0)=2,A72=4),3,IF(AND(OR(OFFSET(C72,-1,0)="s",OFFSET(C72,-1,0)=0),A72<>"s",A72>OFFSET(B72,-1,0)),OFFSET(B72,-1,0),A72))))) -> S | D72: =IF(OR(C72="S",C72=0),0,IF(ISERROR(K72),J72,SMALL(J72:K72,1))) -> 0 | E72: =IF($C72=1,OFFSET(E72,-1,0)+1,OFFSET(E72,-1,0)) -> 1 | F72: =IF($C72=1,0,IF($C72=2,OFFSET(F72,-1,0)+1,OFFSET(F72,-1,0))) -> 1 | G72: =IF(AND($C72<=2,$C72<>0),0,IF($C72=3,OFFSET(G72,-1,0)+1,OFFSET(G72,-1,0))) -> 12 | H72: =IF(AND($C72<=3,$C72<>0),0,IF($C72=4,OFFSET(H72,-1,0)+1,OFFSET(H72,-1,0))) -> 0 | I72: =IF(AND($C72<=4,$C72<>0),0,IF(AND($C72="S",$W72>0),OFFSET(I72,-1,0)+1,OFFSET(I72,-1,0))) -> 0 | J72: 0 | K72: 0 | L72: F | M72: Serviço | N72: Serviço | O72: 1.1.12.0.1. | P72: SINAPI | Q72: 97622 | R72: DEMOLIÇÃO DE ALVENARIA DE BLOCO FURADO, DE FORMA MANUAL, SEM REAPROVEITAMENTO. AF_12/2017 | S72: M3 | T72: 3.12 | X72: Referência: AGETOP - 20118
A73: S | B73: 3 | C73: S | D73: 0 | E73: 1 | F73: 1 | G73: 12 | H73: 0 | I73: 0 | J73: 0 | K73: 0 | L73: F | M73: Serviço | N73: Serviço | O73: 1.1.12.0.2. | P73: AGETOP | Q73: 20121 | R73: DEM. MANUAL EM CONCR.SIMPLES C/TR.ATE CB.E CARGA (O.C.) | S73: m3 | T73: 0.09
A74: S | B74: 3 | C74: S | D74: 0 | E74: 1 | F74: 1 | G74: 12 | H74: 0 | I74: 0 | J74: 0 | K74: 0 | L74: F | M74: Serviço | N74: Serviço | O74: 1.1.12.0.3. | P74: SINAPI | Q74: 97644 | R74: REMOÇÃO DE PORTAS, DE FORMA MANUAL, SEM REAPROVEITAMENTO. AF_12/2017 | S74: M2 | T74: 7.6 | X74: Referência: AGETOP - 20106
A75: S | B75: 3 | C75: S | D75: 0 | E75: 1 | F75: 1 | G75: 12 | H75: 0 | I75: 0 | J75: 0 | K75: 0 | L75: F | M75: Serviço | N75: Serviço | O75: 1.1.12.0.4. | P75: SINAPI | Q75: 97633 | R75: DEMOLIÇÃO DE REVESTIMENTO CERÂMICO, DE FORMA MANUAL, SEM REAPROVEITAMENTO. AF_12/2017 | S75: M2 | T75: 41.93 | X75: Referência: AGETOP - 20115
A76: S | B76: 3 | C76: S | D76: 0 | E76: 1 | F76: 1 | G76: 12 | H76: 0 | I76: 0 | J76: 0 | K76: 0 | L76: F | M76: Serviço | N76: Serviço | O76: 1.1.12.0.5. | P76: AGETOP | Q76: 20111 | R76: DEM.PISO CERAM.SOBRE LASTRO CONC.C/TR.CB.E CARGA | S76: m2 | T76: 4.32
A77: S | B77: 3 | C77: S | D77: 0 | E77: 1 | F77: 1 | G77: 12 | H77: 0 | I77: 0 | J77: 0 | K77: 0 | L77: F | M77: Serviço | N77: Serviço | O77: 1.1.12.0.6. | P77: SINAPI | Q77: 97645 | R77: REMOÇÃO DE JANELAS, DE FORMA MANUAL, SEM REAPROVEITAMENTO. AF_12/2017 | S77: M2 | T77: 7.8 | X77: Referência: AGETOP - 20106
A78: S | B78: 3 | C78: S | D78: 0 | E78: 1 | F78: 1 | G78: 12 | H78: 0 | I78: 0 | J78: 0 | K78: 0 | L78: F | M78: Serviço | N78: Serviço | O78: 1.1.12.0.7. | P78: AGETOP | Q78: 20163 | R78: DEMOLIÇÃO DAS INSTALAÇÕES HIDROSANITÁRIAS E AFINS C/ TRANSP. ATÉ CB. E CARGA | S78: H | T78: 6
A79: S | B79: 3 | C79: S | D79: 0 | E79: 1 | F79: 1 | G79: 12 | H79: 0 | I79: 0 | J79: 0 | K79: 0 | L79: F | M79: Serviço | N79: Serviço | O79: 1.1.12.0.8. | P79: AGETOP | Q79: 72080 | R79: POSTE/TRAFO - CAMINHÃO MUNCK 12 TON. (MÍNIMO 4H/DIA) | S79: H | T79: 4
A80: S | B80: 3 | C80: S | D80: 0 | E80: 1 | F80: 1 | G80: 12 | H80: 0 | I80: 0 | J80: 0 | K80: 0 | L80: F | M80: Serviço | N80: Serviço | O80: 1.1.12.0.9. | P80: AGETOP | Q80: 20139 | R80: DEMOLIÇAO DE BANCADAS C/ TRANSP. ATÉ CB. E CARGA | S80: m2 | T80: 1.7
A81: 3 | B81: =IF(OR(C81="s",C81=0),OFFSET(B81,-1,0),C81) -> 3 | C81: =IF(OFFSET(C81,-1,0)="L",1,IF(OFFSET(C81,-1,0)=1,2,IF(OR(A81="s",A81=0),"S",IF(AND(OFFSET(C81,-1,0)=2,A81=4),3,IF(AND(OR(OFFSET(C81,-1,0)="s",OFFSET(C81,-1,0)=0),A81<>"s",A81>OFFSET(B81,-1,0)),OFFSET(B81,-1,0),A81))))) -> 3 | D81: =IF(OR(C81="S",C81=0),0,IF(ISERROR(K81),J81,SMALL(J81:K81,1))) -> 3 | E81: =IF($C81=1,OFFSET(E81,-1,0)+1,OFFSET(E81,-1,0)) -> 1 | F81: =IF($C81=1,0,IF($C81=2,OFFSET(F81,-1,0)+1,OFFSET(F81,-1,0))) -> 1 | G81: =IF(AND($C81<=2,$C81<>0),0,IF($C81=3,OFFSET(G81,-1,0)+1,OFFSET(G81,-1,0))) -> 13 | H81: =IF(AND($C81<=3,$C81<>0),0,IF($C81=4,OFFSET(H81,-1,0)+1,OFFSET(H81,-1,0))) -> 0 | I81: =IF(AND($C81<=4,$C81<>0),0,IF(AND($C81="S",$W81>0),OFFSET(I81,-1,0)+1,OFFSET(I81,-1,0))) -> 0 | J81: 18 | K81: 3 | L81: F | M81: Nível 3 | N81: Nível 3 | O81: 1.1.13. | P81: SINAPI | R81: INSTALAÇÃO PLATAFORMA ELEVATÓRIA | S81: -
A82: S | B82: 3 | C82: S | D82: 0 | E82: 1 | F82: 1 | G82: 13 | H82: 0 | I82: 0 | J82: 0 | K82: 0 | L82: F | M82: Serviço | N82: Serviço | O82: 1.1.13.0.1. | P82: AGETOP | Q82: 20109 | R82: DEM.PISO CIMENT.SOBRE LASTRO CONC.C/TR.ATE CB. E CARGA | S82: m2 | T82: 3.5
A83: S | B83: 3 | C83: S | D83: 0 | E83: 1 | F83: 1 | G83: 13 | H83: 0 | I83: 0 | J83: =IF(OR($C83="S",$C83=0),0,MATCH(0,OFFSET($D83,1,$C83,ROW($C$839)-ROW($C83)),0)) -> 0 | K83: =IF(OR($C83="S",$C83=0),0,MATCH(OFFSET($D83,0,$C83)+1,OFFSET($D83,1,$C83,ROW($C$839)-ROW($C83)),0)) -> 0 | L83: F | M83: Serviço | N83: Serviço | O83: 1.1.13.0.2. | P83: COMPOSIÇÃO | Q83: COMP 010_SEE | R83: DEMOLIÇÃO DE GRADE/GRELHA/CORRIMÃO/GUARDA CORPO - METÁLICO | S83: M2 | T83: 1.92
A84: 3 | B84: 3 | C84: 3 | D84: 5 | E84: 1 | F84: 1 | G84: 14 | H84: 0 | I84: 0 | J84: 15 | K84: 5 | L84: F | M84: Nível 3 | N84: Nível 3 | O84: 1.1.14. | P84: SINAPI | R84: ACESSIBILIDADE | S84: -
A85: S | B85: 3 | C85: S | D85: 0 | E85: 1 | F85: 1 | G85: 14 | H85: 0 | I85: 0 | J85: 0 | K85: 0 | L85: F | M85: Serviço | N85: Serviço | O85: 1.1.14.0.1. | P85: COMPOSIÇÃO | Q85: COMP 010_SEE | R85: DEMOLIÇÃO DE GRADE/GRELHA/CORRIMÃO/GUARDA CORPO - METÁLICO | S85: M2 | T85: 0.39
A86: S | B86: 3 | C86: S | D86: 0 | E86: 1 | F86: 1 | G86: 14 | H86: 0 | I86: 0 | J86: 0 | K86: 0 | L86: F | M86: Serviço | N86: Serviço | O86: 1.1.14.0.2. | P86: AGETOP | Q86: 20109 | R86: DEM.PISO CIMENT.SOBRE LASTRO CONC.C/TR.ATE CB. E CARGA | S86: m2 | T86: 97.6
A87: S | B87: 3 | C87: S | D87: 0 | E87: 1 | F87: 1 | G87: 14 | H87: 0 | I87: 0 | J87: 0 | K87: 0 | L87: F | M87: Serviço | N87: Serviço | O87: 1.1.14.0.3. | P87: AGETOP | Q87: 20143 | R87: DEM. MEIO FIO SEM REAPROV.C/TR.ATE C B E CARGA | S87: m | T87: 19.5
A88: S | B88: =IF(OR(C88="s",C88=0),OFFSET(B88,-1,0),C88) -> 3 | C88: =IF(OFFSET(C88,-1,0)="L",1,IF(OFFSET(C88,-1,0)=1,2,IF(OR(A88="s",A88=0),"S",IF(AND(OFFSET(C88,-1,0)=2,A88=4),3,IF(AND(OR(OFFSET(C88,-1,0)="s",OFFSET(C88,-1,0)=0),A88<>"s",A88>OFFSET(B88,-1,0)),OFFSET(B88,-1,0),A88))))) -> S | D88: =IF(OR(C88="S",C88=0),0,IF(ISERROR(K88),J88,SMALL(J88:K88,1))) -> 0 | E88: =IF($C88=1,OFFSET(E88,-1,0)+1,OFFSET(E88,-1,0)) -> 1 | F88: =IF($C88=1,0,IF($C88=2,OFFSET(F88,-1,0)+1,OFFSET(F88,-1,0))) -> 1 | G88: =IF(AND($C88<=2,$C88<>0),0,IF($C88=3,OFFSET(G88,-1,0)+1,OFFSET(G88,-1,0))) -> 14 | H88: =IF(AND($C88<=3,$C88<>0),0,IF($C88=4,OFFSET(H88,-1,0)+1,OFFSET(H88,-1,0))) -> 0 | I88: =IF(AND($C88<=4,$C88<>0),0,IF(AND($C88="S",$W88>0),OFFSET(I88,-1,0)+1,OFFSET(I88,-1,0))) -> 0 | J88: 0 | K88: 0 | L88: F | M88: Serviço | N88: Serviço | O88: 1.1.14.0.4. | P88: SINAPI | Q88: 73859/2 | R88: CAPINA E LIMPEZA MANUAL DE TERRENO | S88: M2 | T88: 1084.78
A89: =CHOOSE(1+LOG(1+2*(ORÇAMENTO.Nivel="Nível 1")+4*(ORÇAMENTO.Nivel="Nível 2")+8*(ORÇAMENTO.Nivel="Nível 3")+16*(ORÇAMENTO.Nivel="Nível 4")+32*(ORÇAMENTO.Nivel="Serviço"),2),0,1,2,3,4,"S") -> 3 | B89: 3 | C89: 3 | D89: 2 | E89: 1 | F89: 1 | G89: 15 | H89: 0 | I89: 0 | J89: 10 | K89: 2 | L89: F | M89: Nível 3 | N89: Nível 3 | O89: 1.1.15. | P89: SINAPI | R89: CENTRAL DE GÁS | S89: -
A90: S | B90: 3 | C90: S | D90: 0 | E90: 1 | F90: 1 | G90: 15 | H90: 0 | I90: 0 | J90: 0 | K90: 0 | L90: F | M90: Serviço | N90: Serviço | O90: 1.1.15.0.1. | P90: AGETOP | Q90: 20121 | R90: DEM. MANUAL EM CONCR.SIMPLES C/TR.ATE CB.E CARGA (O.C.) | S90: m3 | T90: 0.19
A91: 3 | B91: 3 | C91: 3 | D91: 2 | E91: 1 | F91: 1 | G91: 16 | H91: 0 | I91: 0 | J91: 8 | K91: 2 | L91: F | M91: Nível 3 | N91: Nível 3 | O91: 1.1.16. | P91: SINAPI | R91: INST. HIDROSSANITÁRIAS | S91: -
A92: S | B92: 3 | C92: S | D92: 0 | E92: 1 | F92: 1 | G92: 16 | H92: 0 | I92: 0 | J92: 0 | K92: 0 | L92: F | M92: Serviço | N92: Serviço | O92: 1.1.16.0.1. | P92: AGETOP | Q92: 20121 | R92: DEM. MANUAL EM CONCR.SIMPLES C/TR.ATE CB.E CARGA (O.C.) | S92: m3 | T92: 3
A93: 3 | B93: 3 | C93: 3 | D93: 2 | E93: 1 | F93: 1 | G93: 17 | H93: 0 | I93: 0 | J93: 6 | K93: 2 | L93: F | M93: Nível 3 | N93: Nível 3 | O93: 1.1.17. | P93: SINAPI | R93: INST. DE INCÊNDIO | S93: -
A94: S | B94: 3 | C94: S | D94: 0 | E94: 1 | F94: 1 | G94: 17 | H94: 0 | I94: 0 | J94: 0 | K94: 0 | L94: F | M94: Serviço | N94: Serviço | O94: 1.1.17.0.1. | P94: AGETOP | Q94: 20121 | R94: DEM. MANUAL EM CONCR.SIMPLES C/TR.ATE CB.E CARGA (O.C.) | S94: m3 | T94: 0.87
A95: 3 | B95: 3 | C95: 3 | D95: 2 | E95: 1 | F95: 1 | G95: 18 | H95: 0 | I95: 0 | J95: 4 | K95: 2 | L95: F | M95: Nível 3 | N95: Nível 3 | O95: 1.1.18. | P95: SINAPI | R95: INST. ELÉTRICAS | S95: -
A96: S | B96: 3 | C96: S | D96: 0 | E96: 1 | F96: 1 | G96: 18 | H96: 0 | I96: 0 | J96: 0 | K96: 0 | L96: F | M96: Serviço | N96: Serviço | O96: 1.1.18.0.1. | P96: AGETOP | Q96: 20162 | R96: DEMOLIÇÃO DAS INSTALAÇÕES ELÉTRICAS E AFINS C/ TRANSP. ATÉ CB. E CARGA | S96: H | T96: 40
A97: 3 | B97: 3 | C97: 3 | D97: 2 | E97: 1 | F97: 1 | G97: 19 | H97: 0 | I97: 0 | J97: 2 | L97: F | M97: Nível 3 | N97: Nível 3 | O97: 1.1.19. | P97: SINAPI | R97: OUTROS | S97: -
A98: =CHOOSE(1+LOG(1+2*(ORÇAMENTO.Nivel="Nível 1")+4*(ORÇAMENTO.Nivel="Nível 2")+8*(ORÇAMENTO.Nivel="Nível 3")+16*(ORÇAMENTO.Nivel="Nível 4")+32*(ORÇAMENTO.Nivel="Serviço"),2),0,1,2,3,4,"S") -> S | B98: 3 | C98: S | D98: 0 | E98: 1 | F98: 1 | G98: 19 | H98: 0 | I98: 0 | J98: 0 | K98: 0 | L98: F | M98: Serviço | N98: Serviço | O98: 1.1.19.0.1. | P98: SINAPI | Q98: 74209/1 | R98: PLACA DE OBRA EM CHAPA DE ACO GALVANIZADO | S98: M2 | T98: 7.5 | X98: Referência: AGETOP - 21301
A99: 2 | B99: =IF(OR(C99="s",C99=0),OFFSET(B99,-1,0),C99) -> 2 | C99: =IF(OFFSET(C99,-1,0)="L",1,IF(OFFSET(C99,-1,0)=1,2,IF(OR(A99="s",A99=0),"S",IF(AND(OFFSET(C99,-1,0)=2,A99=4),3,IF(AND(OR(OFFSET(C99,-1,0)="s",OFFSET(C99,-1,0)=0),A99<>"s",A99>OFFSET(B99,-1,0)),OFFSET(B99,-1,0),A99))))) -> 2 | D99: =IF(OR(C99="S",C99=0),0,IF(ISERROR(K99),J99,SMALL(J99:K99,1))) -> 3 | E99: =IF($C99=1,OFFSET(E99,-1,0)+1,OFFSET(E99,-1,0)) -> 1 | F99: =IF($C99=1,0,IF($C99=2,OFFSET(F99,-1,0)+1,OFFSET(F99,-1,0))) -> 2 | G99: =IF(AND($C99<=2,$C99<>0),0,IF($C99=3,OFFSET(G99,-1,0)+1,OFFSET(G99,-1,0))) -> 0 | H99: =IF(AND($C99<=3,$C99<>0),0,IF($C99=4,OFFSET(H99,-1,0)+1,OFFSET(H99,-1,0))) -> 0 | I99: =IF(AND($C99<=4,$C99<>0),0,IF(AND($C99="S",$W99>0),OFFSET(I99,-1,0)+1,OFFSET(I99,-1,0))) -> 0 | J99: 740 | K99: 3 | L99: F | M99: Nível 2 | N99: Nível 2 | O99: 1.2. | P99: AGETOP | R99: TRANSPORTES | S99: -
A100: S | B100: 2 | C100: S | D100: 0 | E100: 1 | F100: 2 | G100: 0 | H100: 0 | I100: 0 | J100: 0 | K100: 0 | L100: F | M100: Serviço | N100: Serviço | O100: 1.2.0.0.1. | P100: SINAPI | Q100: 72900 | R100: TRANSPORTE DE ENTULHO COM CAMINHAO BASCULANTE 6 M3, RODOVIA PAVIMENTADA, DMT 0,5 A 1,0 KM | S100: M3 | T100: 41.9596
A101: S | B101: 2 | C101: S | D101: 0 | E101: 1 | F101: 2 | G101: 0 | H101: 0 | I101: 0 | J101: 0 | K101: 0 | L101: F | M101: Serviço | N101: Serviço | O101: 1.2.0.0.2. | P101: SINAPI | Q101: 72897 | R101: CARGA MANUAL DE ENTULHO EM CAMINHAO BASCULANTE 6 M3 | S101: M3 | T101: 41.9596
A102: 2 | B102: 2 | C102: 2 | D102: 29 | E102: 1 | F102: 3 | G102: 0 | H102: 0 | I102: 0 | J102: 737 | K102: 29 | L102: F | M102: Nível 2 | N102: Nível 2 | O102: 1.3. | P102: AGETOP | R102: SERVIÇO EM TERRA | S102: -
A103: 3 | B103: 3 | C103: 3 | D103: 7 | E103: 1 | F103: 3 | G103: 1 | H103: 0 | I103: 0 | J103: 28 | K103: 7 | L103: F | M103: Nível 3 | N103: Nível 3 | O103: 1.3.1. | P103: SINAPI | R103: AMPLIAÇÃO DO REFEITÓRIO | S103: -
A104: S | B104: 3 | C104: S | D104: 0 | E104: 1 | F104: 3 | G104: 1 | H104: 0 | I104: 0 | J104: 0 | K104: 0 | L104: F | M104: Serviço | N104: Serviço | O104: 1.3.1.0.1. | P104: SINAPI | Q104: 79480 | R104: ESCAVACAO MECANICA CAMPO ABERTO EM SOLO EXCETO ROCHA ATE 2,00M PROFUNDIDADE | S104: M3 | T104: 6.375 | X104: Referência: AGETOP - 41004
A105: S | B105: 3 | C105: S | D105: 0 | E105: 1 | F105: 3 | G105: 1 | H105: 0 | I105: 0 | J105: 0 | K105: 0 | L105: F | M105: Serviço | N105: Serviço | O105: 1.3.1.0.2. | P105: AGETOP | Q105: 41005 | R105: CARGA MECANIZADA | S105: m3 | T105: 6.375
A106: S | B106: 3 | C106: S | D106: 0 | E106: 1 | F106: 3 | G106: 1 | H106: 0 | I106: 0 | J106: 0 | K106: 0 | L106: F | M106: Serviço | N106: Serviço | O106: 1.3.1.0.3. | P106: AGETOP | Q106: 41012 | R106: INDENIZAÇÃO DE JAZIDA | S106: m3 | T106: 6.375
A107: S | B107: 3 | C107: S | D107: 0 | E107: 1 | F107: 3 | G107: 1 | H107: 0 | I107: 0 | J107: 0 | K107: 0 | L107: F | M107: Serviço | N107: Serviço | O107: 1.3.1.0.4. | P107: AGETOP | Q107: 41006 | R107: TRANSPORTE DE MATERIAL ESCAVADO M3.KM | S107: m3km | T107: 63.75
A108: S | B108: 3 | C108: S | D108: 0 | E108: 1 | F108: 3 | G108: 1 | H108: 0 | I108: 0 | J108: 0 | K108: 0 | L108: F | M108: Serviço | N108: Serviço | O108: 1.3.1.0.5. | P108: SINAPI | Q108: 74005/1 | R108: COMPACTACAO MECANICA, SEM CONTROLE DO GC (C/COMPACTADOR PLACA 400 KG) | S108: M3 | T108: 5.1 | X108: Referência: AGETOP - 41009
A109: S | B109: 3 | C109: S | D109: 0 | E109: 1 | F109: 3 | G109: 1 | H109: 0 | I109: 0 | J109: 0 | K109: 0 | L109: F | M109: Serviço | N109: Serviço | O109: 1.3.1.0.6. | P109: AGETOP | Q109: 41002 | R109: APILOAMENTO | S109: m2 | T109: 51
A110: 3 | B110: 3 | C110: 3 | D110: 2 | E110: 1 | F110: 3 | G110: 2 | H110: 0 | I110: 0 | J110: 21 | K110: 2 | L110: F | M110: Nível 3 | N110: Nível 3 | O110: 1.3.2. | P110: SINAPI | R110: INSTALAÇÃO PLATAFORMA ELEVATÓRIA | S110: -
A111: S | B111: 3 | C111: S | D111: 0 | E111: 1 | F111: 3 | G111: 2 | H111: 0 | I111: 0 | J111: 0 | K111: 0 | L111: F | M111: Serviço | N111: Serviço | O111: 1.3.2.0.1. | P111: AGETOP | Q111: 40101 | R111: ESCAVACAO MANUAL DE VALAS < 1 MTS. (OBRAS CIVIS) | S111: m3 | T111: 1
A112: 3 | B112: 3 | C112: 3 | D112: 3 | E112: 1 | F112: 3 | G112: 3 | H112: 0 | I112: 0 | J112: 19 | K112: 3 | L112: F | M112: Nível 3 | N112: Nível 3 | O112: 1.3.3. | P112: SINAPI | R112: ACESSIBILIDADE | S112: -
A113: S | B113: 3 | C113: S | D113: 0 | E113: 1 | F113: 3 | G113: 3 | H113: 0 | I113: 0 | J113: 0 | K113: 0 | L113: F | M113: Serviço | N113: Serviço | O113: 1.3.3.0.1. | P113: AGETOP | Q113: 41140 | R113: REGULARIZAÇÃO DO TERRENO SEM APILOAMENTO COM TRANSPORTE MANUAL DA TERRA ESCAVADA | S113: m2 | T113: 1084.78
A114: S | B114: 3 | C114: S | D114: 0 | E114: 1 | F114: 3 | G114: 3 | H114: 0 | I114: 0 | J114: 0 | K114: 0 | L114: F | M114: Serviço | N114: Serviço | O114: 1.3.3.0.2. | P114: AGETOP | Q114: 41002 | R114: APILOAMENTO | S114: m2 | T114: 1084.78
A115: 3 | B115: 3 | C115: 3 | D115: 3 | E115: 1 | F115: 3 | G115: 4 | H115: 0 | I115: 0 | J115: 16 | K115: 3 | L115: F | M115: Nível 3 | N115: Nível 3 | O115: 1.3.4. | P115: SINAPI | R115: CENTRAL DE GÁS | S115: -
A116: S | B116: 3 | C116: S | D116: 0 | E116: 1 | F116: 3 | G116: 4 | H116: 0 | I116: 0 | J116: 0 | K116: 0 | L116: F | M116: Serviço | N116: Serviço | O116: 1.3.4.0.1. | P116: SINAPI | Q116: 93358 | R116: ESCAVAÇÃO MANUAL DE VALA COM PROFUNDIDADE MENOR OU IGUAL A 1,30 M. AF_03/2016 | S116: M3 | T116: 0.94 | X116: Referência: AGETOP - 40101
A117: S | B117: 3 | C117: S | D117: 0 | E117: 1 | F117: 3 | G117: 4 | H117: 0 | I117: 0 | J117: 0 | K117: 0 | L117: F | M117: Serviço | N117: Serviço | O117: 1.3.4.0.2. | P117: SINAPI | Q117: 96995 | R117: REATERRO MANUAL APILOADO COM SOQUETE. AF_10/2017 | S117: M3 | T117: 0.94 | X117: Referência: AGETOP - 40902
A118: 3 | B118: 3 | C118: 3 | D118: 3 | E118: 1 | F118: 3 | G118: 5 | H118: 0 | I118: 0 | J118: 13 | K118: 3 | L118: F | M118: Nível 3 | N118: Nível 3 | O118: 1.3.5. | P118: SINAPI | R118: INST. HIDROSSANITÁRIAS | S118: -
A119: S | B119: 3 | C119: S | D119: 0 | E119: 1 | F119: 3 | G119: 5 | H119: 0 | I119: 0 | J119: 0 | K119: 0 | L119: F | M119: Serviço | N119: Serviço | O119: 1.3.5.0.1. | P119: AGETOP | Q119: 40101 | R119: ESCAVACAO MANUAL DE VALAS < 1 MTS. (OBRAS CIVIS) | S119: m3 | T119: 48
A120: S | B120: 3 | C120: S | D120: 0 | E120: 1 | F120: 3 | G120: 5 | H120: 0 | I120: 0 | J120: 0 | K120: 0 | L120: F | M120: Serviço | N120: Serviço | O120: 1.3.5.0.2. | P120: AGETOP | Q120: 40902 | R120: REATERRO COM APILOAMENTO | S120: m3 | T120: 48
A121: 3 | B121: 3 | C121: 3 | D121: 3 | E121: 1 | F121: 3 | G121: 6 | H121: 0 | I121: 0 | J121: 10 | K121: 3 | L121: F | M121: Nível 3 | N121: Nível 3 | O121: 1.3.6. | P121: SINAPI | R121: INST. DE INCÊNDIO | S121: -
A122: S | B122: 3 | C122: S | D122: 0 | E122: 1 | F122: 3 | G122: 6 | H122: 0 | I122: 0 | J122: 0 | K122: 0 | L122: F | M122: Serviço | N122: Serviço | O122: 1.3.6.0.1. | P122: AGETOP | Q122: 40101 | R122: ESCAVACAO MANUAL DE VALAS < 1 MTS. (OBRAS CIVIS) | S122: m3 | T122: 8.75
A123: S | B123: 3 | C123: S | D123: 0 | E123: 1 | F123: 3 | G123: 6 | H123: 0 | I123: 0 | J123: 0 | K123: 0 | L123: F | M123: Serviço | N123: Serviço | O123: 1.3.6.0.2. | P123: AGETOP | Q123: 40902 | R123: REATERRO COM APILOAMENTO | S123: m3 | T123: 8.75
A124: =CHOOSE(1+LOG(1+2*(ORÇAMENTO.Nivel="Nível 1")+4*(ORÇAMENTO.Nivel="Nível 2")+8*(ORÇAMENTO.Nivel="Nível 3")+16*(ORÇAMENTO.Nivel="Nível 4")+32*(ORÇAMENTO.Nivel="Serviço"),2),0,1,2,3,4,"S") -> 3 | B124: 3 | C124: 3 | D124: 3 | E124: 1 | F124: 3 | G124: 7 | H124: 0 | I124: 0 | J124: 7 | K124: 3 | L124: F | M124: Nível 3 | N124: Nível 3 | O124: 1.3.7. | P124: SINAPI | R124: INST. ELÉTRICAS | S124: -
A125: S | B125: 3 | C125: S | D125: 0 | E125: 1 | F125: 3 | G125: 7 | H125: 0 | I125: 0 | J125: 0 | K125: 0 | L125: F | M125: Serviço | N125: Serviço | O125: 1.3.7.0.1. | P125: SINAPI | Q125: 93358 | R125: ESCAVAÇÃO MANUAL DE VALA COM PROFUNDIDADE MENOR OU IGUAL A 1,30 M. AF_03/2016 | S125: M3 | T125: 32.61 | X125: Referência: AGETOP - 40101
A126: S | B126: 3 | C126: S | D126: 0 | E126: 1 | F126: 3 | G126: 7 | H126: 0 | I126: 0 | J126: 0 | K126: 0 | L126: F | M126: Serviço | N126: Serviço | O126: 1.3.7.0.2. | P126: SINAPI | Q126: 96995 | R126: REATERRO MANUAL APILOADO COM SOQUETE. AF_10/2017 | S126: M3 | T126: 32.61 | X126: Referência: AGETOP - 40902
A127: 3 | B127: 3 | C127: 3 | D127: 4 | E127: 1 | F127: 3 | G127: 8 | H127: 0 | I127: 0 | J127: 4 | K127: 616 | L127: F | M127: Nível 3 | N127: Nível 3 | O127: 1.3.8. | P127: SINAPI | R127: FUNDAÇÃO | S127: -
A128: S | B128: 3 | C128: S | D128: 0 | E128: 1 | F128: 3 | G128: 8 | H128: 0 | I128: 0 | J128: 0 | K128: 0 | L128: F | M128: Serviço | N128: Serviço | O128: 1.3.8.0.1. | P128: SINAPI | Q128: 96522 | R128: ESCAVAÇÃO MANUAL PARA BLOCO DE COROAMENTO OU SAPATA, SEM PREVISÃO DE FÔRMA. AF_06/2017 | S128: M3 | T128: 4.12 | X128: Referência: AGETOP - 50901
A129: S | B129: 3 | C129: S | D129: 0 | E129: 1 | F129: 3 | G129: 8 | H129: 0 | I129: 0 | J129: 0 | K129: 0 | L129: F | M129: Serviço | N129: Serviço | O129: 1.3.8.0.2. | P129: AGETOP | Q129: 50902 | R129: APILOAMENTO (BLOCOS/SAPATAS) | S129: m2 | T129: 7.92
A130: S | B130: 3 | C130: S | D130: 0 | E130: 1 | F130: 3 | G130: 8 | H130: 0 | I130: 0 | J130: 0 | K130: 0 | L130: F | M130: Serviço | N130: Serviço | O130: 1.3.8.0.3. | P130: SINAPI | Q130: 96526 | R130: ESCAVAÇÃO MANUAL DE VALA PARA VIGA BALDRAME, SEM PREVISÃO DE FÔRMA. AF_06/2017 | S130: M3 | T130: 1.93 | X130: Referência: AGETOP - 40101
A131: =CHOOSE(1+LOG(1+2*(ORÇAMENTO.Nivel="Nível 1")+4*(ORÇAMENTO.Nivel="Nível 2")+8*(ORÇAMENTO.Nivel="Nível 3")+16*(ORÇAMENTO.Nivel="Nível 4")+32*(ORÇAMENTO.Nivel="Serviço"),2),0,1,2,3,4,"S") -> 2 | B131: 2 | C131: 2 | D131: 14 | E131: 1 | F131: 4 | G131: 0 | H131: 0 | I131: 0 | J131: 708 | K131: 14 | L131: F | M131: Nível 2 | N131: Nível 2 | O131: 1.4. | P131: AGETOP | R131: FUNDAÇÕES E SONDAGENS | S131: -
A132: 3 | B132: 3 | C132: 3 | D132: 4 | E132: 1 | F132: 4 | G132: 1 | H132: 0 | I132: 0 | J132: 13 | K132: 4 | L132: F | M132: Nível 3 | N132: Nível 3 | O132: 1.4.1. | P132: SINAPI | R132: ESTACAS | S132: -
A133: S | B133: 3 | C133: S | D133: 0 | E133: 1 | F133: 4 | G133: 1 | H133: 0 | I133: 0 | J133: 0 | K133: 0 | L133: F | M133: Serviço | N133: Serviço | O133: 1.4.1.0.1. | P133: SINAPI | Q133: 98230 | R133: ESTACA BROCA DE CONCRETO, DIÂMETRO DE 30 CM, PROFUNDIDADE DE ATÉ 3 M, ESCAVAÇÃO MANUAL COM TRADO CONCHA, NÃO ARMADA. AF_03/2018 | S133: M | T133: 8.5 | X133: Referência: AGETOP - 50302
A134: S | B134: 3 | C134: S | D134: 0 | E134: 1 | F134: 4 | G134: 1 | H134: 0 | I134: 0 | J134: 0 | K134: 0 | L134: F | M134: Serviço | N134: Serviço | O134: 1.4.1.0.2. | P134: SINAPI | Q134: 95577 | R134: MONTAGEM DE ARMADURA LONGITUDINAL DE ESTACAS DE SEÇÃO CIRCULAR, DIÂMETRO = 10,0 MM. AF_11/2016 | S134: KG | T134: 178.2 | X134: Referência: AGETOP - 52005
A135: S | B135: 3 | C135: S | D135: 0 | E135: 1 | F135: 4 | G135: 1 | H135: 0 | I135: 0 | J135: 0 | K135: 0 | L135: F | M135: Serviço | N135: Serviço | O135: 1.4.1.0.3. | P135: SINAPI | Q135: 95583 | R135: MONTAGEM DE ARMADURA TRANSVERSAL DE ESTACAS DE SEÇÃO CIRCULAR, DIÂMETRO = 5,0 MM. AF_11/2016 | S135: KG | T135: 57.33 | X135: Referência: AGETOP - 52014
A136: 3 | B136: 3 | C136: 3 | D136: 4 | E136: 1 | F136: 4 | G136: 2 | H136: 0 | I136: 0 | J136: 9 | K136: 4 | L136: F | M136: Nível 3 | N136: Nível 3 | O136: 1.4.2. | P136: SINAPI | R136: BLOCO | S136: -
A137: S | B137: 3 | C137: S | D137: 0 | E137: 1 | F137: 4 | G137: 2 | H137: 0 | I137: 0 | J137: 0 | K137: 0 | L137: F | M137: Serviço | N137: Serviço | O137: 1.4.2.0.1. | P137: SINAPI | Q137: 94965 | R137: CONCRETO FCK = 25MPA, TRAÇO 1:2,3:2,7 (CIMENTO/ AREIA MÉDIA/ BRITA 1) - PREPARO MECÂNICO COM BETONEIRA 400 L. AF_07/2016 | S137: M3 | T137: 4.12 | X137: Referência: AGETOP - 51030
A138: S | B138: 3 | C138: S | D138: 0 | E138: 1 | F138: 4 | G138: 2 | H138: 0 | I138: 0 | J138: 0 | K138: 0 | L138: F | M138: Serviço | N138: Serviço | O138: 1.4.2.0.2. | P138: SINAPI | Q138: 74157/4 | R138: LANCAMENTO/APLICACAO MANUAL DE CONCRETO EM FUNDACOES | S138: M3 | T138: 4.12 | X138: Referência: AGETOP - 51026
A139: S | B139: 3 | C139: S | D139: 0 | E139: 1 | F139: 4 | G139: 2 | H139: 0 | I139: 0 | J139: 0 | K139: 0 | L139: F | M139: Serviço | N139: Serviço | O139: 1.4.2.0.3. | P139: SINAPI | Q139: 96543 | R139: ARMAÇÃO DE BLOCO, VIGA BALDRAME E SAPATA UTILIZANDO AÇO CA-60 DE 5 MM - MONTAGEM. AF_06/2017 | S139: KG | T139: 50.49 | X139: Referência: AGETOP - 52014
A140: 3 | B140: 3 | C140: 3 | D140: 5 | E140: 1 | F140: 4 | G140: 3 | H140: 0 | I140: 0 | J140: 5 | K140: 341 | L140: F | M140: Nível 3 | N140: Nível 3 | O140: 1.4.3. | P140: SINAPI | R140: VIGAS BALDRAMES | S140: -
A141: S | B141: 3 | C141: S | D141: 0 | E141: 1 | F141: 4 | G141: 3 | H141: 0 | I141: 0 | J141: 0 | K141: 0 | L141: F | M141: Serviço | N141: Serviço | O141: 1.4.3.0.1. | P141: SINAPI | Q141: 94965 | R141: CONCRETO FCK = 25MPA, TRAÇO 1:2,3:2,7 (CIMENTO/ AREIA MÉDIA/ BRITA 1) - PREPARO MECÂNICO COM BETONEIRA 400 L. AF_07/2016 | S141: M3 | T141: 1.93 | X141: Referência: AGETOP - 51030
A142: S | B142: 3 | C142: S | D142: 0 | E142: 1 | F142: 4 | G142: 3 | H142: 0 | I142: 0 | J142: 0 | K142: 0 | L142: F | M142: Serviço | N142: Serviço | O142: 1.4.3.0.2. | P142: SINAPI | Q142: 74157/4 | R142: LANCAMENTO/APLICACAO MANUAL DE CONCRETO EM FUNDACOES | S142: M3 | T142: 1.93 | X142: Referência: AGETOP - 51026
A143: S | B143: 3 | C143: S | D143: 0 | E143: 1 | F143: 4 | G143: 3 | H143: 0 | I143: 0 | J143: 0 | K143: 0 | L143: F | M143: Serviço | N143: Serviço | O143: 1.4.3.0.3. | P143: SINAPI | Q143: 96545 | R143: ARMAÇÃO DE BLOCO, VIGA BALDRAME OU SAPATA UTILIZANDO AÇO CA-50 DE 8 MM - MONTAGEM. AF_06/2017 | S143: KG | T143: 84.33 | X143: Referência: AGETOP - 52004
A144: S | B144: 3 | C144: S | D144: 0 | E144: 1 | F144: 4 | G144: 3 | H144: 0 | I144: 0 | J144: 0 | K144: 0 | L144: F | M144: Serviço | N144: Serviço | O144: 1.4.3.0.4. | P144: SINAPI | Q144: 96543 | R144: ARMAÇÃO DE BLOCO, VIGA BALDRAME E SAPATA UTILIZANDO AÇO CA-60 DE 5 MM - MONTAGEM. AF_06/2017 | S144: KG | T144: 32.04 | X144: Referência: AGETOP - 52014
A145: 2 | B145: =IF(OR(C145="s",C145=0),OFFSET(B145,-1,0),C145) -> 2 | C145: =IF(OFFSET(C145,-1,0)="L",1,IF(OFFSET(C145,-1,0)=1,2,IF(OR(A145="s",A145=0),"S",IF(AND(OFFSET(C145,-1,0)=2,A145=4),3,IF(AND(OR(OFFSET(C145,-1,0)="s",OFFSET(C145,-1,0)=0),A145<>"s",A145>OFFSET(B145,-1,0)),OFFSET(B145,-1,0),A145))))) -> 2 | D145: =IF(OR(C145="S",C145=0),0,IF(ISERROR(K145),J145,SMALL(J145:K145,1))) -> 18 | E145: =IF($C145=1,OFFSET(E145,-1,0)+1,OFFSET(E145,-1,0)) -> 1 | F145: =IF($C145=1,0,IF($C145=2,OFFSET(F145,-1,0)+1,OFFSET(F145,-1,0))) -> 5 | G145: =IF(AND($C145<=2,$C145<>0),0,IF($C145=3,OFFSET(G145,-1,0)+1,OFFSET(G145,-1,0))) -> 0 | H145: =IF(AND($C145<=3,$C145<>0),0,IF($C145=4,OFFSET(H145,-1,0)+1,OFFSET(H145,-1,0))) -> 0 | I145: =IF(AND($C145<=4,$C145<>0),0,IF(AND($C145="S",$W145>0),OFFSET(I145,-1,0)+1,OFFSET(I145,-1,0))) -> 0 | J145: 694 | K145: 18 | L145: F | M145: Nível 2 | N145: Nível 2 | O145: 1.5. | P145: AGETOP | R145: ESTRUTURA | S145: -
A146: 3 | B146: 3 | C146: 3 | D146: 7 | E146: 1 | F146: 5 | G146: 1 | H146: 0 | I146: 0 | J146: 17 | K146: 7 | L146: F | M146: Nível 3 | N146: Nível 3 | O146: 1.5.1. | P146: SINAPI | R146: PILARES | S146: -
A147: S | B147: 3 | C147: S | D147: 0 | E147: 1 | F147: 5 | G147: 1 | H147: 0 | I147: 0 | J147: =IF(OR($C147="S",$C147=0),0,MATCH(0,OFFSET($D147,1,$C147,ROW($C$839)-ROW($C147)),0)) -> 0 | K147: =IF(OR($C147="S",$C147=0),0,MATCH(OFFSET($D147,0,$C147)+1,OFFSET($D147,1,$C147,ROW($C$839)-ROW($C147)),0)) -> 0 | L147: F | M147: Serviço | N147: Serviço | O147: 1.5.1.0.1. | P147: SINAPI | Q147: 92426 | R147: MONTAGEM E DESMONTAGEM DE FÔRMA DE PILARES RETANGULARES E ESTRUTURAS SIMILARES COM ÁREA MÉDIA DAS SEÇÕES MENOR OU IGUAL A 0,25 M², PÉ-DIREITO SIMPLES, EM CHAPA DE MADEIRA COMPENSADA RESINADA, 8 UTILIZAÇÕES. AF_12/2015 | S147: M2 | T147: 106.27
A148: S | B148: 3 | C148: S | D148: 0 | E148: 1 | F148: 5 | G148: 1 | H148: 0 | I148: 0 | J148: 0 | K148: 0 | L148: F | M148: Serviço | N148: Serviço | O148: 1.5.1.0.2. | P148: SINAPI | Q148: 94965 | R148: CONCRETO FCK = 25MPA, TRAÇO 1:2,3:2,7 (CIMENTO/ AREIA MÉDIA/ BRITA 1) - PREPARO MECÂNICO COM BETONEIRA 400 L. AF_07/2016 | S148: M3 | T148: 4.97 | X148: Referência: AGETOP - 51030
A149: S | B149: 3 | C149: S | D149: 0 | E149: 1 | F149: 5 | G149: 1 | H149: 0 | I149: 0 | J149: 0 | K149: 0 | L149: F | M149: Serviço | N149: Serviço | O149: 1.5.1.0.3. | P149: SINAPI | Q149: 92873 | R149: LANÇAMENTO COM USO DE BALDES, ADENSAMENTO E ACABAMENTO DE CONCRETO EM ESTRUTURAS. AF_12/2015 | S149: M3 | T149: 4.97 | X149: Referência: AGETOP - 60801
A150: S | B150: 3 | C150: S | D150: 0 | E150: 1 | F150: 5 | G150: 1 | H150: 0 | I150: 0 | J150: 0 | K150: 0 | L150: F | M150: Serviço | N150: Serviço | O150: 1.5.1.0.4. | P150: SINAPI | Q150: 92778 | R150: ARMAÇÃO DE PILAR OU VIGA DE UMA ESTRUTURA CONVENCIONAL DE CONCRETO ARMADO EM UMA EDIFICAÇÃO TÉRREA OU SOBRADO UTILIZANDO AÇO CA-50 DE 10,0 MM - MONTAGEM. AF_12/2015 | S150: KG | T150: 289.53 | X150: Referência: AGETOP - 60305
A151: S | B151: 3 | C151: S | D151: 0 | E151: 1 | F151: 5 | G151: 1 | H151: 0 | I151: 0 | J151: 0 | K151: 0 | L151: F | M151: Serviço | N151: Serviço | O151: 1.5.1.0.5. | P151: SINAPI | Q151: 92761 | R151: ARMAÇÃO DE PILAR OU VIGA DE UMA ESTRUTURA CONVENCIONAL DE CONCRETO ARMADO EM UM EDIFÍCIO DE MÚLTIPLOS PAVIMENTOS UTILIZANDO AÇO CA-50 DE 8,0 MM - MONTAGEM. AF_12/2015 | S151: KG | T151: 23.13 | X151: Referência: AGETOP - 60304
A152: S | B152: 3 | C152: S | D152: 0 | E152: 1 | F152: 5 | G152: 1 | H152: 0 | I152: 0 | J152: 0 | K152: 0 | L152: F | M152: Serviço | N152: Serviço | O152: 1.5.1.0.6. | P152: SINAPI | Q152: 92775 | R152: ARMAÇÃO DE PILAR OU VIGA DE UMA ESTRUTURA CONVENCIONAL DE CONCRETO ARMADO EM UMA EDIFICAÇÃO TÉRREA OU SOBRADO UTILIZANDO AÇO CA-60 DE 5,0 MM - MONTAGEM. AF_12/2015 | S152: KG | T152: 129.5 | X152: Referência: AGETOP - 60314
A153: 3 | B153: 3 | C153: 3 | D153: 6 | E153: 1 | F153: 5 | G153: 2 | H153: 0 | I153: 0 | J153: 10 | K153: 6 | L153: F | M153: Nível 3 | N153: Nível 3 | O153: 1.5.2. | R153: VIGAS DE COBERTURA | S153: -
A154: S | B154: 3 | C154: S | D154: 0 | E154: 1 | F154: 5 | G154: 2 | H154: 0 | I154: 0 | J154: 0 | K154: 0 | L154: F | M154: Serviço | N154: Serviço | O154: 1.5.2.0.1. | P154: SINAPI | Q154: 92464 | R154: MONTAGEM E DESMONTAGEM DE FÔRMA DE VIGA, ESCORAMENTO METÁLICO, PÉ-DIREITO SIMPLES, EM CHAPA DE MADEIRA RESINADA, 8 UTILIZAÇÕES. AF_12/2015 | S154: M2 | T154: 48.49 | X154: Referência: AGETOP - 60209
A155: S | B155: 3 | C155: S | D155: 0 | E155: 1 | F155: 5 | G155: 2 | H155: 0 | I155: 0 | J155: 0 | K155: 0 | L155: F | M155: Serviço | N155: Serviço | O155: 1.5.2.0.2. | P155: SINAPI | Q155: 94965 | R155: CONCRETO FCK = 25MPA, TRAÇO 1:2,3:2,7 (CIMENTO/ AREIA MÉDIA/ BRITA 1) - PREPARO MECÂNICO COM BETONEIRA 400 L. AF_07/2016 | S155: M3 | T155: 2.79 | X155: Referência: AGETOP - 51030
A156: S | B156: 3 | C156: S | D156: 0 | E156: 1 | F156: 5 | G156: 2 | H156: 0 | I156: 0 | J156: 0 | K156: 0 | L156: F | M156: Serviço | N156: Serviço | O156: 1.5.2.0.3. | P156: SINAPI | Q156: 92873 | R156: LANÇAMENTO COM USO DE BALDES, ADENSAMENTO E ACABAMENTO DE CONCRETO EM ESTRUTURAS. AF_12/2015 | S156: M3 | T156: 2.79 | X156: Referência: AGETOP - 60801
A157: S | B157: 3 | C157: S | D157: 0 | E157: 1 | F157: 5 | G157: 2 | H157: 0 | I157: 0 | J157: 0 | K157: 0 | L157: F | M157: Serviço | N157: Serviço | O157: 1.5.2.0.4. | P157: SINAPI | Q157: 92777 | R157: ARMAÇÃO DE PILAR OU VIGA DE UMA ESTRUTURA CONVENCIONAL DE CONCRETO ARMADO EM UMA EDIFICAÇÃO TÉRREA OU SOBRADO UTILIZANDO AÇO CA-50 DE 8,0 MM - MONTAGEM. AF_12/2015 | S157: KG | T157: 119.16 | X157: Referência: AGETOP - 60304
A158: S | B158: 3 | C158: S | D158: 0 | E158: 1 | F158: 5 | G158: 2 | H158: 0 | I158: 0 | J158: 0 | K158: 0 | L158: F | M158: Serviço | N158: Serviço | O158: 1.5.2.0.5. | P158: SINAPI | Q158: 92775 | R158: ARMAÇÃO DE PILAR OU VIGA DE UMA ESTRUTURA CONVENCIONAL DE CONCRETO ARMADO EM UMA EDIFICAÇÃO TÉRREA OU SOBRADO UTILIZANDO AÇO CA-60 DE 5,0 MM - MONTAGEM. AF_12/2015 | S158: KG | T158: 53.55 | X158: Referência: AGETOP - 60314
A159: 3 | B159: 3 | C159: 3 | D159: 4 | E159: 1 | F159: 5 | G159: 3 | H159: 0 | I159: 0 | J159: 4 | K159: 322 | L159: F | M159: Nível 3 | N159: Nível 3 | O159: 1.5.3. | R159: LAJE | S159: -
A160: S | B160: 3 | C160: S | D160: 0 | E160: 1 | F160: 5 | G160: 3 | H160: 0 | I160: 0 | J160: 0 | K160: 0 | L160: F | M160: Serviço | N160: Serviço | O160: 1.5.3.0.1. | P160: SINAPI | Q160: 92267 | R160: FABRICAÇÃO DE FÔRMA PARA LAJES, EM CHAPA DE MADEIRA COMPENSADA RESINADA, E = 17 MM. AF_12/2015 | S160: M2 | T160: 17.69
A161: S | B161: 3 | C161: S | D161: 0 | E161: 1 | F161: 5 | G161: 3 | H161: 0 | I161: 0 | J161: 0 | K161: 0 | L161: F | M161: Serviço | N161: Serviço | O161: 1.5.3.0.2. | P161: SINAPI | Q161: 92785 | R161: ARMAÇÃO DE LAJE DE UMA ESTRUTURA CONVENCIONAL DE CONCRETO ARMADO EM UMA EDIFICAÇÃO TÉRREA OU SOBRADO UTILIZANDO AÇO CA-50 DE 6,3 MM - MONTAGEM. AF_12/2015 | S161: KG | T161: 56.07 | X161: Referência: AGETOP - 60303
A162: =CHOOSE(1+LOG(1+2*(ORÇAMENTO.Nivel="Nível 1")+4*(ORÇAMENTO.Nivel="Nível 2")+8*(ORÇAMENTO.Nivel="Nível 3")+16*(ORÇAMENTO.Nivel="Nível 4")+32*(ORÇAMENTO.Nivel="Serviço"),2),0,1,2,3,4,"S") -> S | B162: =IF(OR(C162="s",C162=0),OFFSET(B162,-1,0),C162) -> 3 | C162: =IF(OFFSET(C162,-1,0)="L",1,IF(OFFSET(C162,-1,0)=1,2,IF(OR(A162="s",A162=0),"S",IF(AND(OFFSET(C162,-1,0)=2,A162=4),3,IF(AND(OR(OFFSET(C162,-1,0)="s",OFFSET(C162,-1,0)=0),A162<>"s",A162>OFFSET(B162,-1,0)),OFFSET(B162,-1,0),A162))))) -> S | D162: =IF(OR(C162="S",C162=0),0,IF(ISERROR(K162),J162,SMALL(J162:K162,1))) -> 0 | E162: =IF($C162=1,OFFSET(E162,-1,0)+1,OFFSET(E162,-1,0)) -> 1 | F162: =IF($C162=1,0,IF($C162=2,OFFSET(F162,-1,0)+1,OFFSET(F162,-1,0))) -> 5 | G162: =IF(AND($C162<=2,$C162<>0),0,IF($C162=3,OFFSET(G162,-1,0)+1,OFFSET(G162,-1,0))) -> 3 | H162: =IF(AND($C162<=3,$C162<>0),0,IF($C162=4,OFFSET(H162,-1,0)+1,OFFSET(H162,-1,0))) -> 0 | I162: =IF(AND($C162<=4,$C162<>0),0,IF(AND($C162="S",$W162>0),OFFSET(I162,-1,0)+1,OFFSET(I162,-1,0))) -> 0 | J162: 0 | K162: 0 | L162: F | M162: Serviço | N162: Serviço | O162: 1.5.3.0.3. | P162: SINAPI | Q162: 94965 | R162: CONCRETO FCK = 25MPA, TRAÇO 1:2,3:2,7 (CIMENTO/ AREIA MÉDIA/ BRITA 1) - PREPARO MECÂNICO COM BETONEIRA 400 L. AF_07/2016 | S162: M3 | T162: 1.92 | X162: Referência: AGETOP - 51030
A163: =CHOOSE(1+LOG(1+2*(ORÇAMENTO.Nivel="Nível 1")+4*(ORÇAMENTO.Nivel="Nível 2")+8*(ORÇAMENTO.Nivel="Nível 3")+16*(ORÇAMENTO.Nivel="Nível 4")+32*(ORÇAMENTO.Nivel="Serviço"),2),0,1,2,3,4,"S") -> 2 | B163: =IF(OR(C163="s",C163=0),OFFSET(B163,-1,0),C163) -> 2 | C163: =IF(OFFSET(C163,-1,0)="L",1,IF(OFFSET(C163,-1,0)=1,2,IF(OR(A163="s",A163=0),"S",IF(AND(OFFSET(C163,-1,0)=2,A163=4),3,IF(AND(OR(OFFSET(C163,-1,0)="s",OFFSET(C163,-1,0)=0),A163<>"s",A163>OFFSET(B163,-1,0)),OFFSET(B163,-1,0),A163))))) -> 2 | D163: =IF(OR(C163="S",C163=0),0,IF(ISERROR(K163),J163,SMALL(J163:K163,1))) -> 193 | E163: =IF($C163=1,OFFSET(E163,-1,0)+1,OFFSET(E163,-1,0)) -> 1 | F163: =IF($C163=1,0,IF($C163=2,OFFSET(F163,-1,0)+1,OFFSET(F163,-1,0))) -> 6 | G163: =IF(AND($C163<=2,$C163<>0),0,IF($C163=3,OFFSET(G163,-1,0)+1,OFFSET(G163,-1,0))) -> 0 | H163: =IF(AND($C163<=3,$C163<>0),0,IF($C163=4,OFFSET(H163,-1,0)+1,OFFSET(H163,-1,0))) -> 0 | I163: =IF(AND($C163<=4,$C163<>0),0,IF(AND($C163="S",$W163>0),OFFSET(I163,-1,0)+1,OFFSET(I163,-1,0))) -> 0 | J163: 676 | K163: 193 | L163: F | M163: Nível 2 | N163: Nível 2 | O163: 1.6. | R163: INSTALAÇÕES ELÉTRICAS | S163: -
A164: 3 | B164: 3 | C164: 3 | D164: 64 | E164: 1 | F164: 6 | G164: 1 | H164: 0 | I164: 0 | J164: 192 | K164: 64 | L164: F | M164: Nível 3 | N164: Nível 3 | O164: 1.6.1. | P164: SINAPI | R164: REFORMA | S164: -
A165: S | B165: 3 | C165: S | D165: 0 | E165: 1 | F165: 6 | G165: 1 | H165: 0 | I165: 0 | J165: 0 | K165: 0 | L165: F | M165: Serviço | N165: Serviço | O165: 1.6.1.0.1. | P165: SINAPI | Q165: 74131/4 | R165: QUADRO DE DISTRIBUICAO DE ENERGIA DE EMBUTIR, EM CHAPA METALICA, PARA 18 DISJUNTORES TERMOMAGNETICOS MONOPOLARES, COM BARRAMENTO TRIFASICO E NEUTRO, FORNECIMENTO E INSTALACAO | S165: UN | T165: 7
A166: S | B166: 3 | C166: S | D166: 0 | E166: 1 | F166: 6 | G166: 1 | H166: 0 | I166: 0 | J166: 0 | K166: 0 | L166: F | M166: Serviço | N166: Serviço | O166: 1.6.1.0.2. | P166: SINAPI | Q166: 74131/5 | R166: QUADRO DE DISTRIBUICAO DE ENERGIA DE EMBUTIR, EM CHAPA METALICA, PARA 24 DISJUNTORES TERMOMAGNETICOS MONOPOLARES, COM BARRAMENTO TRIFASICO E NEUTRO, FORNECIMENTO E INSTALACAO | S166: UN | T166: 3
A167: S | B167: 3 | C167: S | D167: 0 | E167: 1 | F167: 6 | G167: 1 | H167: 0 | I167: 0 | J167: 0 | K167: 0 | L167: F | M167: Serviço | N167: Serviço | O167: 1.6.1.0.3. | P167: SINAPI | Q167: 93670 | R167: DISJUNTOR TRIPOLAR TIPO DIN, CORRENTE NOMINAL DE 25A - FORNECIMENTO E INSTALAÇÃO. AF_04/2016 | S167: UN | T167: 2 | X167: Referência: AGETOP - 71173
A168: S | B168: 3 | C168: S | D168: 0 | E168: 1 | F168: 6 | G168: 1 | H168: 0 | I168: 0 | J168: 0 | K168: 0 | L168: F | M168: Serviço | N168: Serviço | O168: 1.6.1.0.4. | P168: SINAPI | Q168: 93671 | R168: DISJUNTOR TRIPOLAR TIPO DIN, CORRENTE NOMINAL DE 32A - FORNECIMENTO E INSTALAÇÃO. AF_04/2016 | S168: UN | T168: 6 | X168: Referência: AGETOP - 71173
A169: S | B169: 3 | C169: S | D169: 0 | E169: 1 | F169: 6 | G169: 1 | H169: 0 | I169: 0 | J169: 0 | K169: 0 | L169: F | M169: Serviço | N169: Serviço | O169: 1.6.1.0.5. | P169: SINAPI | Q169: 93673 | R169: DISJUNTOR TRIPOLAR TIPO DIN, CORRENTE NOMINAL DE 50A - FORNECIMENTO E INSTALAÇÃO. AF_04/2016 | S169: UN | T169: 4 | X169: Referência: AGETOP - 71174
A170: S | B170: 3 | C170: S | D170: 0 | E170: 1 | F170: 6 | G170: 1 | H170: 0 | I170: 0 | J170: 0 | K170: 0 | L170: F | M170: Serviço | N170: Serviço | O170: 1.6.1.0.6. | P170: AGETOP | Q170: 71175 | R170: DISJUNTOR TRIPOLAR DE 60 A 100-A | S170: Un | T170: 6
A171: S | B171: 3 | C171: S | D171: 0 | E171: 1 | F171: 6 | G171: 1 | H171: 0 | I171: 0 | J171: 0 | K171: 0 | L171: F | M171: Serviço | N171: Serviço | O171: 1.6.1.0.7. | P171: SINAPI | Q171: 74130/10 | R171: DISJUNTOR TERMOMAGNETICO TRIPOLAR EM CAIXA MOLDADA 175 A 225A 240V, FORNECIMENTO E INSTALACAO | S171: UN | T171: 2
A172: S | B172: 3 | C172: S | D172: 0 | E172: 1 | F172: 6 | G172: 1 | H172: 0 | I172: 0 | J172: 0 | K172: 0 | L172: F | M172: Serviço | N172: Serviço | O172: 1.6.1.0.8. | P172: SINAPI | Q172: 93656 | R172: DISJUNTOR MONOPOLAR TIPO DIN, CORRENTE NOMINAL DE 25A - FORNECIMENTO E INSTALAÇÃO. AF_04/2016 | S172: UN | T172: 42
A173: S | B173: 3 | C173: S | D173: 0 | E173: 1 | F173: 6 | G173: 1 | H173: 0 | I173: 0 | J173: 0 | K173: 0 | L173: F | M173: Serviço | N173: Serviço | O173: 1.6.1.0.9. | P173: SINAPI | Q173: 93654 | R173: DISJUNTOR MONOPOLAR TIPO DIN, CORRENTE NOMINAL DE 16A - FORNECIMENTO E INSTALAÇÃO. AF_04/2016 | S173: UN | T173: 27
A174: S | B174: 3 | C174: S | D174: 0 | E174: 1 | F174: 6 | G174: 1 | H174: 0 | I174: 0 | J174: 0 | K174: 0 | L174: F | M174: Serviço | N174: Serviço | O174: 1.6.1.0.10. | P174: SINAPI | Q174: 93653 | R174: DISJUNTOR MONOPOLAR TIPO DIN, CORRENTE NOMINAL DE 10A - FORNECIMENTO E INSTALAÇÃO. AF_04/2016 | S174: UN | T174: 60
A175: S | B175: 3 | C175: S | D175: 0 | E175: 1 | F175: 6 | G175: 1 | H175: 0 | I175: 0 | J175: 0 | K175: 0 | L175: F | M175: Serviço | N175: Serviço | O175: 1.6.1.0.11. | P175: AGETOP | Q175: 71184 | R175: DISPOSITIVO DE PROTEÇÃO CONTRA SURTOS (D.P.S.) 275V DE 8 A 40KA | S175: Un | T175: 3
A176: S | B176: 3 | C176: S | D176: 0 | E176: 1 | F176: 6 | G176: 1 | H176: 0 | I176: 0 | J176: 0 | K176: 0 | L176: F | M176: Serviço | N176: Serviço | O176: 1.6.1.0.12. | P176: AGETOP | Q176: 71456 | R176: INTERRUPTOR DIFERENCIAL RESIDUAL (D.R.) TETRAPOLAR DE 40A-30mA | S176: Un | T176: 7
A177: S | B177: 3 | C177: S | D177: 0 | E177: 1 | F177: 6 | G177: 1 | H177: 0 | I177: 0 | J177: 0 | K177: 0 | L177: F | M177: Serviço | N177: Serviço | O177: 1.6.1.0.13. | P177: SINAPI | Q177: 91926 | R177: CABO DE COBRE FLEXÍVEL ISOLADO, 2,5 MM², ANTI-CHAMA 450/750 V, PARA CIRCUITOS TERMINAIS - FORNECIMENTO E INSTALAÇÃO. AF_12/2015 | S177: M | T177: 6124 | X177: Referência: AGETOP - 70563
A178: S | B178: 3 | C178: S | D178: 0 | E178: 1 | F178: 6 | G178: 1 | H178: 0 | I178: 0 | J178: 0 | K178: 0 | L178: F | M178: Serviço | N178: Serviço | O178: 1.6.1.0.14. | P178: SINAPI | Q178: 91928 | R178: CABO DE COBRE FLEXÍVEL ISOLADO, 4 MM², ANTI-CHAMA 450/750 V, PARA CIRCUITOS TERMINAIS - FORNECIMENTO E INSTALAÇÃO. AF_12/2015 | S178: M | T178: 2656 | X178: Referência: AGETOP - 70564
A179: S | B179: 3 | C179: S | D179: 0 | E179: 1 | F179: 6 | G179: 1 | H179: 0 | I179: 0 | J179: 0 | K179: 0 | L179: F | M179: Serviço | N179: Serviço | O179: 1.6.1.0.15. | P179: SINAPI | Q179: 91930 | R179: CABO DE COBRE FLEXÍVEL ISOLADO, 6 MM², ANTI-CHAMA 450/750 V, PARA CIRCUITOS TERMINAIS - FORNECIMENTO E INSTALAÇÃO. AF_12/2015 | S179: M | T179: 1450 | X179: Referência: AGETOP - 70565
A180: S | B180: 3 | C180: S | D180: 0 | E180: 1 | F180: 6 | G180: 1 | H180: 0 | I180: 0 | J180: 0 | K180: 0 | L180: F | M180: Serviço | N180: Serviço | O180: 1.6.1.0.16. | P180: SINAPI | Q180: 92979 | R180: CABO DE COBRE FLEXÍVEL ISOLADO, 10 MM², ANTI-CHAMA 450/750 V, PARA DISTRIBUIÇÃO - FORNECIMENTO E INSTALAÇÃO. AF_12/2015 | S180: M | T180: 607
A181: S | B181: 3 | C181: S | D181: 0 | E181: 1 | F181: 6 | G181: 1 | H181: 0 | I181: 0 | J181: 0 | K181: 0 | L181: F | M181: Serviço | N181: Serviço | O181: 1.6.1.0.17. | P181: SINAPI | Q181: 92981 | R181: CABO DE COBRE FLEXÍVEL ISOLADO, 16 MM², ANTI-CHAMA 450/750 V, PARA DISTRIBUIÇÃO - FORNECIMENTO E INSTALAÇÃO. AF_12/2015 | S181: M | T181: 1926
A182: S | B182: 3 | C182: S | D182: 0 | E182: 1 | F182: 6 | G182: 1 | H182: 0 | I182: 0 | J182: 0 | K182: 0 | L182: F | M182: Serviço | N182: Serviço | O182: 1.6.1.0.18. | P182: SINAPI | Q182: 92983 | R182: CABO DE COBRE FLEXÍVEL ISOLADO, 25 MM², ANTI-CHAMA 450/750 V, PARA DISTRIBUIÇÃO - FORNECIMENTO E INSTALAÇÃO. AF_12/2015 | S182: M | T182: 1607
A183: S | B183: 3 | C183: S | D183: 0 | E183: 1 | F183: 6 | G183: 1 | H183: 0 | I183: 0 | J183: 0 | K183: 0 | L183: F | M183: Serviço | N183: Serviço | O183: 1.6.1.0.19. | P183: SINAPI | Q183: 92985 | R183: CABO DE COBRE FLEXÍVEL ISOLADO, 35 MM², ANTI-CHAMA 450/750 V, PARA DISTRIBUIÇÃO - FORNECIMENTO E INSTALAÇÃO. AF_12/2015 | S183: M | T183: 1001
A184: S | B184: 3 | C184: S | D184: 0 | E184: 1 | F184: 6 | G184: 1 | H184: 0 | I184: 0 | J184: 0 | K184: 0 | L184: F | M184: Serviço | N184: Serviço | O184: 1.6.1.0.20. | P184: AGETOP | Q184: 70541 | R184: CABO DE COBRE NU No. 16 MM2 (6,94 M/KG) | S184: M | T184: 15
A185: S | B185: 3 | C185: S | D185: 0 | E185: 1 | F185: 6 | G185: 1 | H185: 0 | I185: 0 | J185: 0 | K185: 0 | L185: F | M185: Serviço | N185: Serviço | O185: 1.6.1.0.21. | P185: SINAPI | Q185: 91867 | R185: ELETRODUTO RÍGIDO ROSCÁVEL, PVC, DN 25 MM (3/4"), PARA CIRCUITOS TERMINAIS, INSTALADO EM LAJE - FORNECIMENTO E INSTALAÇÃO. AF_12/2015 | S185: M | T185: 1905 | X185: Referência: AGETOP - 71201
A186: S | B186: 3 | C186: S | D186: 0 | E186: 1 | F186: 6 | G186: 1 | H186: 0 | I186: 0 | J186: 0 | K186: 0 | L186: F | M186: Serviço | N186: Serviço | O186: 1.6.1.0.22. | P186: SINAPI | Q186: 91868 | R186: ELETRODUTO RÍGIDO ROSCÁVEL, PVC, DN 32 MM (1"), PARA CIRCUITOS TERMINAIS, INSTALADO EM LAJE - FORNECIMENTO E INSTALAÇÃO. AF_12/2015 | S186: M | T186: 985 | X186: Referência: AGETOP - 71202
A187: S | B187: 3 | C187: S | D187: 0 | E187: 1 | F187: 6 | G187: 1 | H187: 0 | I187: 0 | J187: 0 | K187: 0 | L187: F | M187: Serviço | N187: Serviço | O187: 1.6.1.0.23. | P187: SINAPI | Q187: 93008 | R187: ELETRODUTO RÍGIDO ROSCÁVEL, PVC, DN 50 MM (1 1/2") - FORNECIMENTO E INSTALAÇÃO. AF_12/2015 | S187: M | T187: 555
A188: S | B188: 3 | C188: S | D188: 0 | E188: 1 | F188: 6 | G188: 1 | H188: 0 | I188: 0 | J188: 0 | K188: 0 | L188: F | M188: Serviço | N188: Serviço | O188: 1.6.1.0.24. | P188: SINAPI | Q188: 93010 | R188: ELETRODUTO RÍGIDO ROSCÁVEL, PVC, DN 75 MM (2 1/2") - FORNECIMENTO E INSTALAÇÃO. AF_12/2015 | S188: M | T188: 430
A189: S | B189: 3 | C189: S | D189: 0 | E189: 1 | F189: 6 | G189: 1 | H189: 0 | I189: 0 | J189: 0 | K189: 0 | L189: F | M189: Serviço | N189: Serviço | O189: 1.6.1.0.25. | P189: SINAPI | Q189: 93009 | R189: ELETRODUTO RÍGIDO ROSCÁVEL, PVC, DN 60 MM (2") - FORNECIMENTO E INSTALAÇÃO. AF_12/2015 | S189: M | T189: 443
A190: S | B190: 3 | C190: S | D190: 0 | E190: 1 | F190: 6 | G190: 1 | H190: 0 | I190: 0 | J190: 0 | K190: 0 | L190: F | M190: Serviço | N190: Serviço | O190: 1.6.1.0.26. | P190: AGETOP | Q190: 70351 | R190: BRACADEIRA METALICA TIPO "U" DIAM. 3/4" | S190: Un | T190: 600
A191: S | B191: 3 | C191: S | D191: 0 | E191: 1 | F191: 6 | G191: 1 | H191: 0 | I191: 0 | J191: 0 | K191: 0 | L191: F | M191: Serviço | N191: Serviço | O191: 1.6.1.0.27. | P191: AGETOP | Q191: 70352 | R191: BRACADEIRA METALICA TIPO "U" DIAM. 1" | S191: Un | T191: 300
A192: S | B192: 3 | C192: S | D192: 0 | E192: 1 | F192: 6 | G192: 1 | H192: 0 | I192: 0 | J192: 0 | K192: 0 | L192: F | M192: Serviço | N192: Serviço | O192: 1.6.1.0.28. | P192: AGETOP | Q192: 70354 | R192: BRACADEIRA METALICA TIPO "U" DIAM. 1.1/2" | S192: Un | T192: 185
A193: S | B193: 3 | C193: S | D193: 0 | E193: 1 | F193: 6 | G193: 1 | H193: 0 | I193: 0 | J193: 0 | K193: 0 | L193: F | M193: Serviço | N193: Serviço | O193: 1.6.1.0.29. | P193: AGETOP | Q193: 70355 | R193: BRACADEIRA METALICA TIPO "U" DIAM. 2" | S193: Un | T193: 140
A194: S | B194: 3 | C194: S | D194: 0 | E194: 1 | F194: 6 | G194: 1 | H194: 0 | I194: 0 | J194: 0 | K194: 0 | L194: F | M194: Serviço | N194: Serviço | O194: 1.6.1.0.30. | P194: AGETOP | Q194: 70356 | R194: BRACADEIRA METALICA TIPO "U" DIAM. 2.1/2" | S194: Un | T194: 140
A195: S | B195: 3 | C195: S | D195: 0 | E195: 1 | F195: 6 | G195: 1 | H195: 0 | I195: 0 | J195: 0 | K195: 0 | L195: F | M195: Serviço | N195: Serviço | O195: 1.6.1.0.31. | P195: SINAPI | Q195: 91879 | R195: LUVA PARA ELETRODUTO, PVC, ROSCÁVEL, DN 25 MM (3/4"), PARA CIRCUITOS TERMINAIS, INSTALADA EM LAJE - FORNECIMENTO E INSTALAÇÃO. AF_12/2015 | S195: UN | T195: 600 | X195: Referência: AGETOP - 71741
A196: S | B196: 3 | C196: S | D196: 0 | E196: 1 | F196: 6 | G196: 1 | H196: 0 | I196: 0 | J196: 0 | K196: 0 | L196: F | M196: Serviço | N196: Serviço | O196: 1.6.1.0.32. | P196: SINAPI | Q196: 91880 | R196: LUVA PARA ELETRODUTO, PVC, ROSCÁVEL, DN 32 MM (1"), PARA CIRCUITOS TERMINAIS, INSTALADA EM LAJE - FORNECIMENTO E INSTALAÇÃO. AF_12/2015 | S196: UN | T196: 300 | X196: Referência: AGETOP - 71742
A197: S | B197: 3 | C197: S | D197: 0 | E197: 1 | F197: 6 | G197: 1 | H197: 0 | I197: 0 | J197: 0 | K197: 0 | L197: F | M197: Serviço | N197: Serviço | O197: 1.6.1.0.33. | P197: SINAPI | Q197: 93013 | R197: LUVA PARA ELETRODUTO, PVC, ROSCÁVEL, DN 50 MM (1 1/2") - FORNECIMENTO E INSTALAÇÃO. AF_12/2015 | S197: UN | T197: 185 | X197: Referência: AGETOP - 71744
A198: S | B198: 3 | C198: S | D198: 0 | E198: 1 | F198: 6 | G198: 1 | H198: 0 | I198: 0 | J198: 0 | K198: 0 | L198: F | M198: Serviço | N198: Serviço | O198: 1.6.1.0.34. | P198: SINAPI | Q198: 93014 | R198: LUVA PARA ELETRODUTO, PVC, ROSCÁVEL, DN 60 MM (2") - FORNECIMENTO E INSTALAÇÃO. AF_12/2015 | S198: UN | T198: 140 | X198: Referência: AGETOP - 71745
A199: S | B199: 3 | C199: S | D199: 0 | E199: 1 | F199: 6 | G199: 1 | H199: 0 | I199: 0 | J199: 0 | K199: 0 | L199: F | M199: Serviço | N199: Serviço | O199: 1.6.1.0.35. | P199: SINAPI | Q199: 93015 | R199: LUVA PARA ELETRODUTO, PVC, ROSCÁVEL, DN 75 MM (2 1/2") - FORNECIMENTO E INSTALAÇÃO. AF_12/2015 | S199: UN | T199: 140
A200: S | B200: 3 | C200: S | D200: 0 | E200: 1 | F200: 6 | G200: 1 | H200: 0 | I200: 0 | J200: 0 | K200: 0 | L200: F | M200: Serviço | N200: Serviço | O200: 1.6.1.0.36. | P200: SINAPI | Q200: 95801 | R200: CONDULETE DE ALUMÍNIO, TIPO X, PARA ELETRODUTO DE AÇO GALVANIZADO DN 20 MM (3/4''), APARENTE - FORNECIMENTO E INSTALAÇÃO. AF_11/2016_P | S200: UN | T200: 200 | X200: Referência: AGETOP - 70929
A201: S | B201: 3 | C201: S | D201: 0 | E201: 1 | F201: 6 | G201: 1 | H201: 0 | I201: 0 | J201: 0 | K201: 0 | L201: F | M201: Serviço | N201: Serviço | O201: 1.6.1.0.37. | P201: AGETOP | Q201: 72385 | R201: TAMPA CEGA PARA CONDULETE DE PVC | S201: Un | T201: 200
A202: S | B202: 3 | C202: S | D202: 0 | E202: 1 | F202: 6 | G202: 1 | H202: 0 | I202: 0 | J202: 0 | K202: 0 | L202: F | M202: Serviço | N202: Serviço | O202: 1.6.1.0.38. | P202: SINAPI | Q202: 91902 | R202: CURVA 90 GRAUS PARA ELETRODUTO, PVC, ROSCÁVEL, DN 25 MM (3/4"), PARA CIRCUITOS TERMINAIS, INSTALADA EM LAJE - FORNECIMENTO E INSTALAÇÃO. AF_12/2015 | S202: UN | T202: 100 | X202: Referência: AGETOP - 71141
A203: S | B203: 3 | C203: S | D203: 0 | E203: 1 | F203: 6 | G203: 1 | H203: 0 | I203: 0 | J203: 0 | K203: 0 | L203: F | M203: Serviço | N203: Serviço | O203: 1.6.1.0.39. | P203: SINAPI | Q203: 91905 | R203: CURVA 90 GRAUS PARA ELETRODUTO, PVC, ROSCÁVEL, DN 32 MM (1"), PARA CIRCUITOS TERMINAIS, INSTALADA EM LAJE - FORNECIMENTO E INSTALAÇÃO. AF_12/2015 | S203: UN | T203: 50 | X203: Referência: AGETOP - 71142
A204: S | B204: 3 | C204: S | D204: 0 | E204: 1 | F204: 6 | G204: 1 | H204: 0 | I204: 0 | J204: 0 | K204: 0 | L204: F | M204: Serviço | N204: Serviço | O204: 1.6.1.0.40. | P204: AGETOP | Q204: 71124 | R204: CURVA 90 GRAUS AÇO ZINCADO DIÂMETRO 1.1/2" | S204: Un | T204: 30
A205: S | B205: 3 | C205: S | D205: 0 | E205: 1 | F205: 6 | G205: 1 | H205: 0 | I205: 0 | J205: 0 | K205: 0 | L205: F | M205: Serviço | N205: Serviço | O205: 1.6.1.0.41. | P205: AGETOP | Q205: 71125 | R205: CURVA 90 GRAUS AÇO ZINCADO DIÂMETRO 2" | S205: Un | T205: 20
A206: S | B206: 3 | C206: S | D206: 0 | E206: 1 | F206: 6 | G206: 1 | H206: 0 | I206: 0 | J206: 0 | K206: 0 | L206: F | M206: Serviço | N206: Serviço | O206: 1.6.1.0.42. | P206: AGETOP | Q206: 71126 | R206: CURVA 90 GRAUS AÇO ZINCADO DIÂMETRO 2.1/2" | S206: Un | T206: 10
... 706 more rows

Sheet Resumo
B3: UNIDADE ESCOLAR | G3: CÓDIGO INEP
B4: =Orçamento!$O$4 -> CENTRO DE ENSINO EM PERÍODO INTEGRAL PROFESSOR SÉRGIO FAYAD GENEROSO | G4: =Orçamento!V4 -> 52046176
B6: OBRA | G6: CIDADE
B7: =Orçamento!$O$7 -> REFORMA E AMPLIAÇÃO | G7: =Orçamento!$V$7 -> FORMOSA
B9: ENDEREÇO | G9: CRE
B10: =Orçamento!$R$10 -> AV.MAESTRO JOAO L. DO ESPIRITO SANTO S/N, FORMOSINHA, CEP:73813-120 | G10: =Orçamento!$O$10 -> FORMOSA
B12: REFERÊNCIA | D12: DATA | G12: ÁREA TOTAL CONSTRUÍDA (M²)
B13: =CONCATENATE("AGETOP E SINAPI - ",Orçamento!$T$10) -> AGETOP E SINAPI - DESONERADA | D13: =Orçamento!$S$7 -> 2020-07-07 | G13: =Orçamento!$V$13 -> 3313.58
A14: FILTRO
B15: RESUMO GERAL DO ORÇAMENTO
A16: ↓ | B16: ITEM | C16: DESCRIÇÃO DOS SERVIÇOS | E16: UNID | F16: QUANT | G16: PREÇO SEM BDI | H16: PREÇO COM BDI | I16: PARTICIP. (%)
A17: =IF(H17>0,"F","") ->  | B17: 1. | C17: =Orçamento!$P892 -> REFORMA | E17: =IF(C17<>"","UN","") -> UN | F17: =IF(C17<>"",1,"") -> 1 | G17: =IFERROR(Orçamento!S892,"-") -> 0 | H17: =IFERROR(Orçamento!V892,"") -> 0 | I17: =Orçamento!X892 -> 100
A18: =IF(H18>0,"F","") ->  | B18: 2. | C18: =Orçamento!$P893 ->  | E18: =IF(C18<>"","UN","") ->  | F18: =IF(C18<>"",1,"") ->  | G18: =IFERROR(Orçamento!S893,"-") -> 0 | H18: =IFERROR(Orçamento!V893,"") -> 0 | I18: =Orçamento!X893 -> 0
A19: =IF(H19>0,"F","") ->  | B19: 3. | C19: =Orçamento!$P894 ->  | G19: =IFERROR(Orçamento!S894,"-") -> 0 | H19: =IFERROR(Orçamento!V894,"") -> 0 | I19: =Orçamento!X894 -> 0
B20: 4. | C20: =Orçamento!$P895 ->  | G20: =IFERROR(Orçamento!S895,"-") -> 0 | H20: =IFERROR(Orçamento!V895,"") -> 0 | I20: =Orçamento!X895 -> 0
B21: 5. | C21: =Orçamento!$P896 ->  | G21: =IFERROR(Orçamento!S896,"-") -> 0 | H21: =IFERROR(Orçamento!V896,"") -> 0 | I21: =Orçamento!X896 -> 0
B22: 6. | C22: =Orçamento!$P897 ->  | G22: =IFERROR(Orçamento!S897,"-") -> 0 | H22: =IFERROR(Orçamento!V897,"") -> 0 | I22: =Orçamento!X897 -> 0
B23: 7. | C23: =Orçamento!$P898 ->  | G23: =IFERROR(Orçamento!S898,"-") -> 0 | H23: =IFERROR(Orçamento!V898,"") -> 0 | I23: =Orçamento!X898 -> 0
B24: 8. | C24: =Orçamento!$P899 ->  | G24: =IFERROR(Orçamento!S899,"-") -> 0 | H24: =IFERROR(Orçamento!V899,"") -> 0 | I24: =Orçamento!X899 -> 0
B25: 9. | C25: =Orçamento!$P900 ->  | G25: =IFERROR(Orçamento!S900,"-") -> 0 | H25: =IFERROR(Orçamento!V900,"") -> 0 | I25: =Orçamento!X900 -> 0
B26: 10. | C26: =Orçamento!$P901 ->  | G26: =IFERROR(Orçamento!S901,"-") -> 0 | H26: =IFERROR(Orçamento!V901,"") -> 0 | I26: =Orçamento!X901 -> 0
B27: 11. | C27: =Orçamento!$P902 ->  | G27: =IFERROR(Orçamento!S902,"-") -> 0 | H27: =IFERROR(Orçamento!V902,"") -> 0 | I27: =Orçamento!X902 -> 0
B28: 12. | C28: =Orçamento!$P903 ->  | G28: =IFERROR(Orçamento!S903,"-") -> 0 | H28: =IFERROR(Orçamento!V903,"") -> 0 | I28: =Orçamento!X903 -> 0
B29: 13. | C29: =Orçamento!$P904 ->  | G29: =IFERROR(Orçamento!S904,"-") -> 0 | H29: =IFERROR(Orçamento!V904,"") -> 0 | I29: =Orçamento!X904 -> 0
B30: 14. | C30: =Orçamento!$P905 ->  | G30: =IFERROR(Orçamento!S905,"-") -> 0 | H30: =IFERROR(Orçamento!V905,"") -> 0 | I30: =Orçamento!X905 -> 0
B31: 15. | C31: =Orçamento!$P906 ->  | G31: =IFERROR(Orçamento!S906,"-") -> 0 | H31: =IFERROR(Orçamento!V906,"") -> 0 | I31: =Orçamento!X906 -> 0
B32: 16. | C32: =Orçamento!$P907 ->  | G32: =IFERROR(Orçamento!S907,"-") -> 0 | H32: =IFERROR(Orçamento!V907,"") -> 0 | I32: =Orçamento!X907 -> 0
B33: 17. | C33: =Orçamento!$P908 ->  | G33: =IFERROR(Orçamento!S908,"-") -> 0 | H33: =IFERROR(Orçamento!V908,"") -> 0 | I33: =Orçamento!X908 -> 0
B34: 18. | C34: =Orçamento!$P909 ->  | G34: =IFERROR(Orçamento!S909,"-") -> 0 | H34: =IFERROR(Orçamento!V909,"") -> 0 | I34: =Orçamento!X909 -> 0
B35: 19. | C35: =Orçamento!$P910 ->  | G35: =IFERROR(Orçamento!S910,"-") -> 0 | H35: =IFERROR(Orçamento!V910,"") -> 0 | I35: =Orçamento!X910 -> 0
B36: 20. | C36: =Orçamento!$P911 ->  | G36: =IFERROR(Orçamento!S911,"-") -> 0 | H36: =IFERROR(Orçamento!V911,"") -> 0 | I36: =Orçamento!X911 -> 0
A37: F | B37: TOTAL GERAL DO ORÇAMENTO (R$) | G37: =SUM(G17:G36) -> 0 | H37: =SUM(H17:H36) -> 0 | I37: =SUM(I17:I36) -> 100
A38: F
A39: F

Sheet Somatório
B3: UNIDADE ESCOLAR | E3: CÓDIGO INEP
B4: =Orçamento!$O$4 -> CENTRO DE ENSINO EM PERÍODO INTEGRAL PROFESSOR SÉRGIO FAYAD GENEROSO | E4: =Orçamento!V4 -> 52046176
B6: OBRA | E6: CIDADE
B7: =Orçamento!$O$7 -> REFORMA E AMPLIAÇÃO | E7: =Orçamento!$V$7 -> FORMOSA
B9: ENDEREÇO | E9: CRE
B10: =Orçamento!$R$10 -> AV.MAESTRO JOAO L. DO ESPIRITO SANTO S/N, FORMOSINHA, CEP:73813-120 | E10: =Orçamento!$O$10 -> FORMOSA
B12: REFERÊNCIA | D12: DATA | E12: ÁREA TOTAL CONSTRUÍDA (M²)
B13: =CONCATENATE("AGETOP E SINAPI - ",Orçamento!$T$10) -> AGETOP E SINAPI - DESONERADA | D13: =Orçamento!$S$7 -> 2020-07-07 | E13: =Orçamento!$V$13 -> 3313.58
A14: FILTRO
B15: SOMATÓRIO DE SERVIÇOS
A16: ↓ | B16: ITEM | C16: DESCRIÇÃO DOS SERVIÇOS | D16: PREÇO SEM BDI (R$) | E16: PREÇO COM BDI (R$) | F16: PARTIC. ( % )
A17: =IF(D17>0,"F","") ->  | B17: a. | C17: =Orçamento!P858 -> SERVIÇOS PRELIMINARES | D17: =Orçamento!S858 -> 0 | E17: =Orçamento!V858 -> 0 | F17: =Orçamento!X858 -> 0
A18: =IF(D18>0,"F","") ->  | B18: b. | C18: =Orçamento!P859 -> TRANSPORTES | D18: =Orçamento!S859 -> 0 | E18: =Orçamento!V859 -> 0 | F18: =Orçamento!X859 -> 0
B19: c. | C19: =Orçamento!P860 -> SERVIÇO EM TERRA | D19: =Orçamento!S860 -> 0 | E19: =Orçamento!V860 -> 0 | F19: =Orçamento!X860 -> 0
B20: d. | C20: =Orçamento!P861 -> FUNDAÇÕES E SONDAGENS | D20: =Orçamento!S861 -> 0 | E20: =Orçamento!V861 -> 0 | F20: =Orçamento!X861 -> 0
B21: e. | C21: =Orçamento!P862 -> ESTRUTURA | D21: =Orçamento!S862 -> 0 | E21: =Orçamento!V862 -> 0 | F21: =Orçamento!X862 -> 0
B22: f. | C22: =Orçamento!P863 -> INSTALAÇÕES ELÉTRICAS | D22: =Orçamento!S863 -> 0 | E22: =Orçamento!V863 -> 0 | F22: =Orçamento!X863 -> 0
B23: g. | C23: =Orçamento!P864 -> INSTALAÇÕES HIDROSSANITÁRIAS | D23: =Orçamento!S864 -> 0 | E23: =Orçamento!V864 -> 0 | F23: =Orçamento!X864 -> 0
B24: h. | C24: =Orçamento!P865 -> INSTALAÇÕES ESPECIAIS | D24: =Orçamento!S865 -> 0 | E24: =Orçamento!V865 -> 0 | F24: =Orçamento!X865 -> 0
B25: i. | C25: =Orçamento!P866 -> ALVENARIAS E DIVISÓRIAS | D25: =Orçamento!S866 -> 0 | E25: =Orçamento!V866 -> 0 | F25: =Orçamento!X866 -> 0
B26: j. | C26: =Orçamento!P867 -> ALVENARIA AUTO-PORTANTE | D26: =Orçamento!S867 -> 0 | E26: =Orçamento!V867 -> 0 | F26: =Orçamento!X867 -> 0
B27: k. | C27: =Orçamento!P868 -> IMPERMEABILIZAÇÃO | D27: =Orçamento!S868 -> 0 | E27: =Orçamento!V868 -> 0 | F27: =Orçamento!X868 -> 0
B28: l. | C28: =Orçamento!P869 -> ISOLAMENTO TÉRMICO E ACÚSTICO | D28: =Orçamento!S869 -> 0 | E28: =Orçamento!V869 -> 0 | F28: =Orçamento!X869 -> 0
B29: m. | C29: =Orçamento!P870 -> ESTRUTURA DE MADEIRA | D29: =Orçamento!S870 -> 0 | E29: =Orçamento!V870 -> 0 | F29: =Orçamento!X870 -> 0
B30: n. | C30: =Orçamento!P871 -> ESTRUTURAS METÁLICAS | D30: =Orçamento!S871 -> 0 | E30: =Orçamento!V871 -> 0 | F30: =Orçamento!X871 -> 0
B31: o. | C31: =Orçamento!P872 -> COBERTURAS | D31: =Orçamento!S872 -> 0 | E31: =Orçamento!V872 -> 0 | F31: =Orçamento!X872 -> 0
B32: p. | C32: =Orçamento!P873 -> ESQUADRIAS DE MADEIRA | D32: =Orçamento!S873 -> 0 | E32: =Orçamento!V873 -> 0 | F32: =Orçamento!X873 -> 0
B33: q. | C33: =Orçamento!P874 -> ESQUADRIAS METÁLICAS | D33: =Orçamento!S874 -> 0 | E33: =Orçamento!V874 -> 0 | F33: =Orçamento!X874 -> 0
B34: r. | C34: =Orçamento!P875 -> VIDROS | D34: =Orçamento!S875 -> 0 | E34: =Orçamento!V875 -> 0 | F34: =Orçamento!X875 -> 0
B35: s. | C35: =Orçamento!P876 -> REVESTIMENTO DE PAREDE | D35: =Orçamento!S876 -> 0 | E35: =Orçamento!V876 -> 0 | F35: =Orçamento!X876 -> 0
B36: t. | C36: =Orçamento!P877 -> FORROS | D36: =Orçamento!S877 -> 0 | E36: =Orçamento!V877 -> 0 | F36: =Orçamento!X877 -> 0
B37: u. | C37: =Orçamento!P878 -> REVESTIMENTO DE PISO | D37: =Orçamento!S878 -> 0 | E37: =Orçamento!V878 -> 0 | F37: =Orçamento!X878 -> 0
B38: v. | C38: =Orçamento!P879 -> FERRAGENS | D38: =Orçamento!S879 -> 0 | E38: =Orçamento!V879 -> 0 | F38: =Orçamento!X879 -> 0
B39: w. | C39: =Orçamento!P880 -> MARCENARIA | D39: =Orçamento!S880 -> 0 | E39: =Orçamento!V880 -> 0 | F39: =Orçamento!X880 -> 0
B40: x. | C40: =Orçamento!P881 -> ADMINISTRAÇÃO | D40: =Orçamento!S881 -> 0 | E40: =Orçamento!V881 -> 0 | F40: =Orçamento!X881 -> 0
B41: y. | C41: =Orçamento!P882 -> PINTURA | D41: =Orçamento!S882 -> 0 | E41: =Orçamento!V882 -> 0 | F41: =Orçamento!X882 -> 0
B42: z. | C42: =Orçamento!P883 -> DIVERSOS | D42: =Orçamento!S883 -> 0 | E42: =Orçamento!V883 -> 0 | F42: =Orçamento!X883 -> 0
A43: F | B43: TOTAL GERAL DO ORÇAMENTO | D43: =SUM(D17:D42) -> 0 | E43: =SUM(E17:E42) -> 0 | F43: =SUM(F17:F42) -> 0
B45: (*) Para itens da AGETOP, os vidros não estão inclusos nas esquadrias e já foram considerados os custos de contramarco para as esquadrias de alumínio;

Sheet Cronog_120_Dias
B3: UNIDADE ESCOLAR | I3: PRAZO
B4: =Orçamento!O4 -> CENTRO DE ENSINO EM PERÍODO INTEGRAL PROFESSOR SÉRGIO FAYAD GENEROSO | I4: 120 DIAS CORRIDOS
B6: OBRA | I6: DATA
B7: =Orçamento!O7 -> REFORMA E AMPLIAÇÃO | I7: =Orçamento!S7 -> 2020-07-07
B9: LOCAL | I9: ÁREA TOTAL CONSTRUÍDA (M²)
A10: FILTRO | B10: =Orçamento!V7 -> FORMOSA | I10: =Orçamento!V13 -> 3313.58
B12: CRONOGRAMA - FÍSICO FINANCEIRO
A13: ↓ | B13: CUSTO TOTAL: | C13: =D93 -> 0 | D13: VALOR | E13: Dias: | F13: 30 | J13: 60 | N13: 90 | R13: 120 | V13: TOTAL
B14: DESCRIÇÃO DOS SERVIÇOS | E14: % | F14: 1ª PARCELA | J14: 2ª PARCELA | N14: 3ª PARCELA | R14: 4ª PARCELA
A15: =IF(D15>0,"F","") ->  | B15: SERVIÇOS PRELIMINARES | D15: =Orçamento!V858 -> 0 | E15: =Orçamento!X858 -> 0 | F15: =ROUND(F17*$D$15,2) -> 0 | J15: =ROUND(J17*$D$15,2) -> 0 | N15: =ROUND(N17*$D$15,2) -> 0 | R15: =ROUND(R17*$D$15,2) -> 0 | V15: =SUM(F15:U15) -> 0 | X15: =IF(D15=V15,"OK","ERRO") -> OK
A16: =IF(A15="F",A15,"") -> 
A17: =IF(A16="F",A16,"") ->  | F17: 1 | J17: 0 | N17: 0 | R17: =100%-(SUM(F17:Q17)) -> 0 | V17: =IFERROR(E15/100,"") -> 0 | X17: =IF(E15=V17*100,"OK","ERRO") -> OK
A18: =IF(D18>0,"F","") ->  | B18: TRANSPORTES | D18: =Orçamento!V859 -> 0 | E18: =Orçamento!X859 -> 0 | F18: =ROUND(F20*$D$18,2) -> 0 | J18: =ROUND(J20*$D$18,2) -> 0 | N18: =ROUND(N20*$D$18,2) -> 0 | R18: =ROUND(R20*$D$18,2) -> 0 | V18: =SUM(F18:U18) -> 0 | X18: =IF(D18=V18,"OK","ERRO") -> OK
A19: =IF(A18="F",A18,"") -> 
A20: =IF(A19="F",A19,"") ->  | F20: 0.26 | J20: 0.26 | N20: 0.26 | R20: =100%-(SUM(F20:Q20)) -> 0.22 | V20: =IFERROR(E18/100,"") -> 0 | X20: =IF(E18=V20*100,"OK","ERRO") -> OK
A21: =IF(D21>0,"F","") ->  | B21: SERVIÇO EM TERRA | D21: =Orçamento!V860 -> 0 | E21: =Orçamento!X860 -> 0 | F21: =ROUND(F23*$D$21,2) -> 0 | J21: =ROUND(J23*$D$21,2) -> 0 | N21: =ROUND(N23*$D$21,2) -> 0 | R21: =ROUND(R23*$D$21,2) -> 0 | V21: =SUM(F21:U21) -> 0 | X21: =IF(D21=V21,"OK","ERRO") -> OK
A22: =IF(A21="F",A21,"") -> 
A23: =IF(A22="F",A22,"") ->  | F23: 1 | J23: 0 | N23: 0 | R23: =100%-(SUM(F23:Q23)) -> 0 | V23: =IFERROR(E21/100,"") -> 0 | X23: =IF(E21=V23*100,"OK","ERRO") -> OK
A24: =IF(D24>0,"F","") ->  | B24: FUNDAÇÕES E SONDAGENS | D24: =Orçamento!V861 -> 0 | E24: =Orçamento!X861 -> 0 | F24: =ROUND(F26*$D$24,2) -> 0 | J24: =ROUND(J26*$D$24,2) -> 0 | N24: =ROUND(N26*$D$24,2) -> 0 | R24: =ROUND(R26*$D$24,2) -> 0 | V24: =SUM(F24:U24) -> 0 | X24: =IF(D24=V24,"OK","ERRO") -> OK
A25: =IF(A24="F",A24,"") -> 
A26: =IF(A25="F",A25,"") ->  | F26: 1 | J26: 0 | R26: =100%-(SUM(F26:Q26)) -> 0 | V26: =IFERROR(E24/100,"") -> 0 | X26: =IF(E24=V26*100,"OK","ERRO") -> OK
A27: =IF(D27>0,"F","") ->  | B27: ESTRUTURA | D27: =Orçamento!V862 -> 0 | E27: =Orçamento!X862 -> 0 | F27: =ROUND(F29*$D$27,2) -> 0 | J27: =ROUND(J29*$D$27,2) -> 0 | N27: =ROUND(N29*$D$27,2) -> 0 | R27: =ROUND(R29*$D$27,2) -> 0 | V27: =SUM(F27:U27) -> 0 | X27: =IF(D27=V27,"OK","ERRO") -> OK
A28: =IF(A27="F",A27,"") -> 
A29: =IF(A28="F",A28,"") ->  | F29: 0.4 | J29: 0.6 | N29: 0 | R29: =100%-(SUM(F29:Q29)) -> 0 | V29: =IFERROR(E27/100,"") -> 0 | X29: =IF(E27=V29*100,"OK","ERRO") -> OK
A30: =IF(D30>0,"F","") ->  | B30: INST.ELET/TELEFÔNICA/CABEAMENTO ESTRUTURADO | D30: =Orçamento!V863 -> 0 | E30: =Orçamento!X863 -> 0 | F30: =ROUND(F32*$D$30,2) -> 0 | J30: =ROUND(J32*$D$30,2) -> 0 | N30: =ROUND(N32*$D$30,2) -> 0 | R30: =ROUND(R32*$D$30,2) -> 0 | V30: =SUM(F30:U30) -> 0 | X30: =IF(D30=V30,"OK","ERRO") -> OK
A31: =IF(A30="F",A30,"") -> 
A32: =IF(A31="F",A31,"") ->  | J32: 0.75 | N32: 0.25 | R32: =100%-(SUM(F32:Q32)) -> 0 | V32: =IFERROR(E30/100,"") -> 0 | X32: =IF(E30=V32*100,"OK","ERRO") -> OK
A33: =IF(D33>0,"F","") ->  | B33: INSTALAÇÕES HIDROSSANITÁRIAS | D33: =Orçamento!V864 -> 0 | E33: =Orçamento!X864 -> 0 | F33: =ROUND(F35*$D$33,2) -> 0 | J33: =ROUND(J35*$D$33,2) -> 0 | N33: =ROUND(N35*$D$33,2) -> 0 | R33: =ROUND(R35*$D$33,2) -> 0 | V33: =SUM(F33:U33) -> 0 | X33: =IF(D33=V33,"OK","ERRO") -> OK
A34: =IF(A33="F",A33,"") -> 
A35: =IF(A34="F",A34,"") ->  | J35: 0.75 | N35: 0.25 | R35: =100%-(SUM(F35:Q35)) -> 0 | V35: =IFERROR(E33/100,"") -> 0 | X35: =IF(E33=V35*100,"OK","ERRO") -> OK
A36: =IF(D36>0,"F","") ->  | B36: INSTALAÇÕES ESPECIAIS | D36: =Orçamento!V865 -> 0 | E36: =Orçamento!X865 -> 0 | F36: =ROUND(F38*$D$36,2) -> 0 | J36: =ROUND(J38*$D$36,2) -> 0 | N36: =ROUND(N38*$D$36,2) -> 0 | R36: =ROUND(R38*$D$36,2) -> 0 | V36: =SUM(F36:U36) -> 0 | X36: =IF(D36=V36,"OK","ERRO") -> OK
A37: =IF(A36="F",A36,"") -> 
A38: =IF(A37="F",A37,"") ->  | J38: 0.63 | N38: 0.37 | R38: =100%-(SUM(F38:Q38)) -> 0 | V38: =IFERROR(E36/100,"") -> 0 | X38: =IF(E36=V38*100,"OK","ERRO") -> OK
A39: =IF(D39>0,"F","") ->  | B39: ALVENARIA E DIVISÓRIAS | D39: =Orçamento!V866 -> 0 | E39: =Orçamento!X866 -> 0 | F39: =ROUND(F41*$D$39,2) -> 0 | J39: =ROUND(J41*$D$39,2) -> 0 | N39: =ROUND(N41*$D$39,2) -> 0 | R39: =ROUND(R41*$D$39,2) -> 0 | V39: =SUM(F39:U39) -> 0 | X39: =IF(D39=V39,"OK","ERRO") -> OK
A40: =IF(A39="F",A39,"") -> 
A41: =IF(A40="F",A40,"") ->  | J41: 0.63 | N41: 0.37 | R41: =100%-(SUM(F41:Q41)) -> 0 | V41: =IFERROR(E39/100,"") -> 0 | X41: =IF(E39=V41*100,"OK","ERRO") -> OK
A42: =IF(D42>0,"F","") ->  | B42: ALVENARIA AUTO-PORTANTE | D42: =Orçamento!V867 -> 0 | E42: =Orçamento!X867 -> 0 | F42: =ROUND(F44*$D$42,2) -> 0 | J42: =ROUND(J44*$D$42,2) -> 0 | N42: =ROUND(N44*$D$42,2) -> 0 | R42: =ROUND(R44*$D$42,2) -> 0 | V42: =SUM(F42:U42) -> 0 | X42: =IF(D42=V42,"OK","ERRO") -> OK
A43: =IF(A42="F",A42,"") -> 
A44: =IF(A43="F",A43,"") ->  | J44: 0.63 | N44: 0.37 | R44: =100%-(SUM(F44:Q44)) -> 0 | V44: =IFERROR(E42/100,"") -> 0 | X44: =IF(E42=V44*100,"OK","ERRO") -> OK
A45: =IF(D45>0,"F","") ->  | B45: IMPERMEABILIZAÇÃO | D45: =Orçamento!V868 -> 0 | E45: =Orçamento!X868 -> 0 | F45: =ROUND(F47*$D$45,2) -> 0 | J45: =ROUND(J47*$D$45,2) -> 0 | N45: =ROUND(N47*$D$45,2)-0.01 -> -0.01 | R45: =ROUND(R47*$D$45,2) -> 0 | V45: =SUM(F45:U45) -> -0.01 | X45: =IF(D45=V45,"OK","ERRO") -> ERRO
A46: =IF(A45="F",A45,"") -> 
A47: =IF(A46="F",A46,"") ->  | F47: 0.35 | J47: 0.35 | N47: 0.3 | R47: =100%-(SUM(F47:Q47)) -> 0 | V47: =IFERROR(E45/100,"") -> 0 | X47: =IF(E45=V47*100,"OK","ERRO") -> OK
A48: =IF(D48>0,"F","") ->  | B48: ISOLAMENTO TÉRMICO E ACÚSTICO | D48: =Orçamento!V869 -> 0 | E48: =Orçamento!X869 -> 0 | F48: =ROUND(F50*$D$48,2) -> 0 | J48: =ROUND(J50*$D$48,2) -> 0 | N48: =ROUND(N50*$D$48,2) -> 0 | R48: =ROUND(R50*$D$48,2) -> 0 | V48: =SUM(F48:U48) -> 0 | X48: =IF(D48=V48,"OK","ERRO") -> OK
A49: =IF(A48="F",A48,"") -> 
A50: =IF(A49="F",A49,"") ->  | J50: 0.55 | N50: 0.4 | R50: =100%-(SUM(F50:Q50)) -> 0.05 | V50: =IFERROR(E48/100,"") -> 0 | X50: =IF(E48=V50*100,"OK","ERRO") -> OK
A51: =IF(D51>0,"F","") ->  | B51: ESTRUTURA DE MADEIRA | D51: =Orçamento!V870 -> 0 | E51: =Orçamento!X870 -> 0 | F51: =ROUND(F53*$D$51,2) -> 0 | J51: =ROUND(J53*$D$51,2) -> 0 | N51: =ROUND(N53*$D$51,2) -> 0 | R51: =ROUND(R53*$D$51,2) -> 0 | V51: =SUM(F51:U51) -> 0 | X51: =IF(D51=V51,"OK","ERRO") -> OK
A52: =IF(A51="F",A51,"") -> 
A53: =IF(A52="F",A52,"") ->  | J53: 0.35 | N53: 0.65 | R53: =100%-(SUM(F53:Q53)) -> 0 | V53: =IFERROR(E51/100,"") -> 0 | X53: =IF(E51=V53*100,"OK","ERRO") -> OK
A54: =IF(D54>0,"F","") ->  | B54: ESTRUTURA METÁLICA | D54: =Orçamento!V871 -> 0 | E54: =Orçamento!X871 -> 0 | F54: =ROUND(F56*$D$54,2) -> 0 | J54: =ROUND(J56*$D$54,2) -> 0 | N54: =ROUND(N56*$D$54,2) -> 0 | R54: =ROUND(R56*$D$54,2) -> 0 | V54: =SUM(F54:U54) -> 0 | X54: =IF(D54=V54,"OK","ERRO") -> OK
A55: =IF(A54="F",A54,"") -> 
A56: =IF(A55="F",A55,"") ->  | J56: 0.35 | N56: 0.65 | R56: =100%-(SUM(F56:Q56)) -> 0 | V56: =IFERROR(E54/100,"") -> 0 | X56: =IF(E54=V56*100,"OK","ERRO") -> OK
A57: =IF(D57>0,"F","") ->  | B57: COBERTURAS | D57: =Orçamento!V872 -> 0 | E57: =Orçamento!X872 -> 0 | F57: =ROUND(F59*$D$57,2) -> 0 | J57: =ROUND(J59*$D$57,2) -> 0 | N57: =ROUND(N59*$D$57,2) -> 0 | R57: =ROUND(R59*$D$57,2) -> 0 | V57: =SUM(F57:U57) -> 0 | X57: =IF(D57=V57,"OK","ERRO") -> OK
A58: =IF(A57="F",A57,"") -> 
A59: =IF(A58="F",A58,"") ->  | N59: 0.55 | R59: =100%-(SUM(F59:Q59)) -> 0.45 | V59: =IFERROR(E57/100,"") -> 0 | X59: =IF(E57=V59*100,"OK","ERRO") -> OK
A60: =IF(D60>0,"F","") ->  | B60: ESQUADRIAS DE MADEIRA | D60: =Orçamento!V873 -> 0 | E60: =Orçamento!X873 -> 0 | F60: =ROUND(F62*$D$60,2) -> 0 | J60: =ROUND(J62*$D$60,2) -> 0 | N60: =ROUND(N62*$D$60,2) -> 0 | R60: =ROUND(R62*$D$60,2) -> 0 | V60: =SUM(F60:U60) -> 0 | X60: =IF(D60=V60,"OK","ERRO") -> OK
A61: =IF(A60="F",A60,"") -> 
A62: =IF(A61="F",A61,"") ->  | N62: 0.55 | R62: =100%-(SUM(F62:Q62)) -> 0.45 | V62: =IFERROR(E60/100,"") -> 0 | X62: =IF(E60=V62*100,"OK","ERRO") -> OK
A63: =IF(D63>0,"F","") ->  | B63: ESQUADRIAS METÁLICAS | D63: =Orçamento!V874 -> 0 | E63: =Orçamento!X874 -> 0 | F63: =ROUND(F65*$D$63,2) -> 0 | J63: =ROUND(J65*$D$63,2) -> 0 | N63: =ROUND(N65*$D$63,2) -> 0 | R63: =ROUND(R65*$D$63,2) -> 0 | V63: =SUM(F63:U63) -> 0 | X63: =IF(D63=V63,"OK","ERRO") -> OK
A64: =IF(A63="F",A63,"") -> 
A65: =IF(A64="F",A64,"") ->  | N65: 0.55 | R65: =100%-(SUM(F65:Q65)) -> 0.45 | V65: =IFERROR(E63/100,"") -> 0 | X65: =IF(E63=V65*100,"OK","ERRO") -> OK
A66: =IF(D66>0,"F","") ->  | B66: VIDROS | D66: =Orçamento!V875 -> 0 | E66: =Orçamento!X875 -> 0 | F66: =ROUND(F68*$D$66,2) -> 0 | J66: =ROUND(J68*$D$66,2) -> 0 | N66: =ROUND(N68*$D$66,2) -> 0 | R66: =ROUND(R68*$D$66,2) -> 0 | V66: =SUM(F66:U66) -> 0 | X66: =IF(D66=V66,"OK","ERRO") -> OK
A67: =IF(A66="F",A66,"") -> 
A68: =IF(A67="F",A67,"") ->  | N68: 0 | R68: 1 | V68: =IFERROR(E66/100,"") -> 0 | X68: =IF(E66=V68*100,"OK","ERRO") -> OK
A69: =IF(D69>0,"F","") ->  | B69: REVESTIMENTO DE PAREDE | D69: =Orçamento!V876 -> 0 | E69: =Orçamento!X876 -> 0 | F69: =ROUND(F71*$D$69,2) -> 0 | J69: =ROUND(J71*$D$69,2) -> 0 | N69: =ROUND(N71*$D$69,2) -> 0 | R69: =ROUND(R71*$D$69,2) -> 0 | V69: =SUM(F69:U69) -> 0 | X69: =IF(D69=V69,"OK","ERRO") -> OK
A70: =IF(A69="F",A69,"") -> 
A71: =IF(A70="F",A70,"") ->  | N71: 1 | R71: =100%-(SUM(F71:Q71)) -> 0 | V71: =IFERROR(E69/100,"") -> 0 | X71: =IF(E69=V71*100,"OK","ERRO") -> OK
A72: =IF(D72>0,"F","") ->  | B72: FORROS | D72: =Orçamento!V877 -> 0 | E72: =Orçamento!X877 -> 0 | F72: =ROUND(F74*$D$72,2) -> 0 | J72: =ROUND(J74*$D$72,2) -> 0 | N72: =ROUND(N74*$D$72,2) -> 0 | R72: =ROUND(R74*$D$72,2) -> 0 | V72: =SUM(F72:U72) -> 0 | X72: =IF(D72=V72,"OK","ERRO") -> OK
A73: =IF(A72="F",A72,"") -> 
A74: =IF(A73="F",A73,"") ->  | N74: 0.4 | R74: =100%-(SUM(F74:Q74)) -> 0.6 | V74: =IFERROR(E72/100,"") -> 0 | X74: =IF(E72=V74*100,"OK","ERRO") -> OK
A75: =IF(D75>0,"F","") ->  | B75: REVESTIMENTO DE PISO | D75: =Orçamento!V878 -> 0 | E75: =Orçamento!X878 -> 0 | F75: =ROUND(F77*$D$75,2) -> 0 | J75: =ROUND(J77*$D$75,2) -> 0 | N75: =ROUND(N77*$D$75,2) -> 0 | R75: =ROUND(R77*$D$75,2) -> 0 | V75: =SUM(F75:U75) -> 0 | X75: =IF(D75=V75,"OK","ERRO") -> OK
A76: =IF(A75="F",A75,"") -> 
A77: =IF(A76="F",A76,"") ->  | N77: 0.4 | R77: =100%-(SUM(F77:Q77)) -> 0.6 | V77: =IFERROR(E75/100,"") -> 0 | X77: =IF(E75=V77*100,"OK","ERRO") -> OK
A78: =IF(D78>0,"F","") ->  | B78: FERRAGENS | D78: =Orçamento!V879 -> 0 | E78: =Orçamento!X879 -> 0 | F78: =ROUND(F80*$D$78,2) -> 0 | J78: =ROUND(J80*$D$78,2) -> 0 | N78: =ROUND(N80*$D$78,2) -> 0 | R78: =ROUND(R80*$D$78,2) -> 0 | V78: =SUM(F78:U78) -> 0 | X78: =IF(D78=V78,"OK","ERRO") -> OK
A79: =IF(A78="F",A78,"") -> 
A80: =IF(A79="F",A79,"") ->  | R80: =100%-(SUM(F80:Q80)) -> 1 | V80: =IFERROR(E78/100,"") -> 0 | X80: =IF(E78=V80*100,"OK","ERRO") -> OK
A81: =IF(D81>0,"F","") ->  | B81: MARCENARIA | D81: =Orçamento!V880 -> 0 | E81: =Orçamento!X880 -> 0 | F81: =ROUND(F83*$D$81,2) -> 0 | J81: =ROUND(J83*$D$81,2) -> 0 | N81: =ROUND(N83*$D$81,2) -> 0 | R81: =ROUND(R83*$D$81,2) -> 0 | V81: =SUM(F81:U81) -> 0 | X81: =IF(D81=V81,"OK","ERRO") -> OK
A82: =IF(A81="F",A81,"") -> 
A83: =IF(A82="F",A82,"") ->  | R83: =100%-(SUM(F83:Q83)) -> 1 | V83: =IFERROR(E81/100,"") -> 0 | X83: =IF(E81=V83*100,"OK","ERRO") -> OK
A84: =IF(D84>0,"F","") ->  | B84: ADMINISTRAÇÃO - MENSALISTAS | D84: =Orçamento!V881 -> 0 | E84: =Orçamento!X881 -> 0 | F84: =ROUND(F86*$D$84,2) -> 0 | J84: =ROUND(J86*$D$84,2) -> 0 | N84: =ROUND(N86*$D$84,2) -> 0 | R84: =ROUND(R86*$D$84,2)+0.01 -> 0.01 | V84: =SUM(F84:U84) -> 0.01 | X84: =IF(D84=V84,"OK","ERRO") -> ERRO
A85: =IF(A84="F",A84,"") -> 
A86: =IF(A85="F",A85,"") ->  | F86: 0.26 | J86: 0.26 | N86: 0.25 | R86: =100%-(SUM(F86:Q86)) -> 0.23 | V86: =IFERROR(E84/100,"") -> 0 | X86: =IF(E84=V86*100,"OK","ERRO") -> OK
A87: =IF(D87>0,"F","") ->  | B87: PINTURA | D87: =Orçamento!V882 -> 0 | E87: =Orçamento!X882 -> 0 | F87: =ROUND(F89*$D$87,2) -> 0 | J87: =ROUND(J89*$D$87,2) -> 0 | N87: =ROUND(N89*$D$87,2) -> 0 | R87: =ROUND(R89*$D$87,2) -> 0 | V87: =SUM(F87:U87) -> 0 | X87: =IF(D87=V87,"OK","ERRO") -> OK
A88: =IF(A87="F",A87,"") -> 
A89: =IF(A88="F",A88,"") ->  | N89: 0.36 | R89: =100%-(SUM(F89:Q89)) -> 0.64 | V89: =IFERROR(E87/100,"") -> 0 | X89: =IF(E87=V89*100,"OK","ERRO") -> OK
A90: =IF(D90>0,"F","") ->  | B90: DIVERSOS | D90: =Orçamento!V883 -> 0 | E90: =Orçamento!X883 -> 0 | F90: =ROUND(F92*$D$90,2) -> 0 | J90: =ROUND(J92*$D$90,2) -> 0 | N90: =ROUND(N92*$D$90,2) -> 0 | R90: =ROUND(R92*$D$90,2)+0.01 -> 0.01 | V90: =SUM(F90:U90) -> 0.01 | X90: =IF(D90=V90,"OK","ERRO") -> ERRO
A91: =IF(A90="F",A90,"") -> 
A92: =IF(A91="F",A91,"") ->  | F92: 0.255 | J92: 0.255 | N92: 0.255 | R92: =100%-(SUM(F92:Q92)) -> 0.235 | V92: =IFERROR(E90/100,"") -> 0 | X92: =IF(E90=V92*100,"OK","ERRO") -> OK
A93: F | B93: CUSTO DO ORÇAMENTO | D93: =SUM(D15:D92) -> 0 | E93: =SUM(E15:E92) -> 0 | F93: =F15+F18+F21+F24+F27+F30+F33+F36+F39+F42+F45+F48+F51+F54+F57+F60+F63+F66+F69+F72+F75+F78+F81+F84+F87+F90 -> 0 | J93: =J15+J18+J21+J24+J27+J30+J33+J36+J39+J42+J45+J48+J51+J54+J57+J60+J63+J66+J69+J72+J75+J78+J81+J84+J87+J90 -> 0 | N93: =N15+N18+N21+N24+N27+N30+N33+N36+N39+N42+N45+N48+N51+N54+N57+N60+N63+N66+N69+N72+N75+N78+N81+N84+N87+N90 -> -0.01 | R93: =R15+R18+R21+R24+R27+R30+R33+R36+R39+R42+R45+R48+R51+R54+R57+R60+R63+R66+R69+R72+R75+R78+R81+R84+R87+R90 -> 0.02 | V93: =V15+V18+V21+V24+V27+V30+V33+V36+V39+V42+V45+V48+V51+V54+V57+V60+V63+V66+V69+V72+V75+V78+V81+V84+V87+V90 -> 0.01
A94: F | B94: PERCENTUAIS: | F94: =IFERROR(F93/$D$93,"") ->  | J94: =IFERROR(J93/$D$93,"") ->  | N94: =IFERROR(N93/$D$93,"") ->  | R94: =IFERROR(R93/$D$93,"") ->  | V94: =SUM(F94:U94) -> 0
A95: F | B95: TOTAIS ACUMULADOS: | F95: =F93 -> 0 | J95: =J93+F95 -> 0 | N95: =N93+J95 -> -0.01 | R95: =R93+N95 -> 0.01
A96: F | B96: PERCENTUAIS ACUMULADOS: | F96: =F94 ->  | J96: =J94+F96 ->  | N96: =N94+J96 ->  | R96: =R94+N96 -> 
A97: F
A98: F | B98: OBSERVAÇÕES:
A99: F | B99: Os pagamentos somente poderão ser efetuados mediante medição e atesto pelos técnicos da Secretaria da Educação.

Sheet Composição BDI
A3: UNIDADE ESCOLAR
A4: =Orçamento!$O$4 -> CENTRO DE ENSINO EM PERÍODO INTEGRAL PROFESSOR SÉRGIO FAYAD GENEROSO
A6: OBRA
A7: =Orçamento!$O$7 -> REFORMA E AMPLIAÇÃO
A9: ENDEREÇO
A10: =Orçamento!$R$10 -> AV.MAESTRO JOAO L. DO ESPIRITO SANTO S/N, FORMOSINHA, CEP:73813-120
A12: CIDADE
A13: =Orçamento!$V$7 -> FORMOSA
A15: CRE
A16: =Orçamento!$O$10 -> FORMOSA
A18: DETALHAMENTO DA COMPOSIÇÃO DE BDI
A19: COMPOSIÇÃO BDI PARA OBRAS CIVIS | F19: BDI CONSTRUÇÃO E REFORMA
A20: DESCRIÇÃO | B20: COEF. | C20: TAXA % (a.m) | D20: % no preço de venda | F20: Situação | G20: 1º Quartil | H20: Médio | I20: 3º Quartil
A21: 1) COFINS | B21: 1 | C21: 0.03 | D21: =C21 -> 0.03 | F21: =IF(OR(C21<G21,C21>I21),"FORA DO INTERVALO","OK") -> OK | G21: 0.03 | H21: 0.03 | I21: 0.03
A22: 2) PIS | B22: 1 | C22: 0.0065 | D22: =C22 -> 0.0065 | F22: =IF(OR(C22<G22,C22>I22),"FORA DO INTERVALO","OK") -> OK | G22: 0.0065 | H22: 0.0065 | I22: 0.0065
A23: 3) ISSQN | B23: 1 | C23: =IFERROR(VLOOKUP($A$13,#REF!,10,FALSE())/100,0) -> 0 | D23: =C23*B23 -> 0 | F23: FORA DO INTERVALO | G23: 0.02 | H23: 0.035 | I23: 0.05
A24: 4) CPRB | B24: 1 | C24: =IF(Orçamento!$T$10="DESONERADA",4.5%,0) -> 0.045 | D24: =C24 -> 0.045 | F24: OK | G24: 0.045 | H24: 0.045 | I24: 0.045
A25: 5) Administração Central | B25: 1 | C25: 0.046 | D25: 0.046 | F25: OK | G25: 0.03 | H25: 0.04 | I25: 0.055
A26: 6) Despesas Financeiras | B26: 1 | C26: 0.0056 | D26: 0.0056 | F26: FORA DO INTERVALO | G26: 0.0059 | H26: 0.0123 | I26: 0.0139
A27: 7) Seguros + Garantias | B27: 1 | C27: 0.0012 | D27: 0.0012 | F27: FORA DO INTERVALO | G27: 0.008 | H27: 0.008 | I27: 0.01
A28: 8) Risco | B28: 1 | C28: 0.0097 | D28: 0.0097 | F28: OK | G28: 0.0097 | H28: 0.0127 | I28: 0.0127
A29: 9) Lucro | B29: 1 | C29: 0.074 | D29: 0.074 | F29: OK | G29: 0.0616 | H29: 0.074 | I29: 0.0896
A30: BDI - FINAL | D30: =(((1+D25+D27+D28)*(1+D26)*(1+D29))/(1-(D21+D22+D23+D24))-1) -> 0.2427514636 | F30: =IF(OR(D30<G30,D30>I30),"FORA DO INTERVALO","OK") -> OK | G30: 0.2034 | H30: 0.2212 | I30: 0.25
A32: Notas:
A33: (1) e (2) Alíquota definida por lei.
A34: (3) Alíquota e base de cálculo definidas pela legislação municipal.
A35: (4) Alíquota definida pelas leis 12.546/11, 12844/13 e 13.161/15 (CPRB – contribuição previdenciária sobre a receita bruta).
A36: (5) Valores definidos a partir dos limites no Acórdão nº 2.622/2013 - TCU – Plenário. Valores entre o 1º e 3º quartis.
A37: (6) Valor calculado pela expressão matemática do acórdão 2.369/2011 – TCU – Plenário e disponibilizado pela AGETOP em dezembro de 2018. (Foi utilizado para o cálculo a média da Taxa SELIC no período de 11/2017 a 10/2018)
A39: (7) Valores definidos pela AGETOP a partir dos limites no Acórdão nº 2.622/2013 - TCU – Plenário. Valores médios. Observação da AGETOP: (Seguros contra erros de execução, incêndio e explosão, danos da natureza (vendaval, destelhamento, alagamento, inundação, desmoronamento, geadas etc.), emprego de material defeituoso ou inadequado, roubo e/ou furto qualificado, quebra de equipamentos, desmoronamento de estrutura, nas modalidades de Obras Civis em Construção (OCC); Instalação e Montagem (IM); e Obras Civis em Construção e Instalação e Montagem (OCC/IM). Bem como coberturas adicionais para ampliação dessas coberturas básicas, como: cobertura de responsabilidade civil geral, cobertura de responsabilidade civil cruzada, cobertura de despesas extraordinárias, cobertura de tumultos, cobertura de desentulho do local, cobertura de riscos do fabricante, dentre outras, incluindo o seguro de vida em grupo regido pela convenção coletiva dos trabalhadores na indústria da construção civil). A partir de 24/02/2015 por intermédio da Portaria 449/2015 a Presidência da AGETOP, na pessoa do Senhor Jayme Eduardo Rincon, determinou a exclusão dos valores referentes aos Seguros de Risco de Engenharia e Responsabilidade Civil do Profissional na composição do cálculo do B.D.I..
A40: (8) Valores definidos a partir dos limites no Acórdão nº 2.622/2013 - TCU – Plenário. Valores entre 1º e 3° quartis.
A41: (9) Valores definidos a partir dos limites definidos no Acórdão nº 2.622/2013 - TCU – Plenário. Valores adotados e praticados no mercado ( “ ex ante ” ) ou aqueles entre os 1º e 3º quartis.
A43: (*) A fórmula para estipulação da taxa de BDI estimado adotado é a mesma que foi aplicada para a obtenção das tabelas contidas no Acórdão n. 2.622/2013 – TCUPlenário
A45: Obs.: Para obras com valores superiores a R$ 20.000.000,00 sugere-se recalcular o BDI, dimensionando as taxas de administração central e lucro para patamares inferiores ao estipulado acima.

Sheet Relatório CENTRAL
B3: UNIDADE ESCOLAR | D3: CIDADE
B4: =Orçamento!$O$4 -> CENTRO DE ENSINO EM PERÍODO INTEGRAL PROFESSOR SÉRGIO FAYAD GENEROSO | D4: =Orçamento!$V$7 -> FORMOSA
B6: OBRA | D6: CRE
B7: =Orçamento!$O$7 -> REFORMA E AMPLIAÇÃO | D7: =Orçamento!$O$10 -> FORMOSA
B9: ENDEREÇO | D9: DATA
A10: FILTRO | B10: =Orçamento!$R$10 -> AV.MAESTRO JOAO L. DO ESPIRITO SANTO S/N, FORMOSINHA, CEP:73813-120 | D10: =Orçamento!$S$7 -> 2020-07-07
B12: RELATÓRIO CENTRAL
A13: ↓ | B13: CÓDIGO | C13: ETAPA | D13: PREÇO (R$) C/ BDI | E13: PARTIC ( % )
A14: =IF(D14>0,"F","") ->  | B14: =Orçamento!O858 -> a. | C14: =Orçamento!P858 -> SERVIÇOS PRELIMINARES | D14: =Orçamento!V858 -> 0 | E14: =Orçamento!X858 -> 0
A15: =IF(D15>0,"F","") ->  | B15: =Orçamento!O859 -> b. | C15: =Orçamento!P859 -> TRANSPORTES | D15: =Orçamento!V859 -> 0 | E15: =Orçamento!X859 -> 0
B16: =Orçamento!O860 -> c. | C16: =Orçamento!P860 -> SERVIÇO EM TERRA | D16: =Orçamento!V860 -> 0 | E16: =Orçamento!X860 -> 0
B17: =Orçamento!O861 -> d. | C17: =Orçamento!P861 -> FUNDAÇÕES E SONDAGENS | D17: =Orçamento!V861 -> 0 | E17: =Orçamento!X861 -> 0
B18: =Orçamento!O862 -> e. | C18: =Orçamento!P862 -> ESTRUTURA | D18: =Orçamento!V862 -> 0 | E18: =Orçamento!X862 -> 0
B19: =Orçamento!O863 -> f. | C19: =Orçamento!P863 -> INSTALAÇÕES ELÉTRICAS | D19: =Orçamento!V863 -> 0 | E19: =Orçamento!X863 -> 0
B20: =Orçamento!O864 -> g. | C20: =Orçamento!P864 -> INSTALAÇÕES HIDROSSANITÁRIAS | D20: =Orçamento!V864 -> 0 | E20: =Orçamento!X864 -> 0
B21: =Orçamento!O865 -> h | C21: =Orçamento!P865 -> INSTALAÇÕES ESPECIAIS | D21: =Orçamento!V865 -> 0 | E21: =Orçamento!X865 -> 0
B22: =Orçamento!O866 -> i. | C22: =Orçamento!P866 -> ALVENARIAS E DIVISÓRIAS | D22: =Orçamento!V866 -> 0 | E22: =Orçamento!X866 -> 0
B23: =Orçamento!O867 -> j. | C23: =Orçamento!P867 -> ALVENARIA AUTO-PORTANTE | D23: =Orçamento!V867 -> 0 | E23: =Orçamento!X867 -> 0
B24: =Orçamento!O868 -> k. | C24: =Orçamento!P868 -> IMPERMEABILIZAÇÃO | D24: =Orçamento!V868 -> 0 | E24: =Orçamento!X868 -> 0
B25: =Orçamento!O869 -> l. | C25: =Orçamento!P869 -> ISOLAMENTO TÉRMICO E ACÚSTICO | D25: =Orçamento!V869 -> 0 | E25: =Orçamento!X869 -> 0
B26: =Orçamento!O870 -> m. | C26: =Orçamento!P870 -> ESTRUTURA DE MADEIRA | D26: =Orçamento!V870 -> 0 | E26: =Orçamento!X870 -> 0
B27: =Orçamento!O871 -> n. | C27: =Orçamento!P871 -> ESTRUTURAS METÁLICAS | D27: =Orçamento!V871 -> 0 | E27: =Orçamento!X871 -> 0
B28: =Orçamento!O872 -> o. | C28: =Orçamento!P872 -> COBERTURAS | D28: =Orçamento!V872 -> 0 | E28: =Orçamento!X872 -> 0
B29: =Orçamento!O873 -> p. | C29: =Orçamento!P873 -> ESQUADRIAS DE MADEIRA | D29: =Orçamento!V873 -> 0 | E29: =Orçamento!X873 -> 0
B30: =Orçamento!O874 -> q. | C30: =Orçamento!P874 -> ESQUADRIAS METÁLICAS | D30: =Orçamento!V874 -> 0 | E30: =Orçamento!X874 -> 0
B31: =Orçamento!O875 -> r. | C31: =Orçamento!P875 -> VIDROS | D31: =Orçamento!V875 -> 0 | E31: =Orçamento!X875 -> 0
B32: =Orçamento!O876 -> s. | C32: =Orçamento!P876 -> REVESTIMENTO DE PAREDE | D32: =Orçamento!V876 -> 0 | E32: =Orçamento!X876 -> 0
B33: =Orçamento!O877 -> t. | C33: =Orçamento!P877 -> FORROS | D33: =Orçamento!V877 -> 0 | E33: =Orçamento!X877 -> 0
B34: =Orçamento!O878 -> u. | C34: =Orçamento!P878 -> REVESTIMENTO DE PISO | D34: =Orçamento!V878 -> 0 | E34: =Orçamento!X878 -> 0
B35: =Orçamento!O879 -> v. | C35: =Orçamento!P879 -> FERRAGENS | D35: =Orçamento!V879 -> 0 | E35: =Orçamento!X879 -> 0
B36: =Orçamento!O880 -> w. | C36: =Orçamento!P880 -> MARCENARIA | D36: =Orçamento!V880 -> 0 | E36: =Orçamento!X880 -> 0
B37: =Orçamento!O881 -> x. | C37: =Orçamento!P881 -> ADMINISTRAÇÃO | D37: =Orçamento!V881 -> 0 | E37: =Orçamento!X881 -> 0
B38: =Orçamento!O882 -> y. | C38: =Orçamento!P882 -> PINTURA | D38: =Orçamento!V882 -> 0 | E38: =Orçamento!X882 -> 0
B39: =Orçamento!O883 -> z. | C39: =Orçamento!P883 -> DIVERSOS | D39: =Orçamento!V883 -> 0 | E39: =Orçamento!X883 -> 0
A40: F | B40: TOTAL GERAL DO ORÇAMENTO (R$) C/BDI | D40: =SUM(D14:D39) -> 0 | E40: =SUM(E14:E39) -> 0

Sheet Parc Maior Relev
B3: UNIDADE ESCOLAR | E3: CÓDIGO INEP
B4: =Orçamento!$O$4 -> CENTRO DE ENSINO EM PERÍODO INTEGRAL PROFESSOR SÉRGIO FAYAD GENEROSO | E4: =Orçamento!$V$4 -> 52046176
B6: OBRA | E6: CIDADE
B7: =Orçamento!$O$7 -> REFORMA E AMPLIAÇÃO | E7: =Orçamento!$V$7 -> FORMOSA
B9: CRE | E9: ÁREA TOTAL CONSTRUÍDA (M²)
B10: =Orçamento!$O$10 -> FORMOSA | E10: =Orçamento!$V$13 -> 3313.58
A12: FILTRO | B12: PARCELA DE MAIOR RELEVÂNCIA
A13: =IF(G14>0,"F","") -> F | B13: CÓDIGO | C13: SERVIÇO | D13: DESCRIÇÃO | E13: UNID | F13: QUANT | G13: PARC. MAIOR RELEV (100%)
A14: =IF(G14>0,"F","") -> F | B14: =Somatório!B22 -> f. | C14: INSTALAÇÕES ELÉTRICAS | D14: SUBESTAÇÃO | E14: KVA | F14: 112.5 | G14: =F14 -> 112.5
A15: =IF(SUM(G16:G32)>0,"F","") -> F | B15: CÓDIGO | C15: SERVIÇO | D15: DESCRIÇÃO | E15: UNID | F15: QUANT | G15: PARC. MAIOR RELEV (50%)
A16: =IF(G16>0,"F","") ->  | B16: =Somatório!B21 -> e. | C16: ESTRUTURA | D16: CONCRETO | E16: M3 | F16: =SUMIF(Orçamento!$R$20:$R$839,'Parc Maior Relev'!D16,Orçamento!$T$20:$T$839) -> 0 | G16: =F16*0.5 -> 0
A17: =IF(G17>0,"F","") ->  | B17: f. | C17: INSTALAÇÕES ELÉTRICAS | D17: INSTALAÇÕES ELÉTRICAS | E17: KVA | F17: =SUMIF(Orçamento!$R$20:$R$839,'Parc Maior Relev'!D17,Orçamento!$T$20:$T$839) -> 0 | G17: =F17 -> 0
A18: =IF(G18>0,"F","") ->  | B18: =Somatório!B25 -> i. | C18: ALVENARIA E DIVISÓRIAS | D18: ALVENARIA DE TIJOLOS | E18: M2 | F18: =SUMIF(Orçamento!$R$20:$R$839,'Parc Maior Relev'!D18,Orçamento!$T$20:$T$839) -> 0 | G18: =F18*0.5 -> 0
B19: =Somatório!B29 -> m. | C19: ESTRUTURA DE MADEIRA | D19: ESTRUTURA DE MADEIRA | E19: M2 | F19: =SUMIF(Orçamento!$R$20:$R$839,'Parc Maior Relev'!D19,Orçamento!$T$20:$T$839) -> 0 | G19: 0
B20: =Somatório!B31 -> o. | C20: COBERTURAS | D20: COBERTURA CERÂMICA | E20: M2 | F20: =SUMIF(Orçamento!$R$20:$R$839,'Parc Maior Relev'!D20,Orçamento!$T$20:$T$839) -> 0 | G20: 0
B21: o. | C21: COBERTURAS | D21: COBERTURA COM TELHA METÁLICA | E21: M2 | F21: =SUMIF(Orçamento!$R$20:$R$839,'Parc Maior Relev'!D21,Orçamento!$T$20:$T$839) -> 0 | G21: 0
B22: =Somatório!B35 -> s. | C22: REVESTIMENTO DE PAREDE | D22: CHAPISCO | E22: M2 | F22: =SUMIF(Orçamento!$R$20:$R$839,'Parc Maior Relev'!D22,Orçamento!$T$20:$T$839) -> 0 | G22: 0
A23: F | B23: s. | C23: REVESTIMENTO DE PAREDE | D23: REBOCO | E23: M2 | F23: =Orçamento!T682+Orçamento!T687+Orçamento!T697+Orçamento!T699+Orçamento!T702+Orçamento!T707 -> 2698.69 | G23: =F23*0.5 -> 1349.345
B24: s. | C24: REVESTIMENTO DE PAREDE | D24: REVESTIMENTO CERÂMICO | E24: M2 | F24: =SUMIF(Orçamento!$R$20:$R$839,'Parc Maior Relev'!D24,Orçamento!$T$20:$T$839) -> 0 | G24: =F24*0.5 -> 0
B25: =Somatório!B36 -> t. | C25: FORROS | D25: FORRO DE GESSO | E25: M2 | F25: =SUMIF(Orçamento!$R$20:$R$839,'Parc Maior Relev'!D25,Orçamento!$T$20:$T$839) -> 0 | G25: =F25*0.5 -> 0
B26: t. | C26: FORROS | D26: FORRO DE PVC | E26: M2 | F26: =SUMIF(Orçamento!$R$20:$R$839,'Parc Maior Relev'!D26,Orçamento!$T$20:$T$839) -> 0 | G26: =F26*0.5 -> 0
B27: t. | C27: FORROS | D27: FORRO DE GESSO ACARTONADO | E27: M2 | F27: =SUMIF(Orçamento!$R$20:$R$839,'Parc Maior Relev'!D27,Orçamento!$T$20:$T$839) -> 0 | G27: =F27*0.5 -> 0
B28: u. | C28: REVESTIMENTO DE PISO | D28: PISO DE GRANITINA | E28: M2 | F28: =SUMIF(Orçamento!$R$20:$R$839,'Parc Maior Relev'!D28,Orçamento!$T$20:$T$839) -> 0 | G28: 0
B29: u. | C29: REVESTIMENTO DE PISO | D29: PISO LAMINADO | E29: M2 | F29: =SUMIF(Orçamento!$R$20:$R$839,'Parc Maior Relev'!D29,Orçamento!$T$20:$T$839) -> 0 | G29: 0
B30: u. | C30: REVESTIMENTO DE PISO | D30: PISO DE CONCRETO DESEMPENADO | E30: M2 | F30: =SUMIF(Orçamento!$R$20:$R$839,'Parc Maior Relev'!D30,Orçamento!$T$20:$T$839) -> 0 | G30: 0
B31: u. | C31: REVESTIMENTO DE PISO | D31: PISO CERÂMICO | E31: M2 | F31: =SUMIF(Orçamento!$R$20:$R$839,'Parc Maior Relev'!D31,Orçamento!$T$20:$T$839) -> 0 | G31: =F31*0.5 -> 0
A32: F | B32: y. | C32: PINTURA | D32: PINTURA | E32: M2 | F32: =Orçamento!T778+Orçamento!T781+Orçamento!T789+Orçamento!T796+Orçamento!T800+Orçamento!T816 -> 6246.86 | G32: 3123.43
A33: F
A34: F | B34: (*) Para os fins do inciso I dp § 1º do Art. 30 da Lei Federal 8.666/93, são consideradas parcelas de maior relevância técnica as execuções apresentadas
A35: F

Sheet Composições
A4: UNIDADE ESCOLAR | H4: CÓDIGO INEP
A5: =Orçamento!$O$4 -> CENTRO DE ENSINO EM PERÍODO INTEGRAL PROFESSOR SÉRGIO FAYAD GENEROSO | H5: =Orçamento!$V$4 -> 52046176
A7: OBRA | H7: CIDADE
A8: =Orçamento!$O$7 -> REFORMA E AMPLIAÇÃO | H8: =Orçamento!$V$7 -> FORMOSA
A10: CRE | D10: ENDEREÇO | H10: REFERÊNCIA AGETOP
A11: =Orçamento!$O$10 -> FORMOSA | D11: =Orçamento!$R$10 -> AV.MAESTRO JOAO L. DO ESPIRITO SANTO S/N, FORMOSINHA, CEP:73813-120 | H11: =Orçamento!$S$10 -> ABR/19 | I11: =Orçamento!$T$10 -> DESONERADA
A13: DATA | D13: ÁREA TOTAL CONSTRUÍDA (M²) | H13: REFERÊNCIA SINAPI
A14: =Orçamento!$S$7 -> 2020-07-07 | D14: =Orçamento!$V$13 -> 3313.58 | H14: =Orçamento!$V$10 -> DEZ/19 | I14: =Orçamento!$W$10 -> DESONERADA
A16: COMPOSIÇÕES DE CUSTOS UNITÁRIOS - SEE-GO
A17: 10 | B17: FONTE | C17: CÓDIGO | D17: DESCRIÇÃO | E17: UNIDADE | F17: COEFIC. | G17: CUSTO UNITÁRIO | I17: CUSTO TOTAL (A) + (B) + (C) + (D) + (E)
G18: DESONERADO | H18: NÃO DESONER. | I18: DESONERADO | J18: NÃO DESONER.
B19: COMPOSIÇÃO | C19: COMP 010_SEE | D19: DEMOLIÇÃO DE GRADE/GRELHA/CORRIMÃO/GUARDA CORPO - METÁLICO | E19: M2 | G19: - | H19: - | I19: 4.06 | J19: 4.71
G20: 0 | H20: 0 | I20: 0 | J20: 0
G21: 0 | H21: 0 | I21: 0 | J21: 0
G22: 0 | H22: 0 | I22: 0 | J22: 0
B23: MÃO DE OBRA (B) - TOTAL | I23: 0 | J23: 0
B24: AGETOP | C24: 20106 | D24: RETIRADA DE JANELAS OU PORTAIS C/ TRANSP. ATÉ CB. E CARGA | E24: m2 | F24: 1 | G24: 4.06 | H24: 4.71 | I24: 4.06 | J24: 4.71
G25: 0 | H25: 0 | I25: 0 | J25: 0
G26: 0 | H26: 0 | I26: 0 | J26: 0
B27: MATERIAL (C) - TOTAL | I27: 4.06 | J27: 4.71
A29: 10 | B29: FONTE | C29: CÓDIGO | D29: DESCRIÇÃO | E29: UNIDADE | F29: COEFIC. | G29: CUSTO UNITÁRIO | I29: CUSTO TOTAL (A) + (B) + (C) + (D) + (E)
G30: DESONERADO | H30: NÃO DESONER. | I30: DESONERADO | J30: NÃO DESONER.
B31: COMPOSIÇÃO | C31: COMP 010_SEE | D31: DEMOLIÇÃO DE GRADE/GRELHA/CORRIMÃO/GUARDA CORPO - METÁLICO | E31: M2 | G31: - | H31: - | I31: 4.06 | J31: 4.71
G32: 0 | H32: 0 | I32: 0 | J32: 0
G33: 0 | H33: 0 | I33: 0 | J33: 0
G34: 0 | H34: 0 | I34: 0 | J34: 0
B35: MÃO DE OBRA (B) - TOTAL | I35: 0 | J35: 0
B36: AGETOP | C36: 20106 | D36: RETIRADA DE JANELAS OU PORTAIS C/ TRANSP. ATÉ CB. E CARGA | E36: m2 | F36: 1 | G36: 4.06 | H36: 4.71 | I36: 4.06 | J36: 4.71
G37: 0 | H37: 0 | I37: 0 | J37: 0
G38: 0 | H38: 0 | I38: 0 | J38: 0
B39: MATERIAL (C) - TOTAL | I39: 4.06 | J39: 4.71
A41: 46 | B41: FONTE | C41: CÓDIGO | D41: DESCRIÇÃO | E41: UNIDADE | F41: COEFIC. | G41: CUSTO UNITÁRIO | I41: CUSTO TOTAL (A) + (B) + (C) + (D) + (E)
G42: DESONERADO | H42: NÃO DESONER. | I42: DESONERADO | J42: NÃO DESONER.
B43: COMPOSIÇÃO | C43: COMP 046_SEE | D43: CAPUZ PARA PROTEÇÃO DOS PARA RAIOS | E43: UN | I43: 16.56 | J43: 16.69
B44: AGETOP_I | C44: 8 | D44: AJUDANTE | E44: h | F44: 0.0333 | G44: 8.75 | H44: 10.14 | I44: 0.29 | J44: 0.34
B45: AGETOP_I | C45: 12 | D45: ELETRICISTA | E45: h | F45: 0.0333 | G45: 13.95 | H45: 16.16 | I45: 0.46 | J45: 0.54
B46: MÃO DE OBRA (B) - TOTAL | I46: 0.75 | J46: 0.88
B47: COTAÇÃO | C47: COT 010_SEE | D47: CAPUZ PARA PROTEÇÃO DOS PARA RAIOS | E47: UN | F47: 1 | G47: 15.81 | H47: 15.81 | I47: 15.81 | J47: 15.81
B48: MATERIAL (C) - TOTAL | I48: 15.81 | J48: 15.81
A50: 47 | B50: FONTE | C50: CÓDIGO | D50: DESCRIÇÃO | E50: UNIDADE | F50: COEFIC. | G50: CUSTO UNITÁRIO | I50: CUSTO TOTAL (A) + (B) + (C) + (D) + (E)
G51: DESONERADO | H51: NÃO DESONER. | I51: DESONERADO | J51: NÃO DESONER.
B52: COMPOSIÇÃO | C52: COMP 047_SEE | D52: CAPUZ DE PROTEÇÃO PARA BUCHA DE TRANSFORMADOR | E52: UN | I52: 16.56 | J52: 16.69
B53: AGETOP_I | C53: 8 | D53: AJUDANTE | E53: h | F53: 0.0333 | G53: 8.75 | H53: 10.14 | I53: 0.29 | J53: 0.34
B54: AGETOP_I | C54: 12 | D54: ELETRICISTA | E54: h | F54: 0.0333 | G54: 13.95 | H54: 16.16 | I54: 0.46 | J54: 0.54
B55: MÃO DE OBRA (B) - TOTAL | I55: 0.75 | J55: 0.88
B56: COTAÇÃO | C56: COT 011_SEE | D56: CAPUZ DE PROTEÇÃO PARA BUCHA DE TRANSFORMADOR | E56: UN | F56: 1 | G56: 15.81 | H56: 15.81 | I56: 15.81 | J56: 15.81
B57: MATERIAL (C) - TOTAL | I57: 15.81 | J57: 15.81
A59: 48 | B59: FONTE | C59: CÓDIGO | D59: DESCRIÇÃO | E59: UNIDADE | F59: COEFIC. | G59: CUSTO UNITÁRIO | I59: CUSTO TOTAL (A) + (B) + (C) + (D) + (E)
G60: DESONERADO | H60: NÃO DESONER. | I60: DESONERADO | J60: NÃO DESONER.
B61: COMPOSIÇÃO | C61: COMP 048_SEE | D61: HASTE ROSQUEADA "TIRANTE" 3/8" | E61: M | I61: 14.46 | J61: 15.9
B62: AGETOP_I | C62: 8 | D62: AJUDANTE | E62: h | F62: 0.4 | G62: 8.75 | H62: 10.14 | I62: 3.5 | J62: 4.06
B63: AGETOP_I | C63: 12 | D63: ELETRICISTA | E63: h | F63: 0.4 | G63: 13.95 | H63: 16.16 | I63: 5.58 | J63: 6.46
B64: MÃO DE OBRA (B) - TOTAL | I64: 9.08 | J64: 10.52
B65: COTAÇÃO | C65: COT 012_SEE | D65: HASTE ROSQUEADA "TIRANTE" 3/8" | E65: M | F65: 1 | G65: 5.383333333 | H65: 5.383333333 | I65: 5.38 | J65: 5.38
B66: MATERIAL (C) - TOTAL | I66: 5.38 | J66: 5.38
A68: 49 | B68: FONTE | C68: CÓDIGO | D68: DESCRIÇÃO | E68: UNIDADE | F68: COEFIC. | G68: CUSTO UNITÁRIO | I68: CUSTO TOTAL (A) + (B) + (C) + (D) + (E)
G69: DESONERADO | H69: NÃO DESONER. | I69: DESONERADO | J69: NÃO DESONER.
B70: COMPOSIÇÃO | C70: COMP 049_SEE | D70: PORCA SEXTAVADA 3/8" | E70: UN | I70: 0.21 | J70: 0.22
B71: AGETOP_I | C71: 8 | D71: AJUDANTE | E71: h | F71: 0.009 | G71: 8.75 | H71: 10.14 | I71: 0.08 | J71: 0.09
B72: MÃO DE OBRA (B) - TOTAL | I72: 0.08 | J72: 0.09
B73: COTAÇÃO | C73: COT 013_SEE | D73: PORCA SEXTAVADA 3/8" | E73: UN | F73: 1 | G73: 0.13 | H73: 0.13 | I73: 0.13 | J73: 0.13
B74: MATERIAL (C) - TOTAL | I74: 0.13 | J74: 0.13
A76: 427 | B76: FONTE | C76: CÓDIGO | D76: DESCRIÇÃO | E76: UNIDADE | F76: COEFIC. | G76: CUSTO UNITÁRIO | I76: CUSTO TOTAL (A) + (B) + (C) + (D) + (E)
G77: DESONERADO | H77: NÃO DESONER. | I77: DESONERADO | J77: NÃO DESONER.
B78: COMPOSIÇÃO | C78: COMP 427_SEE | D78: DUCHA HIGIENICA PLASTICA COM REGISTRO METALICO 1/2 " | E78: UN | I78: 72.49 | J78: 73.21
B79: AGETOP_I | C79: 11 | D79: ENCANADOR | E79: h | F79: 0.2 | G79: 13.95 | H79: 16.16 | I79: 2.79 | J79: 3.23
B80: AGETOP_I | C80: 8 | D80: AJUDANTE | E80: h | F80: 0.2 | G80: 8.75 | H80: 10.14 | I80: 1.75 | J80: 2.03
B81: MÃO DE OBRA (B) - TOTAL | I81: 4.54 | J81: 5.26
B82: SINAPI_I | C82: 1370 | D82: DUCHA HIGIENICA PLASTICA COM REGISTRO METALICO 1/2 " | E82: UN | F82: 1 | G82: 67.95 | H82: 67.95 | I82: 67.95 | J82: 67.95
B83: MATERIAL (C) - TOTAL | I83: 67.95 | J83: 67.95
A85: 57 | B85: FONTE | C85: CÓDIGO | D85: DESCRIÇÃO | E85: UNIDADE | F85: COEFIC. | G85: CUSTO UNITÁRIO | I85: CUSTO TOTAL (A) + (B) + (C) + (D) + (E)
G86: DESONERADO | H86: NÃO DESONER. | I86: DESONERADO | J86: NÃO DESONER.
B87: COMPOSIÇÃO | C87: COMP 057_SEE | D87: BUCHA DE REDUCAO SOLDAVEL LONGA 85 X 60 mm | E87: UN | I87: 17.55 | J87: 18.22
B88: AGETOP_I | C88: 8 | D88: AJUDANTE | E88: h | F88: 0.185 | G88: 8.75 | H88: 10.14 | I88: 1.62 | J88: 1.88
B89: AGETOP_I | C89: 11 | D89: ENCANADOR | E89: h | F89: 0.185 | G89: 13.95 | H89: 16.16 | I89: 2.58 | J89: 2.99
B90: MÃO DE OBRA (B) - TOTAL | I90: 4.2 | J90: 4.87
B91: SINAPI_I | C91: 817 | D91: BUCHA DE REDUCAO DE PVC, SOLDAVEL, LONGA, COM 85 X 60 MM, PARA AGUA FRIA PREDIAL | E91: UN | F91: 1 | G91: 13.35 | H91: 13.35 | I91: 13.35 | J91: 13.35
B92: MATERIAL (C) - TOTAL | I92: 13.35 | J92: 13.35
A94: 382 | B94: FONTE | C94: CÓDIGO | D94: DESCRIÇÃO | E94: UNIDADE | F94: COEFIC. | G94: CUSTO UNITÁRIO | I94: CUSTO TOTAL (A) + (B) + (C) + (D) + (E)
G95: DESONERADO | H95: NÃO DESONER. | I95: DESONERADO | J95: NÃO DESONER.
B96: COMPOSIÇÃO | C96: COMP 382_SEE | D96: TE DE REDUCAO DE FERRO GALVANIZADO, COM ROSCA BSP, DE 3/4" X 1/2" | E96: UN | I96: 22.58 | J96: 24.76
B97: AGETOP_I | C97: 8 | D97: AJUDANTE | E97: h | F97: 0.6 | G97: 8.75 | H97: 10.14 | I97: 5.25 | J97: 6.08
B98: AGETOP_I | C98: 11 | D98: ENCANADOR | E98: h | F98: 0.6105 | G98: 13.95 | H98: 16.16 | I98: 8.52 | J98: 9.87
B99: MÃO DE OBRA (B) - TOTAL | I99: 13.77 | J99: 15.95
B100: SINAPI_I | C100: 3146 | D100: FITA VEDA ROSCA EM ROLOS DE 18 MM X 10 M (L X C) | E100: UN | F100: 0.120754717 | G100: 3.69 | H100: 3.69 | I100: 0.45 | J100: 0.45
B101: SINAPI_I | C101: 6302 | D101: TE DE REDUCAO DE FERRO GALVANIZADO, COM ROSCA BSP, DE 3/4" X 1/2" | E101: UN | F101: 1 | G101: 8.36 | H101: 8.36 | I101: 8.36 | J101: 8.36
B102: MATERIAL (C) - TOTAL | I102: 8.81 | J102: 8.81
A104: 383 | B104: FONTE | C104: CÓDIGO | D104: DESCRIÇÃO | E104: UNIDADE | F104: COEFIC. | G104: CUSTO UNITÁRIO | I104: CUSTO TOTAL (A) + (B) + (C) + (D) + (E)
G105: DESONERADO | H105: NÃO DESONER. | I105: DESONERADO | J105: NÃO DESONER.
B106: COMPOSIÇÃO | C106: COMP 383_SEE | D106: BUCHA DE REDUCAO DE FERRO GALVANIZADO, COM ROSCA BSP, DE 1/2" X 1/4" | E106: UN | I106: 6.71 | J106: 7.29
B107: AGETOP_I | C107: 8 | D107: AJUDANTE | E107: h | F107: 0.16 | G107: 8.75 | H107: 10.14 | I107: 1.4 | J107: 1.62
B108: AGETOP_I | C108: 11 | D108: ENCANADOR | E108: h | F108: 0.16 | G108: 13.95 | H108: 16.16 | I108: 2.23 | J108: 2.59
B109: MÃO DE OBRA (B) - TOTAL | I109: 3.63 | J109: 4.21
B110: AGETOP_I | C110: H689 | F110: 1.2 | G110: 0 | H110: 0 | I110: 0 | J110: 0
B111: SINAPI_I | C111: 770 | D111: BUCHA DE REDUCAO DE FERRO GALVANIZADO, COM ROSCA BSP, DE 1/2" X 1/4" | E111: UN | F111: 1 | G111: 3.08 | H111: 3.08 | I111: 3.08 | J111: 3.08
B112: MATERIAL (C) - TOTAL | I112: 3.08 | J112: 3.08
A114: 212 | B114: FONTE | C114: CÓDIGO | D114: DESCRIÇÃO | E114: UNIDADE | F114: COEFIC. | G114: CUSTO UNITÁRIO | I114: CUSTO TOTAL (A) + (B) + (C) + (D) + (E)
G115: DESONERADO | H115: NÃO DESONER. | I115: DESONERADO | J115: NÃO DESONER.
B116: COMPOSIÇÃO | C116: COMP 212_SEE | D116: NIPLE DE REDUÇÃO 1/2" X 1/4" BSP | E116: UN | I116: 9.68 | J116: 10.26
B117: AGETOP_I | C117: 8 | D117: AJUDANTE | E117: h | F117: 0.16 | G117: 8.75 | H117: 10.14 | I117: 1.4 | J117: 1.62
B118: AGETOP_I | C118: 11 | D118: ENCANADOR | E118: h | F118: 0.16 | G118: 13.95 | H118: 16.16 | I118: 2.23 | J118: 2.59
B119: MÃO DE OBRA (B) - TOTAL | I119: 3.63 | J119: 4.21
B120: COTAÇÃO | C120: COT 103_SEE | D120: NIPLE DE REDUÇÃO 1/2" X 1/4" BSP | E120: UN | F120: 1 | G120: 6.053333333 | H120: 6.053333333 | I120: 6.05 | J120: 6.05
B121: MATERIAL (C) - TOTAL | I121: 6.05 | J121: 6.05
A123: 213 | B123: FONTE | C123: CÓDIGO | D123: DESCRIÇÃO | E123: UNIDADE | F123: COEFIC. | G123: CUSTO UNITÁRIO | I123: CUSTO TOTAL (A) + (B) + (C) + (D) + (E)
G124: DESONERADO | H124: NÃO DESONER. | I124: DESONERADO | J124: NÃO DESONER.
B125: COMPOSIÇÃO | C125: COMP 213_SEE | D125: NIPLE DE REDUÇÃO 3/4" X 1/2" BSP | E125: UN | I125: 13.34 | J125: 13.92
B126: AGETOP_I | C126: 8 | D126: AJUDANTE | E126: h | F126: 0.16 | G126: 8.75 | H126: 10.14 | I126: 1.4 | J126: 1.62
B127: AGETOP_I | C127: 11 | D127: ENCANADOR | E127: h | F127: 0.16 | G127: 13.95 | H127: 16.16 | I127: 2.23 | J127: 2.59
B128: MÃO DE OBRA (B) - TOTAL | I128: 3.63 | J128: 4.21
B129: COTAÇÃO | C129: COT 104_SEE | D129: NIPLE DE REDUÇÃO 3/4" X 1/2" BSP | E129: UN | F129: 1 | G129: 9.71 | H129: 9.71 | I129: 9.71 | J129: 9.71
B130: MATERIAL (C) - TOTAL | I130: 9.71 | J130: 9.71
A132: 237 | B132: FONTE | C132: CÓDIGO | D132: DESCRIÇÃO | E132: UNIDADE | F132: COEFIC. | G132: CUSTO UNITÁRIO | I132: CUSTO TOTAL (A) + (B) + (C) + (D) + (E)
G133: DESONERADO | H133: NÃO DESONER. | I133: DESONERADO | J133: NÃO DESONER.
B134: COMPOSIÇÃO | C134: COMP 237_SEE | D134: FITA ANTICORROSIVA | E134: M | I134: 11.73 | J134: 12.45
B135: AGETOP_I | C135: 8 | D135: AJUDANTE | E135: h | F135: 0.2 | G135: 8.75 | H135: 10.14 | I135: 1.75 | J135: 2.03
B136: AGETOP_I | C136: 12 | D136: ELETRICISTA | E136: h | F136: 0.2 | G136: 13.95 | H136: 16.16 | I136: 2.79 | J136: 3.23
B137: MÃO DE OBRA (B) - TOTAL | I137: 4.54 | J137: 5.26
B138: SINAPI_I | C138: 39634 | D138: FITA ADESIVA ANTICORROSIVA DE PVC FLEXIVEL, COR PRETA, PARA PROTECAO TUBULACAO, 50 MM X 30 M (L X C), E= *0,25* MM | E138: M | F138: 1 | G138: 7.19 | H138: 7.19 | I138: 7.19 | J138: 7.19
B139: MATERIAL (C) - TOTAL | I139: 7.19 | J139: 7.19
A141: 542 | B141: FONTE | C141: CÓDIGO | D141: DESCRIÇÃO | E141: UNIDADE | F141: COEFIC. | G141: CUSTO UNITÁRIO | I141: CUSTO TOTAL (A) + (B) + (C) + (D) + (E)
G142: DESONERADO | H142: NÃO DESONER. | I142: DESONERADO | J142: NÃO DESONER.
B143: COMPOSIÇÃO | C143: COMP 542_SEE | D143: VÁLVULA UGV 3/4" (S) LATÃO | E143: UN | I143: 25.65 | J143: 27.2
B144: AGETOP_I | C144: 8 | D144: AJUDANTE | E144: h | F144: 0.432 | G144: 8.75 | H144: 10.14 | I144: 3.78 | J144: 4.38
B145: AGETOP_I | C145: 11 | D145: ENCANADOR | E145: h | F145: 0.432 | G145: 13.95 | H145: 16.16 | I145: 6.03 | J145: 6.98
B146: MÃO DE OBRA (B) - TOTAL | I146: 9.81 | J146: 11.36
B147: COTAÇÃO | C147: COT 281_SEE | D147: VÁLVULA UGV 3/4" (S) LATÃO | E147: UN | F147: 1 | G147: 15.83666667 | H147: 15.83666667 | I147: 15.84 | J147: 15.84
B148: MATERIAL (C) - TOTAL | I148: 15.84 | J148: 15.84
A150: 543 | B150: FONTE | C150: CÓDIGO | D150: DESCRIÇÃO | E150: UNIDADE | F150: COEFIC. | G150: CUSTO UNITÁRIO | I150: CUSTO TOTAL (A) + (B) + (C) + (D) + (E)
G151: DESONERADO | H151: NÃO DESONER. | I151: DESONERADO | J151: NÃO DESONER.
B152: COMPOSIÇÃO | C152: COMP 543_SEE | D152: VÁLVULA UGV 1/2" (S) LATÃO | E152: UN | I152: 24.98 | J152: 26.53
B153: AGETOP_I | C153: 8 | D153: AJUDANTE | E153: h | F153: 0.432 | G153: 8.75 | H153: 10.14 | I153: 3.78 | J153: 4.38
B154: AGETOP_I | C154: 11 | D154: ENCANADOR | E154: h | F154: 0.432 | G154: 13.95 | H154: 16.16 | I154: 6.03 | J154: 6.98
B155: MÃO DE OBRA (B) - TOTAL | I155: 9.81 | J155: 11.36
B156: COTAÇÃO | C156: COT 282_SEE | D156: VÁLVULA UGV 1/2" (S) LATÃO | E156: UN | F156: 1 | G156: 15.16666667 | H156: 15.16666667 | I156: 15.17 | J156: 15.17
B157: MATERIAL (C) - TOTAL | I157: 15.17 | J157: 15.17
A159: 211 | B159: FONTE | C159: CÓDIGO | D159: DESCRIÇÃO | E159: UNIDADE | F159: COEFIC. | G159: CUSTO UNITÁRIO | I159: CUSTO TOTAL (A) + (B) + (C) + (D) + (E)
G160: DESONERADO | H160: NÃO DESONER. | I160: DESONERADO | J160: NÃO DESONER.
B161: COMPOSIÇÃO | C161: COMP 211_SEE | D161: REGULADOR DE 2º ESTÁGIO 5KG/H | E161: UN | I161: 85.93 | J161: 90.07
B162: AGETOP_I | C162: 8 | D162: AJUDANTE | E162: h | F162: 1.15 | G162: 8.75 | H162: 10.14 | I162: 10.06 | J162: 11.66
B163: AGETOP_I | C163: 11 | D163: ENCANADOR | E163: h | F163: 1.15 | G163: 13.95 | H163: 16.16 | I163: 16.04 | J163: 18.58
B164: MÃO DE OBRA (B) - TOTAL | I164: 26.1 | J164: 30.24
B165: COTAÇÃO | C165: COT 102_SEE | D165: REGULADOR DE 2º ESTÁGIO 5KG/H | E165: UN | F165: 1 | G165: 59.83333333 | H165: 59.83333333 | I165: 59.83 | J165: 59.83
B166: AGETOP_I | C166: H689 | F166: 2.82 | G166: 0 | H166: 0 | I166: 0 | J166: 0
B167: MATERIAL (C) - TOTAL | I167: 59.83 | J167: 59.83
A169: 210 | B169: FONTE | C169: CÓDIGO | D169: DESCRIÇÃO | E169: UNIDADE | F169: COEFIC. | G169: CUSTO UNITÁRIO | I169: CUSTO TOTAL (A) + (B) + (C) + (D) + (E)
G170: DESONERADO | H170: NÃO DESONER. | I170: DESONERADO | J170: NÃO DESONER.
B171: COMPOSIÇÃO | C171: COMP 210_SEE | D171: REGULADOR DE 1º ESTÁGIO 60KG/H MODELO AP-40 COM MANÔMETRO | E171: UN | I171: 231.68 | J171: 235.82
B172: AGETOP_I | C172: 8 | D172: AJUDANTE | E172: h | F172: 1.15 | G172: 8.75 | H172: 10.14 | I172: 10.06 | J172: 11.66
B173: AGETOP_I | C173: 11 | D173: ENCANADOR | E173: h | F173: 1.15 | G173: 13.95 | H173: 16.16 | I173: 16.04 | J173: 18.58
B174: MÃO DE OBRA (B) - TOTAL | I174: 26.1 | J174: 30.24
B175: COTAÇÃO | C175: COT 101_SEE | D175: REGULADOR DE 1º ESTÁGIO 60KG/H MODELO AP-40 COM MANÔMETRO | E175: UN | F175: 1 | G175: 205.5766667 | H175: 205.5766667 | I175: 205.58 | J175: 205.58
B176: AGETOP_I | C176: H689 | F176: 2.82 | G176: 0 | H176: 0 | I176: 0 | J176: 0
B177: MATERIAL (C) - TOTAL | I177: 205.58 | J177: 205.58
A179: 235 | B179: FONTE | C179: CÓDIGO | D179: DESCRIÇÃO | E179: UNIDADE | F179: COEFIC. | G179: CUSTO UNITÁRIO | I179: CUSTO TOTAL (A) + (B) + (C) + (D) + (E)
G180: DESONERADO | H180: NÃO DESONER. | I180: DESONERADO | J180: NÃO DESONER.
B181: COMPOSIÇÃO | C181: COMP 235_SEE | D181: PLACA DE SINALIZAÇÃO EM PVC COD 01 - (300X300) PROIBIDO FUMAR | E181: UN | I181: 24.16 | J181: 24.28
B182: AGETOP_I | C182: 5 | D182: SERVENTE | E182: h | F182: 0.09 | G182: 8.75 | H182: 10.14 | I182: 0.79 | J182: 0.91
B183: MÃO DE OBRA (B) - TOTAL | I183: 0.79 | J183: 0.91
B184: AGETOP_I | C184: 3070 | D184: BUCHA DE NYLON S-6 | E184: un | F184: 2 | G184: 0.04 | H184: 0.04 | I184: 0.08 | J184: 0.08
B185: AGETOP_I | C185: 3393 | D185: PARAFUSO P/BUCHA S-6 | E185: un | F185: 2 | G185: 0.08 | H185: 0.08 | I185: 0.16 | J185: 0.16
B186: SINAPI_I | C186: 37556 | D186: PLACA DE SINALIZACAO DE SEGURANCA CONTRA INCENDIO, FOTOLUMINESCENTE, QUADRADA, *20 X 20* CM, EM PVC *2* MM ANTI-CHAMAS (SIMBOLOS, CORES E PICTOGRAMAS CONFORME NBR 13434) | E186: UN | F186: 1 | G186: 23.13 | H186: 23.13 | I186: 23.13 | J186: 23.13
B187: MATERIAL (C) - TOTAL | I187: 23.37 | J187: 23.37
A189: 236 | B189: FONTE | C189: CÓDIGO | D189: DESCRIÇÃO | E189: UNIDADE | F189: COEFIC. | G189: CUSTO UNITÁRIO | I189: CUSTO TOTAL (A) + (B) + (C) + (D) + (E)
G190: DESONERADO | H190: NÃO DESONER. | I190: DESONERADO | J190: NÃO DESONER.
B191: COMPOSIÇÃO | C191: COMP 236_SEE | D191: PLACA DE SINALIZAÇÃO EM PVC COD 06 - (300X300) PERIGO INFLAMÁVEL | E191: UN | I191: 24.16 | J191: 24.28
B192: AGETOP_I | C192: 5 | D192: SERVENTE | E192: h | F192: 0.09 | G192: 8.75 | H192: 10.14 | I192: 0.79 | J192: 0.91
B193: MÃO DE OBRA (B) - TOTAL | I193: 0.79 | J193: 0.91
B194: AGETOP_I | C194: 3070 | D194: BUCHA DE NYLON S-6 | E194: un | F194: 2 | G194: 0.04 | H194: 0.04 | I194: 0.08 | J194: 0.08
B195: AGETOP_I | C195: 3393 | D195: PARAFUSO P/BUCHA S-6 | E195: un | F195: 2 | G195: 0.08 | H195: 0.08 | I195: 0.16 | J195: 0.16
B196: SINAPI_I | C196: 37556 | D196: PLACA DE SINALIZACAO DE SEGURANCA CONTRA INCENDIO, FOTOLUMINESCENTE, QUADRADA, *20 X 20* CM, EM PVC *2* MM ANTI-CHAMAS (SIMBOLOS, CORES E PICTOGRAMAS CONFORME NBR 13434) | E196: UN | F196: 1 | G196: 23.13 | H196: 23.13 | I196: 23.13 | J196: 23.13
B197: MATERIAL (C) - TOTAL | I197: 23.37 | J197: 23.37
A199: 45 | B199: FONTE | C199: CÓDIGO | D199: DESCRIÇÃO | E199: UNIDADE | F199: COEFIC. | G199: CUSTO UNITÁRIO | I199: CUSTO TOTAL (A) + (B) + (C) + (D) + (E)
G200: DESONERADO | H200: NÃO DESONER. | I200: DESONERADO | J200: NÃO DESONER.
B201: COMPOSIÇÃO | C201: COMP 045_SEE | D201: LAUDO DE ESTANQUEIDADE | E201: UN | I201: 936 | J201: 1085.12
B202: AGETOP | C202: 250101 | D202: ENGENHEIRO - (OBRAS CIVIS) | E202: H | F202: 16 | G202: 58.5 | H202: 67.82 | I202: 936 | J202: 1085.12
B203: MÃO DE OBRA (B) - TOTAL | I203: 936 | J203: 1085.12
B204: MATERIAL (C) - TOTAL | I204: 0 | J204: 0
A206: 547 | B206: FONTE | C206: CÓDIGO | D206: DESCRIÇÃO | E206: UNID | F206: COEFIC. | G206: CUSTO UNITÁRIO | I206: CUSTO TOTAL (A) + (B) + (C) + (D) + (E)
G207: DESONERADO | H207: NÃO DESONER. | I207: DESONERADO | J207: NÃO DESONER.
B208: COMPOSIÇÃO | C208: COMP 547_SEE | D208: BOMBA THSI-18 6CV | E208: UN | F208: - | G208: - | H208: - | I208: 3632.54 | J208: 3661.34
B209: AGETOP_I | C209: 8 | D209: AJUDANTE | E209: h | F209: 8 | G209: 8.75 | H209: 10.14 | I209: 70 | J209: 81.12
B210: AGETOP_I | C210: 12 | D210: ELETRICISTA | E210: h | F210: 8 | G210: 13.95 | H210: 16.16 | I210: 111.6 | J210: 129.28
B211: MÃO DE OBRA (B) - TOTAL | I211: 181.6 | J211: 210.4
B212: COTAÇÃO | C212: COT 289_SEE | D212: BOMBA THSI-18 6CV | E212: UN | F212: 1 | G212: 3450.94 | H212: 3450.94 | I212: 3450.94 | J212: 3450.94
B213: MATERIAL (C) - TOTAL | I213: 3450.94 | J213: 3450.94
A215: 17 | B215: FONTE | C215: CÓDIGO | D215: DESCRIÇÃO | E215: UNIDADE | F215: COEFIC. | G215: CUSTO UNITÁRIO | I215: CUSTO TOTAL (A) + (B) + (C) + (D) + (E)
G216: DESONERADO | H216: NÃO DESONER. | I216: DESONERADO | J216: NÃO DESONER.
B217: COMPOSIÇÃO | C217: COMP 017_SEE | D217: REDUCAO GIRATÓRIA TIPO STORZ LATAO P/ INST. PREDIAL COMBATE A INCENDIO ENGATE RAPIDO 2.1/2" X 1.1/2" | E217: UN | G217: - | H217: - | I217: 108.62 | J217: 109.2
B218: AGETOP_I | C218: 8 | D218: AJUDANTE | E218: h | F218: 0.16 | G218: 8.75 | H218: 10.14 | I218: 1.4 | J218: 1.62
B219: AGETOP_I | C219: 11 | D219: ENCANADOR | E219: h | F219: 0.16 | G219: 13.95 | H219: 16.16 | I219: 2.23 | J219: 2.59
B220: MÃO DE OBRA (B) - TOTAL | I220: 3.63 | J220: 4.21
B221: SINAPI_I | C221: 20972 | D221: REDUCAO FIXA TIPO STORZ, ENGATE RAPIDO 2.1/2" X 1.1/2", EM LATAO, PARA INSTALACAO PREDIAL COMBATE A INCENDIO PREDIAL | E221: UN | F221: 1 | G221: 104.99 | H221: 104.99 | I221: 104.99 | J221: 104.99
B222: MATERIAL (C) - TOTAL | I222: 104.99 | J222: 104.99
A224: 18 | B224: FONTE | C224: CÓDIGO | D224: DESCRIÇÃO | E224: UNIDADE | F224: COEFIC. | G224: CUSTO UNITÁRIO | I224: CUSTO TOTAL (A) + (B) + (C) + (D) + (E)
G225: DESONERADO | H225: NÃO DESONER. | I225: DESONERADO | J225: NÃO DESONER.
B226: COMPOSIÇÃO | C226: COMP 018_SEE | D226: CHAVE DUPLA P/ CONEXÕES TIPO STORZ EM LATÃO ENGATE RÁPIDO 1 1/2" X 2 1/2" | E226: UN | G226: - | H226: - | I226: 16.08 | J226: 16.41
B227: AGETOP_I | C227: 11 | D227: ENCANADOR | E227: h | F227: 0.15 | G227: 13.95 | H227: 16.16 | I227: 2.09 | J227: 2.42
B228: MÃO DE OBRA (B) - TOTAL | I228: 2.09 | J228: 2.42
B229: SINAPI_I | C229: 20971 | D229: CHAVE DUPLA PARA CONEXOES TIPO STORZ, ENGATE RAPIDO 1 1/2" X 2 1/2", EM LATAO, PARA INSTALACAO PREDIAL COMBATE A INCENDIO | E229: UN | F229: 1 | G229: 13.99 | H229: 13.99 | I229: 13.99 | J229: 13.99
... 172 more rows
